Service Delivery Area(T),Service Delivery Team(T),CostC,ExpenditureGroup(T),Account(T),Supplier Name(T),Trans Date,InvoiceNo, Amount 
Care & Support,Care & Support,HHAC,Supplies & Services,Other Expenses,REDACTED PERSONAL INFORMATION,11/01/2012,117915," 1,000.00 "
Care & Support,Commissioning for Children and Young People & Families,HCAD,Supplies & Services,Other Grants (Expenses),NACRO,11/01/2012,800018079," 25,219.50 "
Care & Support,Commissioning for Children and Young People & Families,HCAD,Supplies & Services,Other Grants (Expenses),NACRO,25/01/2012,800018742," 25,219.50 "
Care & Support,Commissioning for Children and Young People & Families,HCAE,Supplies & Services,Other Grants (Expenses),TELFORD & WREKIN C V S,30/01/2012,11262," 22,750.00 "
Care & Support,Commissioning for Children and Young People & Families,HCAE,Supplies & Services,Other Grants (Expenses),TELFORD & WREKIN C V S,30/01/2012,11452," 22,750.00 "
Care & Support,Housing & Personalisation,HPAF,Supplies & Services,Other Services,UNIVERSITY OF ST ANDREWS,06/01/2012,RP037398," 1,500.00 "
Care & Support,Integrated Disabilities,HDAF,Third Party Payments,Private Contractors,ACTION FOR CHILDREN LIMITED,31/01/2012,R81IN1/00000912," 135,000.00 "
Care & Support,Integrated Disabilities,HDAH,Third Party Payments,Agency Services,D H Homecare Limited,24/01/2012,14902, 519.18 
Care & Support,"Joint Commissioning - Mental Health, Learning Disbaility & Substance Misuse",HHAB,Premises-Related Expenditure,Electricity,NPOWER,12/01/2012,79852233550," 2,333.22 "
Care & Support,"Joint Commissioning - Mental Health, Learning Disbaility & Substance Misuse",HHAB,Transport-Related Expenditure,Mileage,TELFORD & WREKIN PCT,13/01/2012,40005652, 553.40 
Care & Support,"Joint Commissioning - Mental Health, Learning Disbaility & Substance Misuse",HHAB,Transport-Related Expenditure,Mileage,TELFORD & WREKIN PCT,13/01/2012,40005654," 1,271.83 "
Care & Support,Learning Disabilities,HLAJ,Supplies & Services,Other Grants (Expenses),TELFORD & WREKIN C V S,27/01/2012,11263," 3,836.00 "
Care & Support,Learning Disabilities,HLAK,Premises-Related Expenditure,R&M -Building Other,WREKIN HOUSING TRUST (SUBSIDIARY) LTD,27/01/2012,SISD/00001837," 1,146.86 "
Care & Support,Learning Disabilities,HLAK,Premises-Related Expenditure,R&M -Building Other,WREKIN HOUSING TRUST (SUBSIDIARY) LTD,27/01/2012,TEL905," 1,146.86 "
Care & Support,Learning Disabilities,HLAK,Premises-Related Expenditure,R&M -Building Other,THE WREKIN HOUSING TRUST,27/01/2012,SISD/00001839," 1,146.86 "
Care & Support,Learning Disabilities,HLAK,Supplies & Services,Other Grants (Expenses),CREATIVE SUPPORT LTD,09/01/2012,87549," 36,253.84 "
Care & Support,Learning Disabilities,HLAK,Supplies & Services,Other Grants (Expenses),CREATIVE SUPPORT LTD,27/01/2012,88889," 36,253.84 "
Care & Support,Learning Disabilities,HLAL,Premises-Related Expenditure,General Rents,BOURNVILLE VILLAGE TRUST,26/01/2012,1.8305E+12," 11,980.55 "
Care & Support,Learning Disabilities,HLAL,Third Party Payments,Health Funded Services,DIMENSIONS (UK) LTD,27/01/2012,SI08/00002266," 31,116.25 "
Care & Support,Learning Disabilities,HLAL,Third Party Payments,Health Funded Services,DIMENSIONS (UK) LTD,27/01/2012,SI08/00002267," 27,417.95 "
Care & Support,Learning Disabilities,HLAL,Third Party Payments,Health Funded Services,DIMENSIONS (UK) LTD,27/01/2012,SI08/00002268," 44,837.16 "
Care & Support,Learning Disabilities,HLAL,Third Party Payments,Health Funded Services,DIMENSIONS (UK) LTD,12/01/2012,KEEPERSCRESC-DECEMBER," 31,116.25 "
Care & Support,Learning Disabilities,HLAL,Third Party Payments,Health Funded Services,DIMENSIONS (UK) LTD,12/01/2012,SI08/00002213," 27,417.95 "
Care & Support,Learning Disabilities,HLAL,Third Party Payments,Health Funded Services,DIMENSIONS (UK) LTD,12/01/2012,SI08/00002214," 44,837.16 "
Care & Support,Learning Disabilities,HLAL,Third Party Payments,Health Funded Services,DIMENSIONS (UK) LTD,12/01/2012,SI08/00002215," 37,364.30 "
Care & Support,Learning Disabilities,HLAL,Third Party Payments,Health Funded Services,DIMENSIONS (UK) LTD,27/01/2012,SI08/00002269," 37,364.30 "
Care & Support,Learning Disabilities,HLBA,Premises-Related Expenditure,Gas,WEST MERCIA SUPPLIES,13/01/2012,HQ00922/2331192," 1,005.28 "
Care & Support,Learning Disabilities,HLBA,Premises-Related Expenditure,Water Rates,SEVERN TRENT WATER LTD,13/01/2012,637081660, 960.49 
Care & Support,Learning Disabilities,HLBB,Supplies & Services,Laundry & Towel Hire,PHS ALL CLEAR,16/01/2012,662977, 510.74 
Care & Support,Learning Disabilities,HLCB,Premises-Related Expenditure,R&M -Buildings DLO Charge,TELFORD & WREKIN PCT,11/01/2012,40005552," 122,740.00 "
Care & Support,Learning Disabilities,HLCB,Supplies & Services,Equipment - Purchase,CREATIVE SUPPORT LTD,23/01/2012,87818," 1,377.60 "
Care & Support,Learning Disabilities,HLCK,Supplies & Services,Respite Care,LEONARD CHESHIRE DISABILITY,26/01/2012,RINVTP/00207434," 22,074.52 "
Care & Support,Learning Disabilities,HLCK,Supplies & Services,Respite Care,LEONARD CHESHIRE DISABILITY,26/01/2012,RINVTP/0021," 22,946.70 "
Care & Support,Learning Disabilities,HLCK,Supplies & Services,Respite Care,LEONARD CHESHIRE DISABILITY,26/01/2012,RINVTP/00210474," 22,655.57 "
Care & Support,Learning Disabilities,HLCK,Supplies & Services,Other Grants (Expenses),TELFORD & WREKIN C V S,27/01/2012,11257," 6,295.00 "
Care & Support,Learning Disabilities,HLCK,Third Party Payments,Residential Expenditure,NATIONAL FOSTERING AGENCY,13/01/2012,NFA52104 53635," 11,676.01 "
Care & Support,Learning Disabilities,HLDD,Premises-Related Expenditure,Electricity,WEST MERCIA SUPPLIES,31/01/2012,HQ009222280345, 636.97 
Care & Support,Learning Disabilities,HLDE,Premises-Related Expenditure,Gas,WEST MERCIA SUPPLIES,30/01/2012,HQ00922/2346149, 560.00 
Care & Support,Learning Disabilities,HLDE,Premises-Related Expenditure,General Rents,TELFORD COLLEGE OF ARTS & TECHNOLOGY,04/01/2012,SI/024359, 613.83 
Care & Support,Learning Disabilities,HLEB,Capital Financing Costs,Leased Equipment,Bodyshop Express credit note,24/01/2012,1366,-997.21 
Care & Support,Learning Disabilities,HLEB,Capital Financing Costs,Leased Equipment repair vehicle 1,Bodyshop Express,24/01/2012,BE1477, 991.19 
Care & Support,Learning Disabilities,HLEB,Capital Financing Costs,Leased Equipment repair vehicle 2,Bodyshop Express,24/01/2012,BE1478, 991.19 
Care & Support,Learning Disabilities,HLEB,Capital Financing Costs,Leased Equipment,Bodyshop Express,13/01/2012,BE1366, 997.21 
Care & Support,Learning Disabilities,HLEB,Premises-Related Expenditure,Electricity Jul Aug ,WEST MERCIA SUPPLIES,26/01/2012,HQ009222310469, 908.46 
Care & Support,Learning Disabilities,HLEB,Premises-Related Expenditure,Electricity Sept nov ,WEST MERCIA SUPPLIES,13/01/2012,HQ009222326949, 724.44 
Care & Support,Learning Disabilities,HLEB,Premises-Related Expenditure,Gas Aug Sept ,WEST MERCIA SUPPLIES,17/01/2012,HQ00922/2302383, 514.10 
Care & Support,Learning Disabilities,HLEB,Premises-Related Expenditure,Gas Oct Nov ,WEST MERCIA SUPPLIES,13/01/2012,HQ00922/2331110, 644.71 
Care & Support,Learning Disabilities,HLEB,Premises-Related Expenditure,Clean Mats & Toilet Requisites,THE CONSORTIUM,17/01/2012,8447198, 508.65 
Care & Support,Learning Disabilities,HLEC,Capital Financing Costs,Leased Equipment,LEX AUTOLEASE LTD,13/01/2012,EXIN575364, 500.14 
Care & Support,Learning Disabilities,HLEC,Premises-Related Expenditure,Clean Mats & Toilet Requisites,PHS ALL CLEAR,24/01/2012,664151," 1,091.68 "
Care & Support,Learning Disabilities,HLED,Premises-Related Expenditure,General Rents,BOURNVILLE VILLAGE TRUST,12/01/2012,1.8318E+12," 1,785.00 "
Care & Support,Learning Disabilities,HLED,Premises-Related Expenditure,General Rents,BOURNVILLE VILLAGE TRUST,16/01/2012,36314," 2,400.00 "
Care & Support,Learning Disabilities,HLED,Premises-Related Expenditure,General Rents,THE WREKIN HOUSING TRUST,04/01/2012,INVCF1335," 3,739.15 "
Care & Support,Learning Disabilities,HLEE,Premises-Related Expenditure,General Rents,BOURNVILLE VILLAGE TRUST,12/01/2012,1.8242E+12," 1,725.00 "
Care & Support,Learning Disabilities,HLEE,Premises-Related Expenditure,General Rents Dec -Jan,BAKER PROPERTY SERVICES,27/01/2012,1089, 675.00 
Care & Support,Learning Disabilities,HLEE,Premises-Related Expenditure,General Rents Jan - Feb,BAKER PROPERTY SERVICES,27/01/2012,1090, 675.00 
Care & Support,Learning Disabilities,HLEE,Premises-Related Expenditure,General Rents Feb - Mar,BAKER PROPERTY SERVICES,27/01/2012,1091, 675.00 
Care & Support,Learning Disabilities,HLEE,Premises-Related Expenditure,General Rents,THE WREKIN HOUSING TRUST,04/01/2012,INVCF1332," 8,202.30 "
Care & Support,Learning Disabilities,HLEE,Premises-Related Expenditure,General Rents,THE WREKIN HOUSING TRUST,04/01/2012,INVCF1333," 1,048.40 "
Care & Support,Mental Health & Substance Misuse,HMAA,Supplies & Services,Equipment - Purchase,SRCL LTD,03/01/2012,40878," 1,246.58 "
Care & Support,Mental Health & Substance Misuse,HMAD,Premises-Related Expenditure,Electricity,WEST MERCIA SUPPLIES,09/01/2012,HQ009222326889, 528.87 
Care & Support,Mental Health & Substance Misuse,HMAR,Premises-Related Expenditure,Electricity,WEST MERCIA SUPPLIES,06/01/2012,HQ009222326822, 977.47 
Care & Support,Mental Health & Substance Misuse,HMBB,Premises-Related Expenditure,Electricity,WEST MERCIA SUPPLIES,29/01/2012,HQ009222326806, 661.75 
Care & Support,Mental Health & Substance Misuse,HMBB,Premises-Related Expenditure,Electricity,WEST MERCIA SUPPLIES,12/01/2012,HQ00922/2331115, 605.43 
Care & Support,Mental Health & Substance Misuse,HMBB,Premises-Related Expenditure,Gas,WEST MERCIA SUPPLIES,29/01/2012,HQ00922/2315522, 584.37 
Care & Support,Mental Health & Substance Misuse,HMBC,Third Party Payments,Daycare Expenditure,TELFORD MIND,17/01/2012,100193," 10,439.36 "
Care & Support,Mental Health & Substance Misuse,HMBC,Third Party Payments,Daycare Expenditure,TELFORD MIND,17/01/2012,100194," 10,439.36 "
Care & Support,Mental Health & Substance Misuse,HMBG,Supplies & Services,Grants To Voluntary Organis,TELFORD & WREKIN PCT,12/01/2012,40005622," 6,276.40 "
Care & Support,Mental Health & Substance Misuse,HMBG,Supplies & Services,Other Grants (Expenses),POHWER,17/01/2012,SINV662," 1,547.20 "
Care & Support,Mental Health & Substance Misuse,HMBG,Supplies & Services,Other Grants (Expenses),SHROPSHIRE COUNCIL,09/01/2012,SEN000311," 55,420.00 "
Care & Support,Mental Health & Substance Misuse,HMBG,Supplies & Services,Other Grants (Expenses),POHWER,06/01/2012,710," 1,547.20 "
Care & Support,Mental Health & Substance Misuse,HMBG,Supplies & Services,Other Grants (Expenses),POHWER,06/01/2012,SINV747," 1,547.20 "
Care & Support,Mental Health & Substance Misuse,HMBJ,Third Party Payments,Homecare Expenditure,HILBRAE PETS HOTEL,17/01/2012,MRGJONES-31/10/11," 2,652.00 "
Care & Support,Mental Health & Substance Misuse,HMBJ,Third Party Payments,Homecare Expenditure,HILBRAE PETS HOTEL,27/01/2012,ones41DalfordHollinswoo, 900.00 
Care & Support,Mental Health & Substance Misuse,HMBJ,Third Party Payments,Residential Expenditure,THE FIRS GUEST HOUSE,10/01/2012,5874, 525.00 
Care & Support,Mental Health & Substance Misuse,HMBJ,Third Party Payments,Residential Expenditure,THE FIRS GUEST HOUSE,10/01/2012,5872, 525.00 
Care & Support,Mental Health & Substance Misuse,HMBJ,Third Party Payments,Residential Expenditure,THE FIRS GUEST HOUSE,05/01/2012,5868, 525.00 
Care & Support,Mental Health & Substance Misuse,HMBJ,Third Party Payments,Residential Expenditure,THE FIRS GUEST HOUSE,05/01/2012,5870, 525.00 
Care & Support,Older People & Physical Disability,HOAP,Supplies & Services,Equipment - Repair,HANDICARE ACCESSIBILITY LIMITED,23/01/2012,SIN211812," 1,450.00 "
Care & Support,Older People & Physical Disability,HOAP,Supplies & Services,Equipment - Repair,HANDICARE ACCESSIBILITY LIMITED,23/01/2012,SIN220633," 5,208.02 "
Care & Support,Older People & Physical Disability,HOAP,Supplies & Services,Equipment - Repair,HANDICARE ACCESSIBILITY LIMITED,23/01/2012,SIN22G334, 507.50 
Care & Support,Older People & Physical Disability,HOAP,Supplies & Services,Equipment - Repair,HANDICARE ACCESSIBILITY LIMITED,23/01/2012,SIN216496," 5,096.25 "
Care & Support,Older People & Physical Disability,HOAP,Supplies & Services,Aids & Appliances,MIDEQUIP LTD,10/01/2012,11755," 1,155.00 "
Care & Support,Older People & Physical Disability,HOAP,Supplies & Services,Aids & Appliances,BERWICK CARE EQUIPMENT LTD,05/01/2012,IN22785, 599.00 
Care & Support,Older People & Physical Disability,HOAP,Supplies & Services,Aids & Appliances,MANGAR INTERNATIONAL LTD,30/01/2012,125029," 4,000.00 "
Care & Support,Older People & Physical Disability,HOAP,Supplies & Services,Aids & Appliances,THE SELF LIFT CHAIR CO,09/01/2012,21570, 925.00 
Care & Support,Older People & Physical Disability,HOAP,Supplies & Services,Aids & Appliances,BERWICK CARE EQUIPMENT LTD,05/01/2012,IN22783," 1,361.00 "
Care & Support,Older People & Physical Disability,HOAP,Supplies & Services,Aids & Appliances,CEFNDY ENTERPRISES HEALTHCARE,26/01/2012,903321, 572.00 
Care & Support,Older People & Physical Disability,HOAP,Supplies & Services,Aids & Appliances,BERWICK CARE EQUIPMENT LTD,05/01/2012,IN22784," 1,093.00 "
Care & Support,Older People & Physical Disability,HOBK,Third Party Payments,Nursing Expenditure,COVERAGE CARE SERVICES LTD,24/01/2012,PSI49992," 13,861.43 "
Care & Support,Older People & Physical Disability,HOBL,Third Party Payments,Residential Expenditure,COVERAGE CARE SERVICES LTD,27/01/2012,PSI49993," 60,435.39 "
Care & Support,Older People & Physical Disability,HOBL,Third Party Payments,Residential Expenditure,COVERAGE CARE SERVICES LTD,27/01/2012,PSI51152," 60,435.39 "
Care & Support,Older People & Physical Disability,HOBN,Third Party Payments,Homecare Expenditure,NSL Limited t/a Patient First Group,19/01/2012,TELFORD COUNCIL, 643.12 
Care & Support,Older People & Physical Disability,HOBP,Third Party Payments,Daycare Expenditure,COVERAGE CARE SERVICES LTD,27/01/2012,PSI49993," 13,331.10 "
Care & Support,Older People & Physical Disability,HOBP,Third Party Payments,Daycare Expenditure,COVERAGE CARE SERVICES LTD,27/01/2012,PSI51152," 13,331.10 "
Care & Support,Older People & Physical Disability,HOBR,Third Party Payments,Homecare Expenditure,COVERAGE CARE SERVICES LTD,24/01/2012,PSI50493," 40,824.37 "
Care & Support,Older People & Physical Disability,HOBR,Third Party Payments,Homecare Expenditure,COVERAGE CARE SERVICES LTD,24/01/2012,PSI50494," 5,487.70 "
Care & Support,Older People & Physical Disability,HOBR,Third Party Payments,Homecare Expenditure,COVERAGE CARE SERVICES LTD,24/01/2012,PSI51313," 51,392.89 "
Care & Support,Older People & Physical Disability,HOCH,Employees,Agency Supply Costs,MEDICONNECT RECRUITMENT LTD,24/01/2012,8554, 823.37 
Care & Support,Older People & Physical Disability,HOCH,Employees,Agency Supply Costs,MEDICONNECT RECRUITMENT LTD,24/01/2012,8570, 947.66 
Care & Support,Older People & Physical Disability,HOCH,Employees,Agency Supply Costs,MEDICONNECT RECRUITMENT LTD,24/01/2012,8553, 723.01 
Care & Support,Older People & Physical Disability,HOCH,Employees,Agency Supply Costs,MEDICONNECT RECRUITMENT LTD,24/01/2012,8571, 917.50 
Care & Support,Older People & Physical Disability,HOCH,Third Party Payments,Residential Expenditure,COVERAGE CARE SERVICES LTD,27/01/2012,PSI51150," 5,152.25 "
Care & Support,Older People & Physical Disability,HOCJ,Third Party Payments,Residential Expenditure,COVERAGE CARE SERVICES LTD,27/01/2012,PSI51150," 5,587.57 "
Care & Support,Older People & Physical Disability,HOCJ,Third Party Payments,Residential Expenditure,MORRIS CARE,12/01/2012,WRE12549," 13,991.25 "
Care & Support,Older People & Physical Disability,HOCL,Transport-Related Expenditure,Travelling Expenses General,CENTRAL TAXIS LTD SHREWSBURY,25/01/2012,3819," 1,245.00 "
Care & Support,Older People & Physical Disability,HOCM,Employees,Agency Supply Costs,MEDICONNECT RECRUITMENT LTD,05/01/2012,8470," 1,104.14 "
Care & Support,Older People & Physical Disability,HOCM,Employees,Agency Supply Costs,MEDICONNECT RECRUITMENT LTD,09/01/2012,8496," 1,093.22 "
Care & Support,Older People & Physical Disability,HOCM,Employees,Agency Supply Costs,MEDICONNECT RECRUITMENT LTD,09/01/2012,8497, 919.58 
Care & Support,Older People & Physical Disability,HOCM,Employees,Agency Supply Costs,MEDICONNECT RECRUITMENT LTD,25/01/2012,8516, 997.50 
Care & Support,Older People & Physical Disability,HOCN,Employees,Other Employee Costs,SHROPSHIRE COMMUNITY HEALTH NHS TRUST,24/01/2012,50001078," 36,935.00 "
Care & Support,Older People & Physical Disability,HOCR,Supplies & Services,Registration / Licence Fees,CARE QUALITY COMMISSION,27/01/2012,ANN000073838I," 5,200.00 "
Corporate Core,Delivery Planning & Management,MDAB,Employees,Professional Subs,SCOPED SOLUTIONS LTD,11/01/2012,10524, 600.00 
Corporate Core,Delivery Planning & Management,MDAB,Employees,Professional Subs,SCOPED SOLUTIONS LTD,13/01/2012,10502, 600.00 
Corporate Core,Delivery Planning & Management,MDAB,Employees,Professional Subs,SCOPED SOLUTIONS LTD,13/01/2012,10515, 600.00 
Corporate Core,Delivery Planning & Management,MDAB,Employees,Professional Subs,SCOPED SOLUTIONS LTD,13/01/2012,10536, 600.00 
Corporate Core,Human Resources,NHAC,Employees,Course Fees,UNIVERSITY OF WOLVERHAMPTON,24/01/2012,T00486691, 530.00 
Corporate Core,Human Resources,NHAC,Employees,Course Fees,ADVANCED COMPUTER SOLUTIONS,24/01/2012,107681," 1,400.00 "
Corporate Core,Organisational Improvement,NOAT,Employees,Training Exp's (Facilitators),LUKE CLEMENTS TRAINING,17/01/2012,533," 1,028.90 "
Corporate Core,Organisational Improvement,NOAT,Employees,Training Exp's (Facilitators),SHROPSHIRE PARTNERS IN CARE LTD,20/01/2012,13736," 1,395.00 "
Corporate Core,Organisational Improvement,NOAT,Employees,Training Exp's (Facilitators),Independent Clinical Initiative Services Ltd,09/01/2012,11088," 2,691.56 "
Corporate Core,Organisational Improvement,NOAT,Employees,Training Exp's (Facilitators),ELEARVATION,24/01/2012,INV000010, 700.00 
Corporate Core,Organisational Improvement,NOAT,Employees,Other Training,UNIVERSITY OF WOLVERHAMPTON,03/01/2012,T00487476," 1,235.00 "
Corporate Core,Organisational Improvement,NOAT,Employees,Other Training,UNIVERSITY OF WOLVERHAMPTON,03/01/2012,T00485362," 1,810.00 "
Corporate Core,Organisational Improvement,NOAT,Employees,Other Training,UNIVERSITY OF WOLVERHAMPTON,03/01/2012,T00485504," 1,810.00 "
Corporate Core,Organisational Improvement,NOAT,Supplies & Services,Sub Contractors,SHROPSHIRE COUNCIL,03/01/2012,SFF005538," 9,452.00 "
Corporate Core,Organisational Improvement,NOAT,Supplies & Services,Sub Contractors,SHROPSHIRE COUNCIL,03/01/2012,SFF005539," 6,452.00 "
Corporate Core,Organisational Improvement,NOAT,Supplies & Services,Sub Contractors,SHROPSHIRE COUNCIL,03/01/2012,SFF005540," 3,000.00 "
"Customer Services, Leisure & Libraries",Arts & Culture,LCAB,Supplies & Services,Equipment - Purchase,SOAR VALLEY MUSIC LTD,30/01/2012,67108," 2,100.00 "
"Customer Services, Leisure & Libraries",Arts & Culture,LCAD,Premises-Related Expenditure,Electricity,WEST MERCIA SUPPLIES,24/01/2012,HQ009222340899," 3,303.91 "
"Customer Services, Leisure & Libraries",Arts & Culture,LCAD,Premises-Related Expenditure,Electricity,WEST MERCIA SUPPLIES,23/01/2012,HQ009222340926, 887.35 
"Customer Services, Leisure & Libraries",Arts & Culture,LCAD,Premises-Related Expenditure,Electricity,WEST MERCIA SUPPLIES,03/01/2012,HQ009222327458," 1,919.56 "
"Customer Services, Leisure & Libraries",Arts & Culture,LCAD,Premises-Related Expenditure,Electricity,WEST MERCIA SUPPLIES,03/01/2012,HQ009222327495, 544.56 
"Customer Services, Leisure & Libraries",Arts & Culture,LCAD,Premises-Related Expenditure,Gas,WEST MERCIA SUPPLIES,27/01/2012,HQ00922/2345528," 1,989.41 "
"Customer Services, Leisure & Libraries",Arts & Culture,LCAD,Premises-Related Expenditure,Water Rates,SEVERN TRENT WATER LTD,27/01/2012,1980230594," 2,159.48 "
"Customer Services, Leisure & Libraries",Arts & Culture,LCAD,Supplies & Services,Stationery,Hague Computer Supplies Ltd,19/01/2012,10034370," 1,346.24 "
"Customer Services, Leisure & Libraries",Arts & Culture,LCAD,Supplies & Services,Photography,Celexon UK Ltd,04/01/2012,95014370," 1,041.67 "
"Customer Services, Leisure & Libraries",Arts & Culture,LCAD,Supplies & Services,Advertising,TWENTY FIRST CENTURY DESIGN,20/01/2012,36085, 500.00 
"Customer Services, Leisure & Libraries",Arts & Culture,LCAD,Supplies & Services,Advertising,TWENTY FIRST CENTURY DESIGN,20/01/2012,36085, 500.00 
"Customer Services, Leisure & Libraries",Arts & Culture,LCAD,Supplies & Services,Performing Rights Fees,THE PERFORMING RIGHT SOCIETY,19/01/2012,3548883," 2,524.12 "
"Customer Services, Leisure & Libraries",Arts & Culture,LCAE,Supplies & Services,Artistes Fees,AVALON PROMOTIONS LTD,03/01/2012,SIN003285," 3,581.56 "
"Customer Services, Leisure & Libraries",Arts & Culture,LCAE,Supplies & Services,Artistes Fees,PAUL HOLMAN ASSOCIATES LTD,17/01/2012,49/2011," 13,581.65 "
"Customer Services, Leisure & Libraries",Arts & Culture,LCAE,Supplies & Services,Artistes Fees,JOHN GOOD HOLBROOK LTD,05/01/2012,65154, 840.00 
"Customer Services, Leisure & Libraries",Arts & Culture,LCAE,Supplies & Services,Artistes Fees,CARMICHAEL SCHOOL OF DANCE,05/01/2012,invoice, 755.00 
"Customer Services, Leisure & Libraries",Arts & Culture,LCAH,Supplies & Services,Artistes Fees,Manasamitra,09/01/2012,211-03-11, 520.80 
"Customer Services, Leisure & Libraries",Arts & Culture,LCAL,Supplies & Services,Artistes Fees,Starfish,09/01/2012,SF111113," 3,612.00 "
"Customer Services, Leisure & Libraries",Arts & Culture,LCAL,Supplies & Services,Artistes Fees,Creative Health (Arts and Health) CIC,09/01/2012,2011," 5,125.00 "
"Customer Services, Leisure & Libraries",Arts & Culture,LCAM,Supplies & Services,Promotion Expenses,Firefly Illuminations,25/01/2012,RC11141647, 796.00 
"Customer Services, Leisure & Libraries",Arts & Culture,LCAN,Supplies & Services,Wet,MOLSON COORS BREWING COMPANY UK LTD,16/01/2012,900318082," 1,633.63 "
"Customer Services, Leisure & Libraries",Arts & Culture,LCAN,Supplies & Services,Confectionery & Snacks,BIKOLD,05/01/2012,658975," 1,075.74 "
"Customer Services, Leisure & Libraries",Arts & Culture,LCAN,Supplies & Services,Confectionery & Snacks,MOLSON COORS BREWING COMPANY UK LTD,16/01/2012,9oo362491," 1,590.33 "
"Customer Services, Leisure & Libraries",Communications & Marketing,MMAB,Supplies & Services,Publications,Leaflet Distribution Services Ltd,19/01/2012,8634," 4,085.50 "
"Customer Services, Leisure & Libraries",Communications & Marketing,MMAB,Supplies & Services,Publications,NWN Media LTD,24/01/2012,739757," 4,062.00 "
"Customer Services, Leisure & Libraries",Communications & Marketing,MMAD,Employees,Recruitment Advertising,THE MIDLAND NEWS ASSOCIATION LTD,05/01/2012,15951857," 1,322.11 "
"Customer Services, Leisure & Libraries",Communications & Marketing,MMAD,Supplies & Services,Advertising,REGIONAL PUBLICATIONS LTD,31/01/2012,49356," 1,045.00 "
"Customer Services, Leisure & Libraries",Communications & Marketing,MMAD,Supplies & Services,Advertising,THE MIDLAND NEWS ASSOCIATION LTD,05/01/2012,15949361, 549.99 
"Customer Services, Leisure & Libraries",Communications & Marketing,MMAD,Supplies & Services,Advertising,THE MIDLAND NEWS ASSOCIATION LTD,05/01/2012,15961540, 810.00 
"Customer Services, Leisure & Libraries",Communications & Marketing,MMAD,Supplies & Services,Advertising,THE MIDLAND NEWS ASSOCIATION LTD,05/01/2012,15955743, 549.99 
"Customer Services, Leisure & Libraries",Communications & Marketing,MMAD,Supplies & Services,Advertising,THE MIDLAND NEWS ASSOCIATION LTD,05/01/2012,15916839, 549.99 
"Customer Services, Leisure & Libraries",Communications & Marketing,MMAD,Supplies & Services,Advertising,PENNA PLC,11/01/2012,419929, 543.66 
"Customer Services, Leisure & Libraries",Communications & Marketing,MMAD,Supplies & Services,Advertising,THE MIDLAND NEWS ASSOCIATION LTD,17/01/2012,I5991206, 549.99 
"Customer Services, Leisure & Libraries",Communications & Marketing,MMAD,Supplies & Services,Advertising,THE MIDLAND NEWS ASSOCIATION LTD,17/01/2012,I5967953, 549.99 
"Customer Services, Leisure & Libraries",Communications & Marketing,MMAD,Supplies & Services,Advertising,THE MIDLAND NEWS ASSOCIATION LTD,05/01/2012,15963111, 776.25 
"Customer Services, Leisure & Libraries",Communications & Marketing,MMAD,Supplies & Services,Advertising,THE MIDLAND NEWS ASSOCIATION LTD,05/01/2012,15942620, 549.99 
"Customer Services, Leisure & Libraries",Communications & Marketing,MMAD,Supplies & Services,Advertising,PENNA PLC,11/01/2012,419930," 1,421.00 "
"Customer Services, Leisure & Libraries",Communications & Marketing,MMAD,Supplies & Services,Advertising,THE MIDLAND NEWS ASSOCIATION LTD,17/01/2012,I5983052, 714.60 
"Customer Services, Leisure & Libraries",Customer Services Manager,LMAC,Employees,Professional Subs,SOCITM LIMITED,30/01/2012,59636," 1,330.00 "
"Customer Services, Leisure & Libraries",Leisure Facilities & Services,GTAB,Employees,Training Expenses,YSGOL YRRU CARMEL DRIVING SCHOOL,11/01/2012,OO2018, 717.00 
"Customer Services, Leisure & Libraries",Leisure Facilities & Services,GTAB,Employees,Training Expenses,SNOWBIKERS,06/01/2012,111218ARTHOG, 500.00 
"Customer Services, Leisure & Libraries",Leisure Facilities & Services,GTAB,Premises-Related Expenditure,Minor Alterations,TRUE ENERGY LTD,25/01/2012,13/01/2012/1," 2,710.63 "
"Customer Services, Leisure & Libraries",Leisure Facilities & Services,GTAB,Transport-Related Expenditure,Fuel,WD PUGH & SONS,03/01/2012,1451, 882.77 
"Customer Services, Leisure & Libraries",Leisure Facilities & Services,GTAB,Transport-Related Expenditure,Vehicle Parts,GWYNDAF EVANS MOTORS,03/01/2012,1WO00298, 905.77 
"Customer Services, Leisure & Libraries",Leisure Facilities & Services,GTAB,Transport-Related Expenditure,Pupil Transport,SHROPSHIRE COUNCIL,10/01/2012,HHA000916," 7,758.00 "
"Customer Services, Leisure & Libraries",Leisure Facilities & Services,GTAB,Transport-Related Expenditure,Pupil Transport,SHROPSHIRE COUNCIL,10/01/2012,HHA000915," 4,286.75 "
"Customer Services, Leisure & Libraries",Leisure Facilities & Services,GTAB,Supplies & Services,Equipment - Purchase,BRENIG,04/01/2012,1703," 3,431.30 "
"Customer Services, Leisure & Libraries",Leisure Facilities & Services,GTAB,Supplies & Services,Provisions,WOODWARD FOODSERVICE LTD,16/01/2012,9051636306, 854.33 
"Customer Services, Leisure & Libraries",Leisure Facilities & Services,GTAB,Supplies & Services,Provisions,BSF TRADING AS 3663,16/01/2012,25102790, 699.89 
"Customer Services, Leisure & Libraries",Leisure Facilities & Services,GTAB,Supplies & Services,Provisions,BSF TRADING AS 3663,30/01/2012,25109156, 661.33 
"Customer Services, Leisure & Libraries",Leisure Facilities & Services,GTAB,Supplies & Services,Provisions,WOODWARD FOODSERVICE LTD,30/01/2012,9051637680, 990.41 
"Customer Services, Leisure & Libraries",Leisure Facilities & Services,GTAB,Supplies & Services,Instructors Fees,CHRIS HUGHES MULTI ACTIVITY SERVICES LTD,11/01/2012,CHMAS054-2011/12," 1,471.23 "
"Customer Services, Leisure & Libraries",Leisure Facilities & Services,GTAB,Supplies & Services,Instructors Fees,CHRIS HUGHES MULTI ACTIVITY SERVICES LTD,11/01/2012,CHMAS056-2011/12, 749.36 
"Customer Services, Leisure & Libraries",Leisure Facilities & Services,LEAC,Premises-Related Expenditure,Electricity,WEST MERCIA SUPPLIES,20/01/2012,Electricity," 1,115.31 "
"Customer Services, Leisure & Libraries",Leisure Facilities & Services,LEAC,Premises-Related Expenditure,Gas,WEST MERCIA SUPPLIES,10/01/2012,HQ00922/2331027, 704.39 
"Customer Services, Leisure & Libraries",Leisure Facilities & Services,LEAD,Supplies & Services,Equipment - Purchase,SPORTFIX LTD,25/01/2012,3926, 659.88 
"Customer Services, Leisure & Libraries",Leisure Facilities & Services,LEAD,Supplies & Services,Sport Equip - Purchase,J P LENNARD LTD,13/01/2012,596089, 643.09 
"Customer Services, Leisure & Libraries",Leisure Facilities & Services,LECA,Premises-Related Expenditure,Fuel Oil,WEST MERCIA SUPPLIES,24/01/2012,HQ00922/2339905," 2,037.30 "
"Customer Services, Leisure & Libraries",Leisure Facilities & Services,LECA,Premises-Related Expenditure,Fuel Oil,MIDLANDS WOOD FUEL SUPPLY LTD,18/01/2012,2702," 3,770.90 "
"Customer Services, Leisure & Libraries",Leisure Facilities & Services,LECA,Premises-Related Expenditure,Electricity,WEST MERCIA SUPPLIES,12/01/2012,HQ00922/2299625," 1,521.07 "
"Customer Services, Leisure & Libraries",Leisure Facilities & Services,LECA,Premises-Related Expenditure,Electricity,WEST MERCIA SUPPLIES,03/01/2012,HQ009222326312," 4,408.92 "
"Customer Services, Leisure & Libraries",Leisure Facilities & Services,LECA,Premises-Related Expenditure,Electricity,WEST MERCIA SUPPLIES,12/01/2012,HQ00922/2277398," 4,036.98 "
"Customer Services, Leisure & Libraries",Leisure Facilities & Services,LECA,Premises-Related Expenditure,Electricity,WEST MERCIA SUPPLIES,12/01/2012,HQ009222296791," 4,257.10 "
"Customer Services, Leisure & Libraries",Leisure Facilities & Services,LECA,Premises-Related Expenditure,Electricity,WEST MERCIA SUPPLIES,24/01/2012,HQ009222339230," 4,258.75 "
"Customer Services, Leisure & Libraries",Leisure Facilities & Services,LECA,Premises-Related Expenditure,Water Rates,SEVERN TRENT WATER LTD,30/01/2012,594057770," 3,082.94 "
"Customer Services, Leisure & Libraries",Leisure Facilities & Services,LECA,Premises-Related Expenditure,Clean Mats & Toilet Requisites,PRINCIPAL HYGIENE SYSTEMS,11/01/2012,27210, 631.05 
"Customer Services, Leisure & Libraries",Leisure Facilities & Services,LECA,Premises-Related Expenditure,Trade Refuse,TELFORD & WREKIN SERVICES LTD,24/01/2012,35975, 545.24 
"Customer Services, Leisure & Libraries",Leisure Facilities & Services,LECK,Supplies & Services,Payments of income collected,FIRST POINT TENNIS COACHING LTD,04/01/2012,3061," 3,279.80 "
"Customer Services, Leisure & Libraries",Leisure Facilities & Services,LEDC,Supplies & Services,Advertising,INANDAROUND MAGAZINES,26/01/2012,3424, 500.00 
"Customer Services, Leisure & Libraries",Leisure Facilities & Services,LEHG,Premises-Related Expenditure,Electricity,WEST MERCIA SUPPLIES,03/01/2012,HQ009222326804," 1,080.66 "
"Customer Services, Leisure & Libraries",Leisure Facilities & Services,LEHG,Supplies & Services,Equipment - Hire,WILDES PLANT HIRE LTD,09/01/2012,130981," 1,389.00 "
"Customer Services, Leisure & Libraries",Leisure Facilities & Services,LEHG,Supplies & Services,Stationery,ING LEASE (UK) LTD,13/01/2012,001/11/1393505, 798.48 
"Customer Services, Leisure & Libraries",Leisure Facilities & Services,LEHM,Premises-Related Expenditure,R&M WC Planned,EARTH-TEC LIMITED,26/01/2012,1373, 914.00 
"Customer Services, Leisure & Libraries",Leisure Facilities & Services,LEHM,Transport-Related Expenditure,Servicing & Repairs V&P,OAKLEYS LTD,03/01/2012,117272, 972.75 
"Customer Services, Leisure & Libraries",Leisure Facilities & Services,LEHM,Transport-Related Expenditure,Servicing & Repairs V&P,OAKLEYS LTD,03/01/2012,117269, 987.02 
"Customer Services, Leisure & Libraries",Leisure Facilities & Services,LEHM,Transport-Related Expenditure,Servicing & Repairs V&P,OAKLEYS LTD,13/01/2012,117426, 627.10 
"Customer Services, Leisure & Libraries",Leisure Facilities & Services,LEHS,Supplies & Services,Equipment - Purchase,ACUSHNET EUROPE LIMITED,04/01/2012,9573857,"-1,967.69 "
"Customer Services, Leisure & Libraries",Leisure Facilities & Services,LEHS,Supplies & Services,Items For Resale,ACUSHNET EUROPE LIMITED,04/01/2012,6298820," 1,967.69 "
"Customer Services, Leisure & Libraries",Leisure Facilities & Services,LEHS,Supplies & Services,Items For Resale,ACUSHNET EUROPE LIMITED,13/01/2012,6289948," 2,887.06 "
"Customer Services, Leisure & Libraries",Leisure Facilities & Services,LEIB,Supplies & Services,Resale Provision,MOLSON COORS BREWING COMPANY UK LTD,10/01/2012,900361702, 537.75 
"Customer Services, Leisure & Libraries",Leisure Facilities & Services,LEIB,Supplies & Services,Resale Provision,MOLSON COORS BREWING COMPANY UK LTD,05/01/2012,900325011, 575.49 
"Customer Services, Leisure & Libraries",Leisure Facilities & Services,LEIP,Supplies & Services,Payment Of Income Collected,TELFORD TIGERS SOCIETY LTD,17/01/2012,BASINGSTOKE150112, 789.00 
"Customer Services, Leisure & Libraries",Leisure Facilities & Services,LEIP,Supplies & Services,Equipment Hire,Hawthorn Theatrical Ltd,09/01/2012,34148," 1,300.00 "
"Customer Services, Leisure & Libraries",Leisure Facilities & Services,LEIP,Supplies & Services,Equipment Hire,Hawthorn Theatrical Ltd,09/01/2012,34148, 740.00 
"Customer Services, Leisure & Libraries",Leisure Facilities & Services,LEIP,Supplies & Services,Equipment Hire,Hawthorn Theatrical Ltd,09/01/2012,34148, 630.00 
"Customer Services, Leisure & Libraries",Leisure Facilities & Services,LEIP,Supplies & Services,Payment Of Income Collected,TELFORD TIGERS SOCIETY LTD,23/01/2012,SHEFFIELD220112," 1,384.00 "
"Customer Services, Leisure & Libraries",Leisure Facilities & Services,LEIP,Supplies & Services,Payment Of Income Collected,HIRE STATION TELFORD,18/01/2012,925100, 564.57 
"Customer Services, Leisure & Libraries",Leisure Facilities & Services,LEIP,Supplies & Services,Payment Of Income Collected,TELFORD TIGERS SOCIETY LTD,10/01/2012,MANCHESTER080112," 2,343.00 "
"Customer Services, Leisure & Libraries",Leisure Facilities & Services,LEIP,Supplies & Services,Payment Of Income Collected,TELFORD TIGERS SOCIETY LTD,30/01/2012,GUIDFORD290112," 1,804.00 "
"Customer Services, Leisure & Libraries",Leisure Facilities & Services,LEIR,Premises-Related Expenditure,Electricity,WEST MERCIA SUPPLIES,27/01/2012,HQ009222339139," 10,157.48 "
"Customer Services, Leisure & Libraries",Leisure Facilities & Services,LEIR,Premises-Related Expenditure,Electricity,WEST MERCIA SUPPLIES,27/01/2012,HQ009222326218," 10,803.50 "
"Customer Services, Leisure & Libraries",Leisure Facilities & Services,LEIR,Premises-Related Expenditure,Gas,WEST MERCIA SUPPLIES,26/01/2012,HQ00922/2345550," 2,470.28 "
"Customer Services, Leisure & Libraries",Leisure Facilities & Services,LEIR,Premises-Related Expenditure,Gas,WEST MERCIA SUPPLIES,26/01/2012,HQ00922/2314983," 1,224.33 "
"Customer Services, Leisure & Libraries",Leisure Facilities & Services,LEIR,Premises-Related Expenditure,Gas,WEST MERCIA SUPPLIES,26/01/2012,HQ00922/2331359," 1,071.10 "
"Customer Services, Leisure & Libraries",Leisure Facilities & Services,LEIR,Supplies & Services,Equipment - Purchase,MARSHALLS INTERNATIONAL LTD,03/01/2012,655751, 813.00 
"Customer Services, Leisure & Libraries",Leisure Facilities & Services,LEIR,Supplies & Services,Payments of income collected,V LOCKER UK LIMITED,17/01/2012,875, 589.65 
"Customer Services, Leisure & Libraries",Leisure Facilities & Services,LEIV,Supplies & Services,Resale Confectionery & Snacks,BIKOLD,10/01/2012,658515, 511.70 
"Customer Services, Leisure & Libraries",Leisure Facilities & Services,LEIV,Supplies & Services,Resale Confectionery & Snacks,BIKOLD,10/01/2012,659296, 618.66 
"Customer Services, Leisure & Libraries",Leisure Facilities & Services,LEMH,Supplies & Services,Promotion Expenses - external funding,PERFECT CIRCLE,03/01/2012,7829," 1,900.00 "
"Customer Services, Leisure & Libraries",Leisure Facilities & Services,LEMH,Supplies & Services,Promotion Expenses - external funding,PERFECT CIRCLE,11/01/2012,7829-A, 600.00 
"Customer Services, Leisure & Libraries",Leisure Facilities & Services,LENP,Supplies & Services,Equipment - Purchase,J P LENNARD LTD,12/01/2012,595061, 518.60 
"Customer Services, Leisure & Libraries",Leisure Facilities & Services,LENP,Supplies & Services,Items For Resale,SWIMRITE SUPPLIES LIMITED,24/01/2012,303684, 525.17 
"Customer Services, Leisure & Libraries",Leisure Facilities & Services,LEWE,Premises-Related Expenditure,Gas,WEST MERCIA SUPPLIES,09/01/2012,HQ00922/2331305, 624.69 
"Customer Services, Leisure & Libraries",Leisure Facilities & Services,LEWP,Premises-Related Expenditure,Fuel Oil,WEST MERCIA SUPPLIES,12/01/2012,HQ00922/2235857,"-2,687.18 "
"Customer Services, Leisure & Libraries",Leisure Facilities & Services,LEWP,Premises-Related Expenditure,Electricity,WEST MERCIA SUPPLIES,12/01/2012,40603,"-2,886.78 "
"Customer Services, Leisure & Libraries",Leisure Facilities & Services,LEWP,Premises-Related Expenditure,Electricity,WEST MERCIA SUPPLIES,12/01/2012,HQ00922/2183460,"-3,117.29 "
"Customer Services, Leisure & Libraries",Leisure Facilities & Services,LEWP,Premises-Related Expenditure,Electricity,WEST MERCIA SUPPLIES,09/01/2012,HQ009222326234," 1,229.08 "
"Customer Services, Leisure & Libraries",Leisure Facilities & Services,LEWP,Premises-Related Expenditure,Gas,WEST MERCIA SUPPLIES,12/01/2012,40483,"-2,901.82 "
"Customer Services, Leisure & Libraries",Leisure Facilities & Services,LEWP,Premises-Related Expenditure,Gas,WEST MERCIA SUPPLIES,12/01/2012,HQ00922/2199412,"-2,718.37 "
"Customer Services, Leisure & Libraries",Leisure Facilities & Services,LEWP,Premises-Related Expenditure,Gas,WEST MERCIA SUPPLIES,12/01/2012,HQ00922/2223819,"-2,666.95 "
"Customer Services, Leisure & Libraries",Leisure Facilities & Services,LEWP,Premises-Related Expenditure,Gas,WEST MERCIA SUPPLIES,12/01/2012,HQ00922/2114415,"-1,514.96 "
"Customer Services, Leisure & Libraries",Leisure Facilities & Services,LEWP,Premises-Related Expenditure,Gas,WEST MERCIA SUPPLIES,12/01/2012,HQ00922/2130200,"-1,572.32 "
"Customer Services, Leisure & Libraries",Leisure Facilities & Services,LEWP,Premises-Related Expenditure,Gas,WEST MERCIA SUPPLIES,12/01/2012,HQ00922/2260933,"-2,569.16 "
"Customer Services, Leisure & Libraries",Leisure Facilities & Services,LEWP,Premises-Related Expenditure,Gas,WEST MERCIA SUPPLIES,12/01/2012,HQ00922/2168158,"-2,964.80 "
"Customer Services, Leisure & Libraries",Leisure Facilities & Services,LEWP,Premises-Related Expenditure,Gas,WEST MERCIA SUPPLIES,06/01/2012,168202,-533.70 
"Customer Services, Leisure & Libraries",Leisure Facilities & Services,LEWP,Premises-Related Expenditure,Gas,WEST MERCIA SUPPLIES,09/01/2012,HQ00922/2332296, 533.70 
"Customer Services, Leisure & Libraries",Leisure Facilities & Services,LEWP,Premises-Related Expenditure,Gas,WEST MERCIA SUPPLIES,13/01/2012,HQ00922/2146042,"-2,525.36 "
"Customer Services, Leisure & Libraries",Leisure Facilities & Services,LEWP,Premises-Related Expenditure,Gas,WEST MERCIA SUPPLIES,13/01/2012,40848," 9,157.28 "
"Customer Services, Leisure & Libraries",Library Services,LBNE,Supplies & Services,Equipment - Repair,SECURITY WISE LTD,10/01/2012,95705, 602.00 
"Customer Services, Leisure & Libraries",Library Services,LBTE,Premises-Related Expenditure,Electricity,WEST MERCIA SUPPLIES,10/01/2012,HQ00922/2331271, 646.21 
"Customer Services, Leisure & Libraries",Library Services,LBTE,Premises-Related Expenditure,Electricity,WEST MERCIA SUPPLIES,26/01/2012,HQ009222340916, 726.13 
"Customer Services, Leisure & Libraries",Library Services,LBTE,Premises-Related Expenditure,Gas,WEST MERCIA SUPPLIES,30/01/2012,HQ00922/2345951, 871.62 
"Customer Services, Leisure & Libraries",Library Services,LBTE,Premises-Related Expenditure,Water Rates,SEVERN TRENT WATER LTD,26/01/2012,466041113, 773.35 
"Customer Services, Leisure & Libraries",Library Services,LBWE,Premises-Related Expenditure,Electricity,WEST MERCIA SUPPLIES,26/01/2012,HQ009222341127, 673.53 
"Customer Services, Leisure & Libraries",Library Services,LBWE,Premises-Related Expenditure,Gas,WEST MERCIA SUPPLIES,30/01/2012,HQ00922/2345889, 681.44 
"Customer Services, Leisure & Libraries",Library Services,LLAA,Supplies & Services,Libraries Book Fund,CAPSTONE GLOBAL LIBRARY LTD,20/01/2012,KI10038652," 1,190.00 "
"Customer Services, Leisure & Libraries",Library Services,LLAA,Supplies & Services,Libraries Book Fund,AXIELL LTD,17/01/2012,600462," 1,750.00 "
"Customer Services, Leisure & Libraries",Library Services,LLAA,Supplies & Services,Libraries Book Fund,AUDIOGO LIMITED,10/01/2012,3022032, 595.85 
"Customer Services, Leisure & Libraries",Library Services,LLAA,Supplies & Services,Libraries Book Fund,BERTRAMS LIBRARY SERVICES,09/01/2012,1406581, 721.03 
"Customer Services, Leisure & Libraries",Library Services,LLAA,Supplies & Services,Libraries Book Fund,BERTRAMS LIBRARY SERVICES,27/01/2012,1422533, 667.00 
"Customer Services, Leisure & Libraries",Library Services,LLAA,Supplies & Services,Libraries Book Fund,OCLC (UK) LTD,17/01/2012,201201692," 2,267.61 "
"Customer Services, Leisure & Libraries",Library Services,LLAA,Supplies & Services,Libraries Book Fund,BERTRAMS LIBRARY SERVICES,17/01/2012,1420210, 721.57 
"Customer Services, Leisure & Libraries",Library Services,LLAA,Supplies & Services,Libraries Book Fund,BERTRAMS LIBRARY SERVICES,17/01/2012,1411579, 542.06 
"Customer Services, Leisure & Libraries",Library Services,LLAA,Supplies & Services,Libraries Book Fund,BERTRAMS LIBRARY SERVICES,17/01/2012,1412797, 758.28 
"Customer Services, Leisure & Libraries",Library Services,LLAA,Supplies & Services,Libraries Book Fund,BERTRAMS LIBRARY SERVICES,13/01/2012,1413141, 613.64 
"Customer Services, Leisure & Libraries",Library Services,LLAA,Supplies & Services,Libraries Book Fund,AUDIOGO LIMITED,13/01/2012,3075052, 602.75 
"Customer Services, Leisure & Libraries",Library Services,LLAA,Supplies & Services,Libraries Book Fund,BERTRAMS LIBRARY SERVICES,13/01/2012,1417941, 581.34 
"Customer Services, Leisure & Libraries",Library Services,LLAC,Supplies & Services,Computer Software (Maint),AXIELL LTD,25/01/2012,600003," 11,151.79 "
"Customer Services, Leisure & Libraries",Revenues & Benefits,LRAA,Employees,Agency Supply Costs,HBHC SYNERGY LTD,19/01/2012,SY106511," 4,480.00 "
"Customer Services, Leisure & Libraries",Revenues & Benefits,LRAA,Employees,Agency Supply Costs,EDEN BROWN LTD,19/01/2012,2R131384, 650.00 
"Customer Services, Leisure & Libraries",Revenues & Benefits,LRAA,Employees,Agency Supply Costs,EDEN BROWN LTD,12/01/2012,2R131173, 650.00 
"Customer Services, Leisure & Libraries",Revenues & Benefits,LRAA,Employees,Course Fees,NORTHGATE INFORMATION SOLUTIONS UK LTD,30/01/2012,91194396, 500.00 
"Customer Services, Leisure & Libraries",Revenues & Benefits,LRAA,Supplies & Services,Comp Software (Purch / Hire),OTECH LIMITED,03/01/2012,101435, 825.00 
"Customer Services, Leisure & Libraries",Revenues & Benefits,LRAA,Supplies & Services,Postages,ROYAL MAIL GROUP PLC,10/01/2012,9036841657," 3,944.83 "
"Customer Services, Leisure & Libraries",Revenues & Benefits,LRAA,Supplies & Services,Postages,ROYAL MAIL GROUP PLC,03/01/2012,9036590478," 3,302.98 "
"Customer Services, Leisure & Libraries",Revenues & Benefits,LRAA,Supplies & Services,Postages,ROYAL MAIL GROUP PLC,23/01/2012,9037095277," 2,824.19 "
"Customer Services, Leisure & Libraries",Revenues & Benefits,LRAA,Supplies & Services,Postages,ROYAL MAIL,10/01/2012,9036684219," 2,136.69 "
"Customer Services, Leisure & Libraries",Revenues & Benefits,LRAA,Supplies & Services,Postages,ROYAL MAIL GROUP PLC,30/01/2012,9037202573," 1,985.20 "
"Customer Services, Leisure & Libraries",Superintendent Registrar,LSAB,Premises-Related Expenditure,Grounds Maintenance - Cemetries,P & W MAINTENANCE CONTRACTING LTD,17/01/2012,29034," 2,459.95 "
"Customer Services, Leisure & Libraries",Superintendent Registrar,LSAB,Premises-Related Expenditure,Grounds Maintenance - Cemetries,P & W MAINTENANCE CONTRACTING LTD,17/01/2012,29035," 1,534.20 "
"Customer Services, Leisure & Libraries",Superintendent Registrar,LSAB,Premises-Related Expenditure,Grounds Maintenance - Cemetries,P & W MAINTENANCE CONTRACTING LTD,06/01/2012,28791," 1,487.40 "
"Customer Services, Leisure & Libraries",Superintendent Registrar,LSAB,Premises-Related Expenditure,Grounds Maintenance - Cemetries,P & W MAINTENANCE CONTRACTING LTD,06/01/2012,28939," 4,041.05 "
"Customer Services, Leisure & Libraries",Superintendent Registrar,LSAB,Premises-Related Expenditure,Grounds Maintenance - Cemetries,P & W MAINTENANCE CONTRACTING LTD,06/01/2012,28947," 1,991.71 "
"Customer Services, Leisure & Libraries",Superintendent Registrar,LSAB,Supplies & Services,Grants To Voluntary Organis,ST LEONARDS DCC,03/01/2012,C-YARDMAIN11-12, 667.98 
Economy & Skills,Enterprise & Employment,AEAB,Supplies & Services,Web Services,England Agency,18/01/2012,SI-1," 5,560.00 "
Economy & Skills,Enterprise & Employment,AEAC,Employees,Staff Training,Skills Funding Agency,16/01/2012,SSINV562," 1,806.26 "
Economy & Skills,Enterprise & Employment,AEAD,Supplies & Services,Web Services,England Agency,18/01/2012,SI-11003," 3,000.00 "
Economy & Skills,Enterprise & Employment,AEAD,Supplies & Services,Web Services,DESIGN:ONE LTD,16/01/2012,9910808," 4,165.00 "
Economy & Skills,Enterprise & Employment,AEAD,Supplies & Services,Web Services,DESIGN:ONE LTD,16/01/2012,9910808," 15,760.00 "
Economy & Skills,Enterprise & Employment,AEAD,Supplies & Services,Web Services,DESIGN:ONE LTD,16/01/2012,9910808," 2,115.00 "
Economy & Skills,Enterprise & Employment,AEAD,Supplies & Services,Web Services,DESIGN:ONE LTD,16/01/2012,9910808, 975.00 
Economy & Skills,Enterprise & Employment,AEAD,Supplies & Services,Web Services,DESIGN:ONE LTD,16/01/2012,9910808," 1,470.00 "
Economy & Skills,Enterprise & Employment,AEAD,Supplies & Services,Marketing & Publicity,OCEAN MEDIA GROUP LTD,20/01/2012,EXC101507,"-1,251.00 "
Economy & Skills,Enterprise & Employment,AEAD,Supplies & Services,Marketing & Publicity,HAYMARKET PUBLISHING SERVICES LTD,30/01/2012,GW109685," 1,589.95 "
Economy & Skills,Enterprise & Employment,AEAG,Supplies & Services,Web Services,England Agency,18/01/2012,SI-11004," 3,000.00 "
Economy & Skills,Enterprise & Employment,AEAG,Supplies & Services,Marketing & Publicity,HEART OF ENGLAND FINE FOODS,11/01/2012,12722," 1,315.00 "
Economy & Skills,Enterprise & Employment,AEAH,Supplies & Services,Other Services,MEETING POINT TRUST LTD,20/01/2012,11460," 44,670.00 "
Economy & Skills,Enterprise & Employment,KSAB,Employees,Staff Training,TELFORD COLLEGE ENTERPRISES LTD,03/01/2012,SI/024275, 750.00 
Economy & Skills,Lifelong Learning,ALAA,Employees,Staff Training,Service Birmingham Limited,27/01/2012,92338168," 1,000.00 "
Economy & Skills,Lifelong Learning,ALAA,Employees,Childcare Provision,CHILDCARE SOS,11/01/2012,4966, 845.80 
Economy & Skills,Lifelong Learning,ALAA,Employees,Childcare Provision,CHILDCARE SOS,10/01/2012,5075," 1,078.40 "
Economy & Skills,Lifelong Learning,ALAA,Employees,Childcare Provision,CHILDCARE SOS,10/01/2012,5075," 1,895.50 "
Economy & Skills,Lifelong Learning,ALAA,Employees,Childcare Provision,CHILDCARE SOS,10/01/2012,5017, 660.30 
Economy & Skills,Lifelong Learning,ALAA,Employees,Childcare Provision,CHILDCARE SOS,10/01/2012,5017," 1,596.70 "
Economy & Skills,Lifelong Learning,ALAF,Supplies & Services,Sub Contractors,RELATE SHROPSHIRE & HEREFORDSHIRE LTD,03/01/2012,110," 7,500.00 "
Economy & Skills,Lifelong Learning,ALAJ,Employees,Staff Training,MICRODEC PLC,20/01/2012,41957, 750.00 
Economy & Skills,Lifelong Learning,ALAK,Premises-Related Expenditure,Leasehold Rents,MARSTON'S PUBS LIMITED,13/01/2012,800558612," 2,225.00 "
Economy & Skills,Strategic Regeneration & Borough Towns Initiative,ASAB,Supplies & Services,Other Services,TELFORD & WREKIN SERVICES LTD,11/01/2012,37795," 1,755.00 "
Environmental Services,Engineering Services,ESAA,Supplies & Services,Web Services,FSW Information Technology Solutions,11/01/2012,FSWI1BS-TEL001," 2,000.00 "
Environmental Services,Engineering Services,ESAA,Supplies & Services,Bridge Station subscription renewal,SALA INTERNATIONAL LTD,19/01/2012,SI001723," 2,466.00 "
Environmental Services,Engineering Services,ESAA,Supplies & Services,Scanning of GI reports for archiving,WENLOCK HEALTH & SAFETY LTD,06/01/2012,WHS/11-5593, 641.40 
Environmental Services,Engineering Services,ESAB,Supplies & Services,Training Course,WEST MERCIA SUPPLIES,17/01/2012,HQ009222280178," 1,103.75 "
Environmental Services,Engineering Services,ESAB,Supplies & Services,Electricity at Stoney Hill ,WEST MERCIA SUPPLIES,17/01/2012,HQ009222327535," 1,249.91 "
Environmental Services,Engineering Services,ESAB,Supplies & Services,Electricity at Stoney Hill ,BIOGAS TECHNOLOGY LIMITED,17/01/2012,12384," 2,656.69 "
Environmental Services,Engineering Services,ESAB,Supplies & Services,Removal of leachate,BIOGAS TECHNOLOGY LIMITED,17/01/2012,12435," 2,656.69 "
Environmental Services,Engineering Services,ESAB,Supplies & Services,Removal of leachate,M S & E M PATRICK LIMITED,17/01/2012,4265, 594.64 
Environmental Services,Engineering Services,ESAC,Premises-Related Expenditure,Removal of leachate,K & M CONSTRUCTION LTD,20/01/2012,290/130112," 4,344.15 "
Environmental Services,Engineering Services,ESAC,Premises-Related Expenditure,R&M WC Planned Bridges work,K & M CONSTRUCTION LTD,20/01/2012,289/130112, 588.20 
Environmental Services,Engineering Services,ESAC,Premises-Related Expenditure,R&M WC Planned Bridges work,K & M CONSTRUCTION LTD,17/01/2012,AKP/MME," 4,007.27 "
Environmental Services,Engineering Services,ESAC,Premises-Related Expenditure,R&M WC Planned Bridges work,K & M CONSTRUCTION LTD,18/01/2012,275/120112," 1,013.90 "
Environmental Services,Engineering Services,ESAC,Premises-Related Expenditure,R&M WC Planned Bridges work,K & M CONSTRUCTION LTD,17/01/2012,287/120112, 535.05 
Environmental Services,Engineering Services,ESAE,Supplies & Services,R&M WC Planned Bridges work,K & M CONSTRUCTION LTD,19/01/2012,272/090112," 2,272.28 "
Environmental Services,Engineering Services,ESAF,Supplies & Services,Other Expenses,TELFORD & WREKIN SERVICES LTD,09/01/2012,37834, 650.00 
Environmental Services,Engineering Services,WEAG,Capital Expenditure,Payments to Contractor,MCPHILLIPS (WELLINGTON) LTD,27/01/2012,TEL-048/VLH/Y1243," 51,807.49 "
Environmental Services,Engineering Services,WEAG,Capital Expenditure,Payments to Contractor,BENEFIL (UK) LTD,06/01/2012,1173," 13,127.00 "
Environmental Services,Engineering Services,WEAG,Capital Expenditure,Payments to Contractor,Forkers Ltd,23/01/2012,20552," 23,888.83 "
Environmental Services,Engineering Services,WEAG,Capital Expenditure,Community Safety,TRAFFIC & COMMERCIAL SIGNS LTD,03/01/2012,9580," 1,222.00 "
Environmental Services,Engineering Services,WEAS,Capital Expenditure,Payments to Contractor,MARWOOD ELECTRICAL CO LTD,06/01/2012,170909," 14,664.24 "
Environmental Services,Environment & Open Space,DDAM,Supplies & Services,Other Grants (Expenses),RAMPMENTAL LTD,03/01/2012,Correct CIS 0955," 5,543.20 "
Environmental Services,Environment & Open Space,DDAM,Supplies & Services,Other Grants (Expenses),RAMPMENTAL LTD,03/01/2012,Correct CIS 0955," 10,456.80 "
Environmental Services,Environment & Open Space,DDAM,Supplies & Services,Other Grants (Expenses),RAMPMENTAL LTD,03/01/2012,Credit CIS 0955,"-16,000.00 "
Environmental Services,Environment & Open Space,ECAA,Supplies & Services,Bulk Refuse Contracts Purch,UK CONTAINER MAINTENANCE LIMITED,26/01/2012,12171," 1,450.00 "
Environmental Services,Environment & Open Space,ECAA,Supplies & Services,Bulk Refuse Contracts Purch,UK CONTAINER MAINTENANCE LIMITED,26/01/2012,12171," 1,700.00 "
Environmental Services,Environment & Open Space,ECAA,Supplies & Services,Bulk Refuse Contracts Purch,UK CONTAINER MAINTENANCE LIMITED,26/01/2012,12171," 1,375.00 "
Environmental Services,Environment & Open Space,ECAA,Supplies & Services,Bulk Refuse Contracts Purch,CRAEMER UK LTD,26/01/2012,1621027," 1,890.00 "
Environmental Services,Environment & Open Space,ECAF,Supplies & Services,Other Services,HILBRAE PETS HOTEL,25/01/2012,STRAYDOGACCOUNTDec11," 2,333.00 "
Environmental Services,Environment & Open Space,ECAF,Supplies & Services,Other Services,HILBRAE PETS HOTEL,25/01/2012,trayDogAccountNovember201," 2,558.09 "
Environmental Services,Environment & Open Space,ECAF,Supplies & Services,Other Services,HILBRAE PETS HOTEL,25/01/2012,VetsNowEmergencyTelford, 504.91 
Environmental Services,Environment & Open Space,ECAH,Third Party Payments,DSO Contractor Recharge,TELFORD & WREKIN SERVICES LTD,23/01/2012,37910," 94,116.82 "
Environmental Services,Environment & Open Space,EEAB,Employees,Staff Training,Cannock Chase Training Centre,31/01/2012,101095," 8,235.00 "
Environmental Services,Environment & Open Space,EEAB,Supplies & Services,Other Materials,M12 ENGINEERING LTD,23/01/2012,1646, 700.00 
Environmental Services,Environment & Open Space,EEAB,Supplies & Services,Stationery,SIGNS EXPRESS (TELFORD),05/01/2012,13426, 708.00 
Environmental Services,Environment & Open Space,EEAB,Supplies & Services,Sub Contractors,WEST MIDLANDS COUNCILS,25/01/2012,429, 500.00 
Environmental Services,Environment & Open Space,EEAE,Supplies & Services,Other Materials,DARLINGTON BOROUGH COUNCIL,16/01/2012,1984540," 12,747.74 "
Environmental Services,Environment & Open Space,EEBA,Premises-Related Expenditure,R&M -Buildings DLO Charge,K & M CONSTRUCTION LTD,20/01/2012,271/090112, 507.37 
Environmental Services,Environment & Open Space,EEBK,Premises-Related Expenditure,R&M -Buildings DLO Charge,SALT UNION LTD,11/01/2012,419189," 8,606.33 "
Environmental Services,Environment & Open Space,EEBK,Premises-Related Expenditure,R&M -Buildings DLO Charge,SALT UNION LTD,11/01/2012,418923," 6,499.59 "
Environmental Services,Environment & Open Space,EEBR,Supplies & Services,Computer Software (Maint),PITNEY BOWES SOFTWARE LTD,17/01/2012,IN194122," 14,136.58 "
Environmental Services,Environment & Open Space,EPAC,Premises-Related Expenditure,Water Rates,SEVERN TRENT WATER LTD,12/01/2012,8310035255DEC11, 535.04 
Environmental Services,Environment & Open Space,EPAC,Premises-Related Expenditure,Water Rates,SEVERN TRENT WATER LTD,12/01/2012,8310038859NOV11, 730.00 
Environmental Services,Environment & Open Space,EPAC,Premises-Related Expenditure,Water Rates,SEVERN TRENT WATER LTD,06/01/2012,8310038859/NOV11, 730.00 
Environmental Services,Environment & Open Space,EPAE,Premises-Related Expenditure,Planned Repairs,SP HOLDING TRACTOR HIRE LTD,18/01/2012,22767," 1,615.00 "
Environmental Services,Environment & Open Space,EPAF,Premises-Related Expenditure,R&M - Mechanical,PORTAKABIN LTD,03/01/2012,900577545," 1,728.97 "
Environmental Services,Environment & Open Space,EPAF,Premises-Related Expenditure,Water Rates,SEVERN TRENT WATER LTD,06/01/2012,805076992," 5,949.68 "
Environmental Services,Environment & Open Space,EPAF,Supplies & Services,Equipment - Hire,PORTAKABIN LTD,20/01/2012,900580868," 1,728.97 "
Environmental Services,Environment & Open Space,EPAF,Supplies & Services,Other Materials,CANNON HYGIENE LTD,24/01/2012,CN17941175, 958.23 
Environmental Services,Environment & Open Space,EPAF,Supplies & Services,Sub Contractors,DARLINGTON BOROUGH COUNCIL,16/01/2012,1984540," 4,815.49 "
Environmental Services,Environment & Open Space,EPAF,Supplies & Services,Security Services,BUSINESS WATCH GUARDING LIMITED,04/01/2012,8190, 592.60 
Environmental Services,Environment & Open Space,EPAF,Supplies & Services,Security Services,BUSINESS WATCH GUARDING LIMITED,11/01/2012,8205," 2,194.08 "
Environmental Services,Environment & Open Space,EPAF,Supplies & Services,Security Services,BUSINESS WATCH GUARDING LIMITED,25/01/2012,8390," 1,510.18 "
Environmental Services,Environment & Open Space,EPAF,Supplies & Services,Supportive Lodgings,SEVERN TRENT WATER LTD,24/01/2012,989094330," 2,709.26 "
Environmental Services,Environment & Open Space,EPAF,Supplies & Services,Co-Co General,SIGNS EXPRESS (TELFORD),05/01/2012,13425, 995.67 
Environmental Services,Environment & Open Space,EPAF,Supplies & Services,Co-Co General,SIGNS EXPRESS (TELFORD),16/01/2012,13464," 1,493.50 "
Environmental Services,Environment & Open Space,EWAE,Supplies & Services,Other Materials,SITA UK,04/01/2012,27036249," 9,305.51 "
Environmental Services,Environment & Open Space,EWAE,Supplies & Services,Other Materials,SITA UK,19/01/2012,28035855," 1,624.79 "
Environmental Services,Environment & Open Space,EWAE,Supplies & Services,Highways Equipment,SITA UK,04/01/2012,27036250," 15,634.23 "
Environmental Services,Environment & Open Space,EWAE,Supplies & Services,Highways Equipment,SITA UK,18/01/2012,28035857," 13,319.77 "
Environmental Services,Environment & Open Space,EWAE,Supplies & Services,Other Services,SITA UK,18/01/2012,28035858," 52,854.14 "
Environmental Services,Environment & Open Space,EWAE,Supplies & Services,Other Services,SITA UK,04/01/2012,27036251," 47,467.94 "
Environmental Services,Environment & Open Space,EWAE,Supplies & Services,Service Contracts,SITA UK,18/01/2012,28035858," 219,689.26 "
Environmental Services,Environment & Open Space,EWAE,Supplies & Services,Service Contracts,SITA UK,04/01/2012,27036251," 196,206.01 "
Environmental Services,Environment & Open Space,EWAE,Supplies & Services,Service Contracts,AQUA FORCE SPECIAL WASTE LTD,18/01/2012,19982, 955.00 
Environmental Services,Environment & Open Space,EWAE,Supplies & Services,Service Contracts,SITA UK,18/01/2012,28035856, 584.33 
Environmental Services,Environment & Open Space,EWAE,Supplies & Services,Service Contracts,AQUA FORCE SPECIAL WASTE LTD,27/01/2012,20060," 1,120.00 "
Environmental Services,Environment & Open Space,EWAE,Supplies & Services,Comp Hardware (Purch / Hire),SITA UK,04/01/2012,27036249, 676.26 
Environmental Services,Environment & Open Space,WEAJ,Capital Expenditure,Payments to Contractor,DINGLE NURSERIES,04/01/2012,72279," 1,153.65 "
Environmental Services,Environment & Open Space,WEAJ,Capital Expenditure,Payments to Contractor,DINGLE NURSERIES,20/01/2012,73188," 1,755.00 "
Environmental Services,Environment & Open Space,WEAJ,Capital Expenditure,Payments to Contractor,LUBBE & SONS (BULBS)LTD,04/01/2012,11870," 1,585.00 "
Environmental Services,Environment & Open Space,WEAJ,Capital Expenditure,Payments to Contractor,RAMPMENTAL LTD,25/01/2012,0862 Reissue," 2,901.30 "
Environmental Services,Environment & Open Space,WEAJ,Capital Expenditure,Payments to Contractor,RAMPMENTAL LTD,25/01/2012,0862 Reissue," 2,999.70 "
Environmental Services,Environment & Open Space,WEAJ,Capital Expenditure,Payments to Contractor,BONINGALE NURSERIES,06/01/2012,330037, 553.55 
Environmental Services,Environment & Open Space,WEAJ,Capital Expenditure,Payments to Contractor,RAMPMENTAL LTD,25/01/2012,0862Credit REF: Stopped Cheque,"-2,901.30 "
Environmental Services,Environment & Open Space,WEAJ,Capital Expenditure,Payments to Contractor,RAMPMENTAL LTD,25/01/2012,0862Credit REF: Stopped Cheque,"-2,999.70 "
Environmental Services,Environment & Open Space,WEAJ,Capital Expenditure,Payments to Contractor,RAMPMENTAL LTD,16/01/2012,C034986," 2,901.30 "
Environmental Services,Environment & Open Space,WEAJ,Capital Expenditure,Payments to Contractor,RAMPMENTAL LTD,16/01/2012,0862A," 2,999.70 "
Environmental Services,Environment & Open Space,WEAK,Capital Expenditure,Payments to Contractor,TELFORD & WREKIN SERVICES LTD,09/01/2012,37822," 8,986.00 "
Environmental Services,Environment & Open Space,WEAK,Capital Expenditure,Payments to Contractor,TELFORD & WREKIN SERVICES LTD,09/01/2012,37814," 1,480.00 "
Environmental Services,Environment & Open Space,WEAK,Capital Expenditure,Payments to Contractor,TELFORD & WREKIN SERVICES LTD,09/01/2012,37815," 3,126.00 "
Environmental Services,Environment & Open Space,WEAK,Capital Expenditure,Payments to Contractor,WICKSTEED LEISURE LTD,24/01/2012,DU9873," 45,000.00 "
Environmental Services,Environment & Open Space,WEAK,Capital Expenditure,Payments to Contractor,TELFORD & WREKIN SERVICES LTD,12/01/2012,37745," 1,966.00 "
Environmental Services,Environment & Open Space,WEAK,Capital Expenditure,Payments to Contractor,WICKSTEED LEISURE LTD,23/01/2012,707497, 930.93 
Environmental Services,Environment & Open Space,WEAK,Capital Expenditure,Payments to Contractor,TELFORD & WREKIN SERVICES LTD,11/01/2012,37820," 2,346.00 "
Environmental Services,Environment & Open Space,WEAK,Capital Expenditure,Payments to Contractor,TELFORD & WREKIN SERVICES LTD,13/01/2012,37818," 6,762.00 "
Environmental Services,Environment & Open Space,WEAK,Capital Expenditure,Payments to Contractor,TELFORD & WREKIN SERVICES LTD,13/01/2012,37819," 3,682.02 "
Environmental Services,Environment & Open Space,WEAK,Capital Expenditure,Payments to Contractor,TELFORD & WREKIN SERVICES LTD,09/01/2012,37816," 5,594.34 "
Environmental Services,Environment & Open Space,WEAK,Capital Expenditure,Payments to Contractor,TELFORD & WREKIN SERVICES LTD,09/01/2012,37817," 3,879.30 "
Environmental Services,Environment & Open Space,WEAK,Capital Expenditure,Payments to Contractor,TELFORD & WREKIN SERVICES LTD,09/01/2012,37821, 500.00 
Environmental Services,Environment & Open Space,WEAL,Capital Expenditure,Legal Fees,KNIGHT SOLICITORS LLP,27/01/2012,352738," 6,341.60 "
Environmental Services,Environment & Open Space,WEPA,Capital Expenditure,Payments to Contractor,K & M CONSTRUCTION LTD,20/01/2012,278/221211," 1,594.00 "
Environmental Services,Environment & Open Space,WEPA,Capital Expenditure,Payments to Contractor,FITZGERALD CONTRACTORS LTD,31/01/2012,17219," 136,787.62 "
Environmental Services,Environment & Open Space,WEPA,Capital Expenditure,Payments to Contractor,FITZGERALD CONTRACTORS LTD,18/01/2012,17241," 51,904.01 "
Environmental Services,Environment & Open Space,WEPA,Premises-Related Expenditure,Planned Repairs,CONSERVATION BUILDING SERVICES LTD,12/01/2012,1287," 16,955.22 "
Environmental Services,Environment & Open Space,WEPA,Premises-Related Expenditure,Grounds Maintenance - Other,TELFORD & WREKIN SERVICES LTD,12/01/2012,37730, 800.00 
Environmental Services,Environment & Open Space,WEPA,Supplies & Services,Research Surveys,NEXUS HERITAGE,12/01/2012,195," 1,745.63 "
Environmental Services,Environment & Open Space,WEPB,Employees,Training Exp's (Facilitators),URS/Scott Wilson Ltd,25/01/2012,4931929," 1,450.00 "
Environmental Services,Highways & Transport,EHAC,Supplies & Services,Consultants Fees,K & M CONSTRUCTION LTD,17/01/2012,261/091211," 27,919.34 "
Environmental Services,Highways & Transport,EHAD,Supplies & Services,Consultants Fees,JACOBS ENGINEERING UK LIMITED,17/01/2012,BP07115," 54,813.59 "
Environmental Services,Highways & Transport,EHAD,Supplies & Services,Consultants Fees,JACOBS ENGINEERING UK LIMITED,17/01/2012,BPO7101," 57,870.12 "
Environmental Services,Highways & Transport,EHAD,Supplies & Services,Consultants Fees,JACOBS ENGINEERING UK LIMITED,17/01/2012,BP07113," 35,000.00 "
Environmental Services,Highways & Transport,EHAM,Premises-Related Expenditure,Ad-hoc Maintenance,PRYSMIAN CABLES & SYSTEMS LTD,04/01/2012,IN00016344," 39,435.00 "
Environmental Services,Highways & Transport,EHAM,Premises-Related Expenditure,Ad-hoc Maintenance,PRYSMIAN CABLES & SYSTEMS LTD,17/01/2012,IN00016247, 765.76 
Environmental Services,Highways & Transport,EHAM,Premises-Related Expenditure,Ad-hoc Maintenance,PRYSMIAN CABLES & SYSTEMS LTD,17/01/2012,IN00016247," 2,042.69 "
Environmental Services,Highways & Transport,EHAM,Premises-Related Expenditure,Ad-hoc Maintenance,PRYSMIAN CABLES & SYSTEMS LTD,17/01/2012,IN00016247, 619.10 
Environmental Services,Highways & Transport,EHAS,Premises-Related Expenditure,R&M -Building Other,BRITISH TELECOMMUNICATIONS PLC,05/01/2012,VP45988470Q01001," 3,813.01 "
Environmental Services,Highways & Transport,EHAS,Premises-Related Expenditure,R&M MEB Contract Maintenance,PEEK TRAFFIC LTD,04/01/2012,11007907Ul," 12,433.70 "
Environmental Services,Highways & Transport,EHBC,Premises-Related Expenditure,Ad-hoc Maintenance,CENTRAL NETWORKS,06/01/2012,380326319, 604.08 
Environmental Services,Highways & Transport,EHBC,Premises-Related Expenditure,Ad-hoc Maintenance,CENTRAL NETWORKS,06/01/2012,380328764, 596.34 
Environmental Services,Highways & Transport,EHBC,Premises-Related Expenditure,Electricity,WEST MERCIA SUPPLIES,06/01/2012,HQ009222325116," 116,062.80 "
Environmental Services,Highways & Transport,EHBC,Premises-Related Expenditure,Electricity,WEST MERCIA SUPPLIES,06/01/2012,HQ009222308255," 105,912.27 "
Environmental Services,Highways & Transport,EHBE,Premises-Related Expenditure,R&M -Buildings DLO Charge,K & M CONSTRUCTION LTD,26/01/2012,194-171011, 864.15 
Environmental Services,Highways & Transport,EHBE,Supplies & Services,Other Services,SECURITY PLUS LIMITED,20/01/2012,348080, 685.71 
Environmental Services,Highways & Transport,EHBM,Third Party Payments,Private Contractors,TELFORD & WREKIN SERVICES LTD,23/01/2012,37911," 160,280.50 "
Environmental Services,Highways & Transport,EHBM,Third Party Payments,Private Contractors,TELFORD & WREKIN SERVICES LTD,23/01/2012,37912," 762,764.09 "
Environmental Services,Highways & Transport,ETAA,Supplies & Services,Printing - Print Room,ROYAL MAIL GROUP PLC,18/01/2012,9036860161," 1,165.92 "
Environmental Services,Highways & Transport,ETAA,Supplies & Services,Concessionary Travel,ARRIVA MIDLANDS NORTH LIMITED,04/01/2012,104231," 128,161.20 "
Environmental Services,Highways & Transport,ETAB,Premises-Related Expenditure,R&M -Building Other,DTZ CLIENT ACC RE:COMMON RECEIPTS NAT,06/01/2012,T400665," 4,500.00 "
Environmental Services,Highways & Transport,ETAB,Premises-Related Expenditure,Electricity,WEST MERCIA SUPPLIES,26/01/2012,HQ009222340917, 510.20 
Environmental Services,Highways & Transport,ETAB,Premises-Related Expenditure,Contract Cleaning,OCEAN CONTRACT CLEANING LTD,30/01/2012,35168," 3,321.46 "
Environmental Services,Highways & Transport,ETAB,Premises-Related Expenditure,Contract Cleaning,OCEAN CONTRACT CLEANING LTD,04/01/2012,34694," 3,321.46 "
Environmental Services,Highways & Transport,ETAB,Premises-Related Expenditure,Contract Cleaning,OCEAN CONTRACT CLEANING LTD,04/01/2012,34930," 3,321.46 "
Environmental Services,Highways & Transport,ETAB,Supplies & Services,Hygiene Products,CANNON HYGIENE LTD,06/01/2012,CN17905263, 573.57 
Environmental Services,Highways & Transport,ETAB,Supplies & Services,Telephones,BRITISH TELECOMMUNICATIONS PLC,18/01/2012,GB1193/1109/CR,"-1,205.75 "
Environmental Services,Highways & Transport,ETAD,Transport-Related Expenditure,Bus Tickets,NATIONAL EXPRESS LTD,05/01/2012,AREXT/00118724," 3,473.10 "
Environmental Services,Highways & Transport,ETAE,Transport-Related Expenditure,Games Transport,A.T. BROWN (COACHES) LTD,05/01/2012,22806, 645.15 
Environmental Services,Highways & Transport,ETAE,Transport-Related Expenditure,Games Transport,A.T. BROWN (COACHES) LTD,05/01/2012,22777, 645.15 
Environmental Services,Highways & Transport,ETAE,Transport-Related Expenditure,Contract Hire,M H ELCOCK & SON LTD T/A ELCOCK REISEN,11/01/2012,19318," 2,795.28 "
Environmental Services,Highways & Transport,ETAE,Transport-Related Expenditure,Contract Hire,M H ELCOCK & SON LTD T/A ELCOCK REISEN,11/01/2012,19319," 2,422.56 "
Environmental Services,Highways & Transport,ETAE,Transport-Related Expenditure,Contract Hire,M H ELCOCK & SON LTD T/A ELCOCK REISEN,11/01/2012,19317," 3,105.84 "
Environmental Services,Highways & Transport,ETAE,Transport-Related Expenditure,Contract Hire,M H ELCOCK & SON LTD T/A ELCOCK REISEN,11/01/2012,19333, 621.12 
Environmental Services,Highways & Transport,ETAE,Transport-Related Expenditure,Contract Hire,M H ELCOCK & SON LTD T/A ELCOCK REISEN,11/01/2012,19317," 3,105.84 "
Environmental Services,Highways & Transport,ETAE,Transport-Related Expenditure,Contract Hire,CENTRAL TAXIS LTD SHREWSBURY,12/01/2012,12474," 1,798.50 "
Environmental Services,Highways & Transport,ETAE,Transport-Related Expenditure,Contract Hire,CENTRAL TAXIS LTD SHREWSBURY,12/01/2012,3067," 2,316.00 "
Environmental Services,Highways & Transport,ETAE,Transport-Related Expenditure,Contract Hire,EXPRESS TRAVEL,11/01/2012,1020311," 1,346.40 "
Environmental Services,Highways & Transport,ETAE,Transport-Related Expenditure,Contract Hire,COUNTY CARS,30/01/2012,985, 501.60 
Environmental Services,Highways & Transport,ETAE,Transport-Related Expenditure,Contract Hire,CENTRAL TAXIS LTD SHREWSBURY,26/01/2012,3096, 680.00 
Environmental Services,Highways & Transport,ETAE,Transport-Related Expenditure,Contract Hire,EXPRESS DRIVEN,09/01/2012,TWC/BS/01530," 1,402.80 "
Environmental Services,Highways & Transport,ETAE,Transport-Related Expenditure,Contract Hire,ULTIMATE TAXIS LTD,11/01/2012,3067, 652.83 
Environmental Services,Highways & Transport,ETAE,Transport-Related Expenditure,Contract Hire,KLM TRAVEL,11/01/2012,26," 1,222.56 "
Environmental Services,Highways & Transport,ETAE,Transport-Related Expenditure,Contract Hire,EXPRESS DRIVEN,09/01/2012,TWC/BS/01532," 2,264.40 "
Environmental Services,Highways & Transport,ETAE,Transport-Related Expenditure,Contract Hire,EXPRESS TRAVEL,10/01/2012,109019, 979.20 
Environmental Services,Highways & Transport,ETAE,Transport-Related Expenditure,Contract Hire,EXPRESS DRIVEN,10/01/2012,TWC/BS/01529," 1,371.60 "
Environmental Services,Highways & Transport,ETAE,Transport-Related Expenditure,Contract Hire,RIVERSIDE COACHWAYS,30/01/2012,6801," 3,060.00 "
Environmental Services,Highways & Transport,ETAE,Transport-Related Expenditure,Contract Hire,COUNTY CARS,10/01/2012,977," 1,506.00 "
Environmental Services,Highways & Transport,ETAE,Transport-Related Expenditure,Contract Hire,CENTRAL TAXIS LTD SHREWSBURY,30/01/2012,3617, 702.00 
Environmental Services,Highways & Transport,ETAE,Transport-Related Expenditure,Contract Hire,DIAMOND CARS (TELFORD) LTD,05/01/2012,11774," 1,272.96 "
Environmental Services,Highways & Transport,ETAE,Transport-Related Expenditure,Contract Hire,DIAMOND CARS (TELFORD) LTD,05/01/2012,11771," 1,272.96 "
Environmental Services,Highways & Transport,ETAE,Transport-Related Expenditure,Contract Hire,CENTRAL TAXIS LTD SHREWSBURY,05/01/2012,3635, 858.00 
Environmental Services,Highways & Transport,ETAE,Transport-Related Expenditure,Contract Hire,RIVERSIDE COACHWAYS,11/01/2012,6842," 1,836.00 "
Environmental Services,Highways & Transport,ETAE,Transport-Related Expenditure,Contract Hire,CENTRAL TAXIS LTD SHREWSBURY,09/01/2012,3659, 511.00 
Environmental Services,Highways & Transport,ETAE,Transport-Related Expenditure,Contract Hire,COMMUNITY MOBILITY TRANSPORT,09/01/2012,5809," 2,290.46 "
Environmental Services,Highways & Transport,ETAE,Transport-Related Expenditure,Contract Hire,COMMUNITY MOBILITY TRANSPORT,09/01/2012,5809, 552.05 
Environmental Services,Highways & Transport,ETAE,Transport-Related Expenditure,Contract Hire,DIAMOND CARS (TELFORD) LTD,10/01/2012,11786, 734.40 
Environmental Services,Highways & Transport,ETAE,Transport-Related Expenditure,Contract Hire,DIAMOND CARS (TELFORD) LTD,10/01/2012,11785, 925.20 
Environmental Services,Highways & Transport,ETAE,Transport-Related Expenditure,Contract Hire,DIAMOND CARS (TELFORD) LTD,26/01/2012,11815, 624.24 
Environmental Services,Highways & Transport,ETAE,Transport-Related Expenditure,Contract Hire,NSL Limited t/a Patient First Group,09/01/2012,4386," 1,145.98 "
Environmental Services,Highways & Transport,ETAE,Transport-Related Expenditure,Contract Hire,NSL Limited t/a Patient First Group,10/01/2012,4418," 1,861.20 "
Environmental Services,Highways & Transport,ETAE,Transport-Related Expenditure,Contract Hire,DIAMOND CARS (TELFORD) LTD,11/01/2012,11772," 1,211.76 "
Environmental Services,Highways & Transport,ETAE,Transport-Related Expenditure,Contract Hire,M H ELCOCK & SON LTD T/A ELCOCK REISEN,09/01/2012,19236," 6,196.05 "
Environmental Services,Highways & Transport,ETAE,Transport-Related Expenditure,Contract Hire,COUNTY CARS,10/01/2012,971, 539.00 
Environmental Services,Highways & Transport,ETAE,Transport-Related Expenditure,Contract Hire,COUNTY CARS,10/01/2012,971, 539.00 
Environmental Services,Highways & Transport,ETAE,Transport-Related Expenditure,Contract Hire,A.T. BROWN (COACHES) LTD,10/01/2012,40847," 2,692.88 "
Environmental Services,Highways & Transport,ETAE,Transport-Related Expenditure,Contract Hire,A.T. BROWN (COACHES) LTD,10/01/2012,40847, 791.40 
Environmental Services,Highways & Transport,ETAE,Transport-Related Expenditure,Contract Hire,NSL Limited t/a Patient First Group,09/01/2012,4393, 519.51 
Environmental Services,Highways & Transport,ETAE,Transport-Related Expenditure,Contract Hire,CENTRAL TAXIS LTD SHREWSBURY,05/01/2012,3613," 1,392.30 "
Environmental Services,Highways & Transport,ETAE,Transport-Related Expenditure,Contract Hire,CENTRAL TAXIS LTD SHREWSBURY,05/01/2012,3612, 899.64 
Environmental Services,Highways & Transport,ETAE,Transport-Related Expenditure,Contract Hire,A.T. BROWN (COACHES) LTD,05/01/2012,22806," 4,316.22 "
Environmental Services,Highways & Transport,ETAE,Transport-Related Expenditure,Contract Hire,A.T. BROWN (COACHES) LTD,05/01/2012,22806," 2,119.95 "
Environmental Services,Highways & Transport,ETAE,Transport-Related Expenditure,Contract Hire,A.T. BROWN (COACHES) LTD,05/01/2012,22806," 1,342.47 "
Environmental Services,Highways & Transport,ETAE,Transport-Related Expenditure,Contract Hire,A.T. BROWN (COACHES) LTD,05/01/2012,22806, 965.16 
Environmental Services,Highways & Transport,ETAE,Transport-Related Expenditure,Contract Hire,M H ELCOCK & SON LTD T/A ELCOCK REISEN,05/01/2012,19208," 5,435.22 "
Environmental Services,Highways & Transport,ETAE,Transport-Related Expenditure,Contract Hire,M H ELCOCK & SON LTD T/A ELCOCK REISEN,05/01/2012,19208," 5,435.22 "
Environmental Services,Highways & Transport,ETAE,Transport-Related Expenditure,Contract Hire,ARRIVA MIDLANDS NORTH LIMITED,10/01/2012,104285," 3,600.00 "
Environmental Services,Highways & Transport,ETAE,Transport-Related Expenditure,Contract Hire,CENTRAL TAXIS LTD SHREWSBURY,30/01/2012,3905, 504.00 
Environmental Services,Highways & Transport,ETAE,Transport-Related Expenditure,Contract Hire,CENTRAL TAXIS LTD SHREWSBURY,10/01/2012,3651," 1,354.00 "
Environmental Services,Highways & Transport,ETAE,Transport-Related Expenditure,Contract Hire,CENTRAL TAXIS LTD SHREWSBURY,10/01/2012,3651, 681.00 
Environmental Services,Highways & Transport,ETAE,Transport-Related Expenditure,Contract Hire,DIAMOND CARS (TELFORD) LTD,10/01/2012,11773," 1,224.00 "
Environmental Services,Highways & Transport,ETAE,Transport-Related Expenditure,Contract Hire,DIAMOND CARS (TELFORD) LTD,10/01/2012,11770," 1,272.96 "
Environmental Services,Highways & Transport,ETAE,Transport-Related Expenditure,Contract Hire,M H ELCOCK & SON LTD T/A ELCOCK REISEN,05/01/2012,19209," 5,124.68 "
Environmental Services,Highways & Transport,ETAE,Transport-Related Expenditure,Contract Hire,DIAMOND CARS (TELFORD) LTD,10/01/2012,11768, 875.16 
Environmental Services,Highways & Transport,ETAE,Transport-Related Expenditure,Contract Hire,COUNTY CARS,10/01/2012,970, 957.60 
Environmental Services,Highways & Transport,ETAE,Transport-Related Expenditure,Contract Hire,DIAMOND CARS (TELFORD) LTD,10/01/2012,11769," 1,052.64 "
Environmental Services,Highways & Transport,ETAE,Transport-Related Expenditure,Contract Hire,CENTRAL TAXIS LTD SHREWSBURY,05/01/2012,3609, 522.68 
Environmental Services,Highways & Transport,ETAE,Transport-Related Expenditure,Contract Hire,CENTRAL TAXIS LTD SHREWSBURY,10/01/2012,3594, 595.12 
Environmental Services,Highways & Transport,ETAE,Transport-Related Expenditure,Contract Hire,CENTRAL TAXIS LTD SHREWSBURY,10/01/2012,3678, 840.00 
Environmental Services,Highways & Transport,ETAE,Transport-Related Expenditure,Contract Hire,M H ELCOCK & SON LTD T/A ELCOCK REISEN,05/01/2012,19235," 1,138.72 "
Environmental Services,Highways & Transport,ETAE,Transport-Related Expenditure,Contract Hire,CENTRAL TAXIS LTD SHREWSBURY,05/01/2012,3629, 604.00 
Environmental Services,Highways & Transport,ETAE,Transport-Related Expenditure,Contract Hire,EXPRESS TRAVEL,05/01/2012,107021, 825.00 
Environmental Services,Highways & Transport,ETAE,Transport-Related Expenditure,Contract Hire,CENTRAL TAXIS LTD SHREWSBURY,24/01/2012,3901, 856.80 
Environmental Services,Highways & Transport,ETAE,Transport-Related Expenditure,Contract Hire,NSL Limited t/a Patient First Group,09/01/2012,4408, 560.94 
Environmental Services,Highways & Transport,ETAE,Transport-Related Expenditure,Contract Hire,NSL Limited t/a Patient First Group,11/01/2012,4614, 871.20 
Environmental Services,Highways & Transport,ETAE,Transport-Related Expenditure,Contract Hire,M H ELCOCK & SON LTD T/A ELCOCK REISEN,11/01/2012,19334," 3,245.55 "
Environmental Services,Highways & Transport,ETAE,Transport-Related Expenditure,Contract Hire,CENTRAL TAXIS LTD SHREWSBURY,17/01/2012,3898, 586.50 
Environmental Services,Highways & Transport,ETAE,Transport-Related Expenditure,Contract Hire,SHAWS TRAVEL LTD,11/01/2012,173," 1,254.60 "
Environmental Services,Highways & Transport,ETAE,Transport-Related Expenditure,Contract Hire,SHAWS TRAVEL LTD,11/01/2012,172," 1,162.80 "
Environmental Services,Highways & Transport,ETAE,Transport-Related Expenditure,Contract Hire,SHAWS TRAVEL LTD,11/01/2012,171," 1,199.52 "
Environmental Services,Highways & Transport,ETAE,Transport-Related Expenditure,Contract Hire,SHAWS TRAVEL LTD,11/01/2012,170," 1,077.12 "
Environmental Services,Highways & Transport,ETAE,Transport-Related Expenditure,Contract Hire,DIAMOND CARS (TELFORD) LTD,11/01/2012,11814," 1,430.40 "
Environmental Services,Highways & Transport,ETAE,Transport-Related Expenditure,Contract Hire,ULTIMATE TAXIS LTD,11/01/2012,3068, 822.60 
Environmental Services,Highways & Transport,ETAE,Transport-Related Expenditure,Contract Hire,CENTRAL TAXIS LTD SHREWSBURY,10/01/2012,3604, 604.32 
Environmental Services,Highways & Transport,ETAE,Transport-Related Expenditure,Contract Hire,A.T. BROWN (COACHES) LTD,10/01/2012,22711," 2,044.12 "
Environmental Services,Highways & Transport,ETAE,Transport-Related Expenditure,Contract Hire,A.T. BROWN (COACHES) LTD,10/01/2012,22711," 1,785.81 "
Environmental Services,Highways & Transport,ETAE,Transport-Related Expenditure,Contract Hire,A.T. BROWN (COACHES) LTD,10/01/2012,22711, 525.72 
Environmental Services,Highways & Transport,ETAE,Transport-Related Expenditure,Contract Hire,A.T. BROWN (COACHES) LTD,06/01/2012,22732, 536.99 
Environmental Services,Highways & Transport,ETAE,Transport-Related Expenditure,Contract Hire,A.T. BROWN (COACHES) LTD,06/01/2012,22732," 1,691.99 "
Environmental Services,Highways & Transport,ETAE,Transport-Related Expenditure,Contract Hire,A.T. BROWN (COACHES) LTD,06/01/2012,22732, 710.00 
Environmental Services,Highways & Transport,ETAE,Transport-Related Expenditure,Contract Hire,DIAMOND CARS (TELFORD) LTD,11/01/2012,11777, 553.68 
Environmental Services,Highways & Transport,ETAE,Transport-Related Expenditure,Contract Hire,EXPRESS DRIVEN,09/01/2012,TWC/BS/01531," 1,187.70 "
Environmental Services,Highways & Transport,ETAE,Transport-Related Expenditure,Contract Hire,NSL Limited t/a Patient First Group,23/01/2012,4582, 524.88 
Environmental Services,Highways & Transport,ETAE,Transport-Related Expenditure,Contract Hire,DIAMOND CARS (TELFORD) LTD,11/01/2012,11779, 891.48 
Environmental Services,Highways & Transport,ETAE,Transport-Related Expenditure,Contract Hire,DIAMOND CARS (TELFORD) LTD,11/01/2012,11778," 1,896.00 "
Environmental Services,Highways & Transport,ETAE,Transport-Related Expenditure,Contract Hire,CENTRAL TAXIS LTD SHREWSBURY,24/01/2012,3900, 535.50 
Environmental Services,Highways & Transport,ETAE,Transport-Related Expenditure,Contract Hire,NSL Limited t/a Patient First Group,11/01/2012,4385, 684.14 
Environmental Services,Highways & Transport,ETAE,Transport-Related Expenditure,Contract Hire,CENTRAL TAXIS LTD SHREWSBURY,30/01/2012,3452, 588.00 
Environmental Services,Highways & Transport,ETAE,Transport-Related Expenditure,Contract Hire,COUNTY CARS,30/01/2012,987," 1,104.40 "
Environmental Services,Highways & Transport,ETAE,Transport-Related Expenditure,Contract Hire,CENTRAL TAXIS LTD SHREWSBURY,10/01/2012,3654, 997.50 
Environmental Services,Highways & Transport,ETAE,Transport-Related Expenditure,Contract Hire,CENTRAL TAXIS LTD SHREWSBURY,05/01/2012,3610, 867.00 
Environmental Services,Highways & Transport,ETAE,Transport-Related Expenditure,Contract Hire,DIAMOND CARS (TELFORD) LTD,30/01/2012,40848, 971.04 
Environmental Services,Highways & Transport,ETAE,Transport-Related Expenditure,Contract Hire,A.T. BROWN (COACHES) LTD,05/01/2012,22777," 4,316.22 "
Environmental Services,Highways & Transport,ETAE,Transport-Related Expenditure,Contract Hire,A.T. BROWN (COACHES) LTD,05/01/2012,22777," 2,119.95 "
Environmental Services,Highways & Transport,ETAE,Transport-Related Expenditure,Contract Hire,A.T. BROWN (COACHES) LTD,05/01/2012,22777," 1,342.47 "
Environmental Services,Highways & Transport,ETAE,Transport-Related Expenditure,Contract Hire,A.T. BROWN (COACHES) LTD,05/01/2012,22777, 965.16 
Environmental Services,Highways & Transport,ETAE,Transport-Related Expenditure,Contract Hire,DIAMOND CARS (TELFORD) LTD,05/01/2012,11782, 821.10 
Environmental Services,Highways & Transport,ETAE,Transport-Related Expenditure,Contract Hire,DIAMOND CARS (TELFORD) LTD,05/01/2012,11781," 1,214.52 "
Environmental Services,Highways & Transport,ETAF,Transport-Related Expenditure,Contract Hire,M H ELCOCK & SON LTD T/A ELCOCK REISEN,10/01/2012,19336," 2,397.12 "
Environmental Services,Highways & Transport,ETAF,Transport-Related Expenditure,Contract Hire,M H ELCOCK & SON LTD T/A ELCOCK REISEN,10/01/2012,19335," 2,945.04 "
Environmental Services,Highways & Transport,ETAF,Transport-Related Expenditure,Contract Hire,ARRIVA MIDLANDS NORTH LIMITED,06/01/2012,NSP0024NOV11," 4,092.94 "
Environmental Services,Highways & Transport,ETAF,Transport-Related Expenditure,Contract Hire,ARRIVA MIDLANDS NORTH LIMITED,06/01/2012,NSP0065NOV11," 5,401.95 "
Environmental Services,Highways & Transport,ETAF,Transport-Related Expenditure,Contract Hire,ARRIVA MIDLANDS NORTH LIMITED,06/01/2012,NSP2022Nov11," 6,416.02 "
Environmental Services,Highways & Transport,ETAH,Premises-Related Expenditure,Electricity,BRITISH GAS BUSINESS (ELECTRICITY),13/01/2012,47279483/1, 861.90 
Environmental Services,Highways & Transport,ETAL,Employees,Other Training,Momo Theatre,04/01/2012,TELF0RDAUT11," 3,000.00 "
Environmental Services,Highways & Transport,ETAL,Premises-Related Expenditure,R&M -Buildings DLO Charge,WESTERN POWER DISBRIBUTIONS,30/01/2012,INPK/100098," 12,787.76 "
Environmental Services,Highways & Transport,ETAL,Supplies & Services,Equipment - Purchase,SAFE KIDS WALKING LTD,05/01/2012,7078, 832.00 
Environmental Services,Highways & Transport,ETAL,Supplies & Services,Computer Software (Maint),JAMBUSTERS LTD,12/01/2012,JB1001123," 1,350.00 "
Environmental Services,Highways & Transport,ETAL,Supplies & Services,Grants To Voluntary Organis,COMMUNITY COUNCIL OF SHROPSHIRE,12/01/2012,11-1685," 20,000.00 "
Environmental Services,Highways & Transport,WEAC,Capital Expenditure,Land Purchase,SOLAGEN LTD,26/01/2012,2793," 2,255.00 "
Environmental Services,Highways & Transport,WEAC,Capital Expenditure,Payments to Contractor,TRAFFIC & COMMERCIAL SIGNS LTD,11/01/2012,9631, 800.40 
Environmental Services,Highways & Transport,WEAC,Capital Expenditure,Payments to Contractor,SEVERN MASONRY LTD,20/01/2012,656," 2,305.00 "
Environmental Services,Highways & Transport,WEAC,Capital Expenditure,Payments to Contractor,SEVERN MASONRY LTD,31/01/2012,658," 2,305.00 "
Environmental Services,Highways & Transport,WEAC,Capital Expenditure,Payments to Contractor,SUNDRY SUPPLIER - C/O POST ROOM,30/01/2012,1353753," 5,749.10 "
Environmental Services,Highways & Transport,WEAC,Capital Expenditure,Payments to Contractor,SUNDRY SUPPLIER - C/O POST ROOM,27/01/2012,DIVERSION OF TWO WATER MAINS," 36,880.88 "
Environmental Services,Highways & Transport,WEAC,Capital Expenditure,Payments to Contractor,SUNDRY SUPPLIER - C/O POST ROOM,27/01/2012,1353753 WESTERN POWER," 6,898.92 "
Environmental Services,Highways & Transport,WEAC,Capital Expenditure,Payments to Contractor,TRAFFIC & COMMERCIAL SIGNS LTD,10/01/2012,9627," 3,288.15 "
Environmental Services,Highways & Transport,WEAC,Capital Expenditure,Payments to Contractor,K & M CONSTRUCTION LTD,20/01/2012,158/140911, 590.00 
Environmental Services,Highways & Transport,WEAC,Capital Expenditure,Payments to Contractor,A J B CONTRACTING LTD,24/01/2012,104," 4,100.00 "
Environmental Services,Highways & Transport,WEAC,Capital Expenditure,Payments to Contractor,A J B CONTRACTING LTD,23/01/2012,102, 980.00 
Environmental Services,Highways & Transport,WEAC,Capital Expenditure,Payments to Contractor,A J B CONTRACTING LTD,26/01/2012,99, 640.00 
Environmental Services,Highways & Transport,WEAC,Capital Expenditure,Payments to Contractor,TRAFFIC & COMMERCIAL SIGNS LTD,13/01/2012,9626," 31,823.85 "
Environmental Services,Highways & Transport,WEAD,Capital Expenditure,Payments to Contractor,TRAFFIC & COMMERCIAL SIGNS LTD,31/01/2012,9659," 6,069.49 "
Environmental Services,Highways & Transport,WEAD,Capital Expenditure,Payments to Contractor,E.ON UK ENERGY SERVICES LTD,20/01/2012,100795," 64,487.21 "
Environmental Services,Highways & Transport,WEAD,Capital Expenditure,Payments to Contractor,TRAFFIC & COMMERCIAL SIGNS LTD,11/01/2012,9630," 2,286.13 "
Environmental Services,Highways & Transport,WEAD,Capital Expenditure,Payments to Contractor,TRAFFIC & COMMERCIAL SIGNS LTD,11/01/2012,9624, 765.15 
Environmental Services,Highways & Transport,WEAF,Capital Expenditure,Plan Environment Services Fees,GORMAN MANAGEMENT SERVICES LTD,06/01/2012,17317," 5,570.37 "
Environmental Services,Highways & Transport,WEAF,Capital Expenditure,Payments to Contractor,K & M CONSTRUCTION LTD,20/01/2012,286/090112," 1,198.41 "
Environmental Services,Highways & Transport,WEAF,Capital Expenditure,Payments to Contractor,K & M CONSTRUCTION LTD,04/01/2012,243/281111," 12,324.73 "
Environmental Services,Highways & Transport,WEAF,Capital Expenditure,Payments to Contractor,K & M CONSTRUCTION LTD,11/01/2012,256/081211, 801.45 
Environmental Services,Highways & Transport,WEAF,Capital Expenditure,Payments to Contractor,JPCS LTD,12/01/2012,SIN005450," 79,857.38 "
Environmental Services,Highways & Transport,WEAF,Capital Expenditure,Payments to Contractor,K & M CONSTRUCTION LTD,16/01/2012,273/201211," 6,210.73 "
Environmental Services,Highways & Transport,WEAR,Capital Expenditure,Other Capital Expenditure,COMMUNITY COUNCIL OF SHROPSHIRE,12/01/2012,11-1685," 15,000.00 "
Family & Community Services,Early Years Childcare,GEAA,Third Party Payments,Voluntary Bodies,TOTS AND TODDLERS DAYCARE,08/01/2012,NEFSPRG2012EST57," 2,328.00 "
Family & Community Services,Early Years Childcare,GEAA,Third Party Payments,Voluntary Bodies,NOAH'S ARK NURS & AFTER SCH CLUB,10/01/2012,NEFSPRG2012EST36, 654.75 
Family & Community Services,Early Years Childcare,GEAA,Third Party Payments,Voluntary Bodies,CHIPMUNKS NURSERY,11/01/2012,NEFSPRG2012EST15," 4,656.00 "
Family & Community Services,Early Years Childcare,GEAA,Third Party Payments,Voluntary Bodies,HONEYBUNS NURSERIES,11/01/2012,NEFSPRG2012EST27," 1,164.00 "
Family & Community Services,Early Years Childcare,GEAA,Third Party Payments,Voluntary Bodies,STEPPING STONES AT CAPTAIN WEBB,06/01/2012,NEFSPRG2012EST46," 1,164.00 "
Family & Community Services,Early Years Childcare,GEAA,Third Party Payments,Voluntary Bodies,CHILDCARE SOS,11/01/2012,NEFSPRG2012EST13," 1,746.00 "
Family & Community Services,Early Years Childcare,GEAA,Third Party Payments,Voluntary Bodies,TRENCH TOTS NEIGHBOURHOOD NURSERY LTD,11/01/2012,NEFSPRG2012EST58, 582.00 
Family & Community Services,Early Years Childcare,GEAA,Third Party Payments,Voluntary Bodies,SMILEY FACES DAY NURSERIES LTD,06/01/2012,NEFSPRG2012EST45," 1,164.00 "
Family & Community Services,Early Years Childcare,GEAA,Third Party Payments,Voluntary Bodies,WOODEN TOPS DAY NURSERY ,06/01/2012,NEFSPRG2012EST60," 4,365.00 "
Family & Community Services,Early Years Childcare,GEAA,Third Party Payments,Voluntary Bodies,ABC DAY NURSERY HOLLINSWOOD ,09/01/2012,NEFSPRG2012EST05," 1,164.00 "
Family & Community Services,Early Years Childcare,GEAA,Third Party Payments,Voluntary Bodies,DAISY CHAIN DAY CARE LTD,09/01/2012,NEFSPRG2012EST20," 1,455.00 "
Family & Community Services,Early Years Childcare,GEAA,Third Party Payments,Voluntary Bodies,ABC DAY NURSERY LTD ,09/01/2012,NEFSPRG2012EST04," 1,746.00 "
Family & Community Services,Early Years Childcare,GEAA,Third Party Payments,Voluntary Bodies,RANDLAY ROUNDABOUTS ,09/01/2012,NEFSPRG2012EST43, 654.75 
Family & Community Services,Early Years Childcare,GEAC,Third Party Payments,Voluntary Bodies,STRAWBERRY HILL DAY NURSERY,11/01/2012,NEFSPRG2012EST47," 4,947.00 "
Family & Community Services,Early Years Childcare,GEAC,Third Party Payments,Pre School Playgroups,TOTS AND TODDLERS DAYCARE,08/01/2012,NEFSPRG2012EST57," 11,229.08 "
Family & Community Services,Early Years Childcare,GEAC,Third Party Payments,Pre School Playgroups,TOTS AND TODDLERS DAYCARE,08/01/2012,NEFSPRG2012EST57, 942.30 
Family & Community Services,Early Years Childcare,GEAC,Third Party Payments,Pre School Playgroups,CHIPMUNKS NURSERY,11/01/2012,NEFSPRG2012EST15," 13,452.48 "
Family & Community Services,Early Years Childcare,GEAC,Third Party Payments,Pre School Playgroups,CHIPMUNKS NURSERY,11/01/2012,NEFSPRG2012EST15," 1,245.60 "
Family & Community Services,Early Years Childcare,GEAC,Third Party Payments,Pre School Playgroups,APPLE TREES NURSERY ,03/01/2012,NEFSPRG2012EST07," 1,417.83 "
Family & Community Services,Early Years Childcare,GEAC,Third Party Payments,Pre School Playgroups,LITTLE BODIES DAY NURSERY,03/01/2012,NEFSPRG2012EST32," 2,705.22 "
Family & Community Services,Early Years Childcare,GEAC,Third Party Payments,Pre School Playgroups,LONGFORD PLAYGROUP ,03/01/2012,NEFSPRG2012EST35," 4,852.80 "
Family & Community Services,Early Years Childcare,GEAC,Third Party Payments,Pre School Playgroups,HALESFIELD DAY NURSERY CENTRE ,03/01/2012,NEFSPRG2012EST25," 5,947.62 "
Family & Community Services,Early Years Childcare,GEAC,Third Party Payments,Pre School Playgroups,HIGH ERCALL PRE-SCHOOL ,03/01/2012,NEFSPRG201EST26," 3,416.82 "
Family & Community Services,Early Years Childcare,GEAC,Third Party Payments,Pre School Playgroups,REDACTED PERSONAL INFORMATION,03/01/2012,CMNEFSPRG2012EST04, 562.80 
Family & Community Services,Early Years Childcare,GEAC,Third Party Payments,Pre School Playgroups,BUTTERFLIES DAY NURSERY ,03/01/2012,NEFSPRG2012EST1," 7,715.40 "
Family & Community Services,Early Years Childcare,GEAC,Third Party Payments,Pre School Playgroups,CASTLE HOUSE SCHOOL TRUST LTD,03/01/2012,NEFSPRG2012EST14," 5,698.35 "
Family & Community Services,Early Years Childcare,GEAC,Third Party Payments,Pre School Playgroups,CLUB 0-5 LTD ,03/01/2012,NEFSPRG2012EST16," 5,916.00 "
Family & Community Services,Early Years Childcare,GEAC,Third Party Payments,Pre School Playgroups,B) COALBROOKDALE & I'BRIDGE NURS,03/01/2012,NEFSPRG2012EST17," 5,493.60 "
Family & Community Services,Early Years Childcare,GEAC,Third Party Payments,Pre School Playgroups,LILLESHALL PRE-SCHOOL PLAYGROUP ,03/01/2012,NEFSPRG2012EST31," 6,246.24 "
Family & Community Services,Early Years Childcare,GEAC,Third Party Payments,Pre School Playgroups,THE LEARNING TREE PRE-SCHOOL ,03/01/2012,NEFSPRG2012EST51," 6,271.20 "
Family & Community Services,Early Years Childcare,GEAC,Third Party Payments,Pre School Playgroups,THE OLD HALL SCHOOL ,03/01/2012,NEFSPRG2012EST52," 6,913.80 "
Family & Community Services,Early Years Childcare,GEAC,Third Party Payments,Pre School Playgroups,REDACTED PERSONAL INFORMATION,03/01/2012,CMNEFSPRG2012EST12, 606.60 
Family & Community Services,Early Years Childcare,GEAC,Third Party Payments,Pre School Playgroups,THOMAS TELFORD SCHOOL ,03/01/2012,NEFSPRG2012EST53," 1,507.50 "
Family & Community Services,Early Years Childcare,GEAC,Third Party Payments,Pre School Playgroups,TIBBERTON PLAYGROUP,03/01/2012,NEFSPRG2012EST54," 1,778.22 "
Family & Community Services,Early Years Childcare,GEAC,Third Party Payments,Pre School Playgroups,TIGGYWINKLES MONTESSORI NURSERY,03/01/2012,NEFSPRG2012EST55," 5,125.50 "
Family & Community Services,Early Years Childcare,GEAC,Third Party Payments,Pre School Playgroups,TORTOISE NURSERY SCHOOL ,03/01/2012,NEFSPRG2012EST56," 3,777.12 "
Family & Community Services,Early Years Childcare,GEAC,Third Party Payments,Pre School Playgroups,B) WT'ON METHODIST CHURCH PLAYGRP,03/01/2012,NEFSPRG2012EST59," 4,347.00 "
Family & Community Services,Early Years Childcare,GEAC,Third Party Payments,Pre School Playgroups,OAKENGATES UNITED PRE-SCHOOL,03/01/2012,NEFSPRG2012EST38," 1,049.58 "
Family & Community Services,Early Years Childcare,GEAC,Third Party Payments,Pre School Playgroups,REDACTED PERSONAL INFORMATION,03/01/2012,CMNEFSPRG2012EST18, 882.90 
Family & Community Services,Early Years Childcare,GEAC,Third Party Payments,Pre School Playgroups,LADYGROVE NURSERY,03/01/2012,NESPRG2012EST29," 4,939.20 "
Family & Community Services,Early Years Childcare,GEAC,Third Party Payments,Pre School Playgroups,PLAY-DAYS CORPORTION LTD,03/01/2012,NEFSPRG2012EST40," 5,306.40 "
Family & Community Services,Early Years Childcare,GEAC,Third Party Payments,Pre School Playgroups,PRIORSLEE PRE-SCHOOL,03/01/2012,NEFSPRG2012EST41," 7,354.68 "
Family & Community Services,Early Years Childcare,GEAC,Third Party Payments,Pre School Playgroups,HONEYBUNS NURSERIES,11/01/2012,NEFSPRG2012EST27," 19,752.72 "
Family & Community Services,Early Years Childcare,GEAC,Third Party Payments,Pre School Playgroups,REDHILL PRE-SCHOOL F643,03/01/2012,NEFSPRG2012EST44," 10,250.46 "
Family & Community Services,Early Years Childcare,GEAC,Third Party Payments,Pre School Playgroups,Busy Bees Day Nursery Telford,03/01/2012,NEFSPRG2012EST10," 10,221.12 "
Family & Community Services,Early Years Childcare,GEAC,Third Party Payments,Pre School Playgroups,DAISY CHAIN @ OLD HALL,03/01/2012,NEFSPRG2012EST19," 10,450.86 "
Family & Community Services,Early Years Childcare,GEAC,Third Party Payments,Pre School Playgroups,EARLYWORLD LIMITED ,03/01/2012,NEFSPRG2012EST21," 11,133.72 "
Family & Community Services,Early Years Childcare,GEAC,Third Party Payments,Pre School Playgroups,OUR WORLD NEIGHBOURHOOD NURSERY ,09/01/2012,NEFSPRG2012EST39," 3,539.70 "
Family & Community Services,Early Years Childcare,GEAC,Third Party Payments,Pre School Playgroups,LEEGOMERY UNDER 5'S PLAYGROUP,09/01/2012,NEFSPRG2012EST30," 4,644.00 "
Family & Community Services,Early Years Childcare,GEAC,Third Party Payments,Pre School Playgroups,NICOLA BOWEN,03/01/2012,CMNEFSPRG2012EST02, 529.74 
Family & Community Services,Early Years Childcare,GEAC,Third Party Payments,Pre School Playgroups,BROOKSIDE PRE-SCHOOL & PLAYGROUP,03/01/2012,NEFSPRG2012EST08," 3,159.00 "
Family & Community Services,Early Years Childcare,GEAC,Third Party Payments,Pre School Playgroups,BUSY BEES AT TELFORD PARKWAY,03/01/2012,TF34LR," 5,246.10 "
Family & Community Services,Early Years Childcare,GEAC,Third Party Payments,Pre School Playgroups,CYGNETS PRE-SCHOOL ,03/01/2012,NEFSPRG2012EST18," 6,793.20 "
Family & Community Services,Early Years Childcare,GEAC,Third Party Payments,Pre School Playgroups,ABACUSDAY NURSERY,03/01/2012,NEFSPRG2012EST02," 2,154.60 "
Family & Community Services,Early Years Childcare,GEAC,Third Party Payments,Pre School Playgroups,STEPPING STONES AT CAPTAIN WEBB,06/01/2012,NEFSPRG2012EST46," 6,228.00 "
Family & Community Services,Early Years Childcare,GEAC,Third Party Payments,Pre School Playgroups,CHILDCARE SOS,11/01/2012,NEFSPRG2012EST13," 3,799.08 "
Family & Community Services,Early Years Childcare,GEAC,Third Party Payments,Pre School Playgroups,EDGMOND OWLS ,11/01/2012,NEDSPRG2012EST23," 7,172.82 "
Family & Community Services,Early Years Childcare,GEAC,Third Party Payments,Pre School Playgroups,EARLYWORLD LIMITED ,11/01/2012,NEFSPRG2012EST22," 6,813.18 "
Family & Community Services,Early Years Childcare,GEAC,Third Party Payments,Pre School Playgroups,HADLEY UNDER 5'S ,11/01/2012,NEFSPRG2012EST24," 9,425.64 "
Family & Community Services,Early Years Childcare,GEAC,Third Party Payments,Pre School Playgroups,KIDS 4 US ,11/01/2012,NEFSPRG2012EST28," 4,533.30 "
Family & Community Services,Early Years Childcare,GEAC,Third Party Payments,Pre School Playgroups,TRENCH TOTS NEIGHBOURHOOD NURSERY LTD,11/01/2012,NEFSPRG2012EST58," 4,579.05 "
Family & Community Services,Early Years Childcare,GEAC,Third Party Payments,Pre School Playgroups,STRAWBERRY HILL DAY NURSERY,11/01/2012,NEFSPRG2012EST47," 3,159.00 "
Family & Community Services,Early Years Childcare,GEAC,Third Party Payments,Pre School Playgroups,WOODEN TOPS DAY NURSERY ,06/01/2012,NEFSPRG2012EST60," 7,265.70 "
Family & Community Services,Early Years Childcare,GEAC,Third Party Payments,Pre School Playgroups,WOODEN TOPS DAY NURSERY ,06/01/2012,NEFSPRG2012EST60, 947.70 
Family & Community Services,Early Years Childcare,GEAC,Third Party Payments,Pre School Playgroups,SMILEY FACES DAY NURSERIES LTD,06/01/2012,NEFSPRG2012EST45," 4,013.10 "
Family & Community Services,Early Years Childcare,GEAC,Third Party Payments,Pre School Playgroups,SMILEY FACES DAY NURSERIES LTD,06/01/2012,NEFSPRG2012EST45, 926.10 
Family & Community Services,Early Years Childcare,GEAC,Third Party Payments,Pre School Playgroups,LITTLE CHICKS PRE-SCHOOL,06/01/2012,NEFSPRG2012EST33," 6,331.50 "
Family & Community Services,Early Years Childcare,GEAC,Third Party Payments,Pre School Playgroups,LITTLE CHICKS PRE-SCHOOL,06/01/2012,NEFSPRG2012EST33, 603.00 
Family & Community Services,Early Years Childcare,GEAC,Third Party Payments,Pre School Playgroups,NOAH'S ARK NURS & AFTER SCH CLUB,10/01/2012,NEFSPRG2012EST36," 13,031.79 "
Family & Community Services,Early Years Childcare,GEAC,Third Party Payments,Pre School Playgroups,ABC DAY NURSERY ,06/01/2012,NEFSPRG2012EST06," 4,185.81 "
Family & Community Services,Early Years Childcare,GEAC,Third Party Payments,Pre School Playgroups,ABC DAY NURSERY,06/01/2012,NEFSPRG2012EST06," 1,498.50 "
Family & Community Services,Early Years Childcare,GEAC,Third Party Payments,Pre School Playgroups,ABACUS DAY NURSERY ,03/01/2012,NEFSPRG2012EST03," 3,669.30 "
Family & Community Services,Early Years Childcare,GEAC,Third Party Payments,Pre School Playgroups,BEARS DEN PRE-SCHOOL ,03/01/2012,NEFSPRG2012EST50," 6,629.04 "
Family & Community Services,Early Years Childcare,GEAC,Third Party Payments,Pre School Playgroups,PUDDLEDUCKS PLAYGROUP ,09/01/2012,NEFSPRG2012EST42," 1,213.20 "
Family & Community Services,Early Years Childcare,GEAC,Third Party Payments,Pre School Playgroups,DAISY CHAIN DAY CARE LTD,09/01/2012,NEFSPRG2012EST20," 6,264.72 "
Family & Community Services,Early Years Childcare,GEAC,Third Party Payments,Pre School Playgroups,LITTLE DRAGONS PRE-SCHOOL ,09/01/2012,NEFSPRG2012EST34," 1,539.00 "
Family & Community Services,Early Years Childcare,GEAC,Third Party Payments,Pre School Playgroups,ABC DAY NURSERY HOLLINSWOOD ,09/01/2012,NEFSPRG2012EST05," 4,644.00 "
Family & Community Services,Early Years Childcare,GEAC,Third Party Payments,Pre School Playgroups,ABC DAY NURSERY LTD ,09/01/2012,NEFSPRG2012EST04," 8,158.77 "
Family & Community Services,Early Years Childcare,GEAC,Third Party Payments,Pre School Playgroups,RANDLAY ROUNDABOUTS ,09/01/2012,NEFSPRG2012EST43," 1,561.50 "
Family & Community Services,Early Years Childcare,GEAC,Third Party Payments,Pre School Playgroups,TEAGUES BRIDGE PRE-SCHOOL ,09/01/2012,NEFSPRG2012EST49," 8,286.30 "
Family & Community Services,Early Years Childcare,GEAC,Third Party Payments,Pre School Playgroups,PUDDLEDUCKS PLAYGROUP ,09/01/2012,NEFSPRG2012EST42," 6,854.58 "
Family & Community Services,Early Years Childcare,GEAD,Employees,Training Expenses,TELFORD COLLEGE ENTERPRISES LTD,04/01/2012,SI/024303, 800.00 
Family & Community Services,Early Years Childcare,GEAD,Supplies & Services,Other Grants (Expenses),NOAH'S ARK NURS & AFTER SCH CLUB,20/01/2012,SEN/INCLUSIONLAURENBAISLE," 1,145.11 "
Family & Community Services,Early Years Childcare,GEAD,Supplies & Services,Other Grants (Expenses),WOODSIDE FAMILY GROUP PROJECT,04/01/2012,ensionpaymentJAN-MARCH201," 2,500.00 "
Family & Community Services,Early Years Childcare,GEAK,Premises-Related Expenditure,Electricity,WEST MERCIA SUPPLIES,03/01/2012,HQ00922/2327148," 1,204.09 "
Family & Community Services,Early Years Childcare,GEAK,Premises-Related Expenditure,General Rents,PARK LANE CENTRE,05/01/2012,RSC11/12/40," 8,220.50 "
Family & Community Services,Early Years Childcare,GEAK,Premises-Related Expenditure,General Rents,PARK LANE CENTRE,16/01/2012,RSC11/12/47," 6,617.00 "
Family & Community Services,Early Years Childcare,GEAK,Premises-Related Expenditure,Water Rates,SEVERN TRENT WATER LTD,06/01/2012,343098032," 1,259.76 "
Family & Community Services,Early Years Childcare,GEAK,Premises-Related Expenditure,Grounds Maintenance - Other,NOBRIDGE LTD,06/01/2012,5346," 3,537.60 "
Family & Community Services,Early Years Childcare,GEAK,Supplies & Services,Security Services,BUSINESS WATCH GUARDING LIMITED,16/01/2012,INVOICE," 1,058.35 "
Family & Community Services,Extended Services,GTAA,Supplies & Services,Service Contracts,LES MILES DES MARCHES,16/01/2012,MDM1-NOV11, 720.00 
Family & Community Services,Extended Services,GTAA,Supplies & Services,Other Grants (Expenses),ABRAHAM DARBY ACADEMY,23/01/2012,INV000122, 650.00 
Family & Community Services,Integrated Youth Support Services,GYAE,Supplies & Services,Other Grants (Expenses),YOUTH SUPPORT SERVICES LTD,11/01/2012,1919," 21,250.00 "
Family & Community Services,Integrated Youth Support Services,GYAE,Supplies & Services,Other Grants (Expenses),YOUTH SUPPORT SERVICES LTD,30/01/2012,1943, 965.00 
Family & Community Services,Integrated Youth Support Services,GYAK,Supplies & Services,Computer Hardware (Maint),CACI LTD,25/01/2012,ES03747," 3,383.00 "
Family & Community Services,Integrated Youth Support Services,GYAL,Supplies & Services,Other Services,YOUTH SUPPORT SERVICES LTD,11/01/2012,1924," 1,697.00 "
Family & Community Services,Integrated Youth Support Services,GYAL,Supplies & Services,Other Services,YOUTH SUPPORT SERVICES LTD,30/01/2012,1944," 1,697.00 "
Family & Community Services,Safer Communities,GCAD,Supplies & Services,Other Services,WEST MERCIA PROBATION TRUST,09/01/2012,2603," 8,831.00 "
Family & Community Services,Safer Communities,GCAF,Supplies & Services,Security Services,ADT FIRE & SECURITY PLC,11/01/2012,19920430-02, 844.00 
Family & Community Services,Safer Communities,GCAH,Supplies & Services,Highways Equipment,TELFORD & WREKIN SERVICES LTD,03/01/2012,37741," 3,728.65 "
Finance,Employment Services,FEAB,Supplies & Services,Other Expenses,BOTTOMLINE TECHNOLOGIES,24/01/2012,MINV129436," 3,281.96 "
Finance,Employment Services,FEAC,Employees,Recruitment Interview,CRIMINAL RECORDS BUREAU,16/01/2012,826698," 4,258.00 "
Finance,Finance,FFAH,Supplies & Services,Subscriptions,CIPFA BUSINESS LTD,16/01/2012,3061894," 1,100.00 "
Finance,Finance,FHAB,Supplies & Services,Other Services,ALLPAY.NET LIMITED,06/01/2012,187326, 831.98 
Finance,Finance,FHAB,Supplies & Services,Other Services,ALLPAY.NET LIMITED,06/01/2012,187327," 2,158.20 "
Finance,Finance,FHAD,Support Services,External Audit Fees,KPMG LLP,23/01/2012,5500467791," 14,777.00 "
Finance,Finance,FHAG,Capital Financing Costs,Interest,PENNA PLC,09/01/2012,LPA," 1,349.66 "
Finance,Finance Manager (Corporate Finance & Customer Services),FFAC,Supplies & Services,Publications,CIFPA BUSINESS LTD,10/01/2012,3060831, 513.00 
Finance,Finance Manager (Corporate Finance & Customer Services),FFAC,Supplies & Services,Publications,CIFPA BUSINESS LTD,10/01/2012,3060332, 562.50 
Finance,Finance Manager (Corporate Finance & Customer Services),MAAC,Employees,Agency Supply Costs,COMENSURA LTD,09/01/2012,511954," 17,823.19 "
Finance,Finance Manager (Corporate Finance & Customer Services),MAAC,Employees,Agency Supply Costs,COMENSURA LTD,26/01/2012,512099," 21,135.97 "
Finance,Finance Manager (Corporate Finance & Customer Services),MAAC,Employees,Agency Supply Costs,COMENSURA LTD,26/01/2012,512639," 28,635.10 "
Finance,Finance Manager (Corporate Finance & Customer Services),MAAC,Employees,Agency Supply Costs,COMENSURA LTD,23/01/2012,512423," 21,973.74 "
Finance,Finance Manager (Corporate Finance & Customer Services),MAAC,Employees,Agency Supply Costs,COMENSURA LTD,16/01/2012,512243," 24,098.96 "
Governance,Audit & Assurance,BAAA,Supplies & Services,Specialist IT Audit Contract Payments,DELOITTE & TOUCHE PUBLIC SECTOR INT AUD,12/01/2012,2610010579," 10,625.00 "
Governance,Audit & Assurance,BAAB,Employees,Course Fees,PDP TRAINING,20/01/2012,PDPTDPEK12-13010, 795.00 
Governance,Audit & Assurance,BAAB,Supplies & Services,Council's Data Protection Registration Fee,THE INFORMATION COMMISSIONER,06/01/2012,Z5142391, 500.00 
Governance,Democratic Services,BDAA,Supplies & Services,Comp Software (Purch / Hire),PUBLIC-I,13/01/2012,2559, 500.00 
Governance,Democratic Services,BDAE,Supplies & Services,Printing - Other,IMPACT MAIL & PRINT LTD,24/01/2012,39956," 3,855.38 "
Governance,Democratic Services,BDAE,Supplies & Services,Stationery,IMPACT MAIL & PRINT LTD,03/01/2012,39923," 1,364.23 "
Governance,Democratic Services,BDAE,Supplies & Services,Stationery,IMPACT MAIL & PRINT LTD,03/01/2012,39926," 1,392.19 "
Governance,Democratic Services,BDAE,Supplies & Services,Computer Software (Maint),ELECTORAL REFORM SERVICES,10/01/2012,ERS-2284-10," 1,062.20 "
Governance,Democratic Services,BDAE,Supplies & Services,Postages,ROYAL MAIL GROUP PLC,20/01/2012,9037073322," 5,178.87 "
Governance,Legal Services,BLAB,Transport-Related Expenditure,Publications,Thomson Reuters,10/01/2012,4500369688," 2,025.00 "
Governance,Legal Services,BLAB,Supplies & Services,Comp Software (Purch / Hire),IKEN BUSINESS LTD,17/01/2012,IK22205," 1,330.60 "
Governance,Legal Services,BLAB,Supplies & Services,Comp Software (Purch / Hire),IKEN BUSINESS LTD,17/01/2012,IK22215," 3,750.00 "
Governance,Legal Services,BLAB,Supplies & Services,Computer Software (Maint),THE COPYRIGHT LICENSING AGENCY LTD,05/01/2012,447047," 6,950.85 "
Governance,Legal Services,MAAF,Premises-Related Expenditure,Coroners Services,SHREWSBURY & TELFORD HOSPITAL NHS TRUST,12/01/2012,10061996," 4,596.00 "
Housing & Planning,Development Management,DDAA,Supplies & Services,Comp Hardware (Purch / Hire),RESOLUTION DATA MANAGEMENT LTD,04/01/2012,6853," 2,275.00 "
Housing & Planning,Development Management,DDAC,Supplies & Services,Legal Expenses,WHITE YOUNG GREEN CONSULTING LTD,13/01/2012,776470," 1,225.00 "
Housing & Planning,Development Management,DDAG,Supplies & Services,Photocopying,DATASAVE LIMITED,24/01/2012,98306," 2,575.82 "
Housing & Planning,Development Management,DDAG,Supplies & Services,Photocopying,DATASAVE LIMITED,24/01/2012,98305," 1,780.67 "
Housing & Planning,"Environmental Health, Trading Standards & Licensing",DEAA,Supplies & Services,Subscriptions,SITEON LTD,23/01/2012,1984, 625.00 
Housing & Planning,"Environmental Health, Trading Standards & Licensing",DEAA,Supplies & Services,Subscriptions,WARWICKSHIRE COUNTY COUNCIL,23/01/2012,10023089," 1,200.00 "
Housing & Planning,"Environmental Health, Trading Standards & Licensing",DEAB,Supplies & Services,Printing - Other,BRAISWICK PHOTOGRAPHIC CO LTD,11/01/2012,9724, 725.00 
Housing & Planning,"Environmental Health, Trading Standards & Licensing",DEAC,Employees,Professional Subs,CIEH,24/01/2012,I00003587," 2,114.00 "
Housing & Planning,"Environmental Health, Trading Standards & Licensing",DEAD,Supplies & Services,Other Services,SEVERN TRENT LABORATORIES,16/01/2012,40907, 616.00 
Housing & Planning,"Environmental Health, Trading Standards & Licensing",DEAE,Supplies & Services,Other Services,PRP LEISURE LTD,12/01/2012,37, 912.00 
Housing & Planning,"Environmental Health, Trading Standards & Licensing",DEAE,Supplies & Services,Other Services,PRP LEISURE LTD,12/01/2012,38, 768.00 
Housing & Planning,"Environmental Health, Trading Standards & Licensing",DEAF,Premises-Related Expenditure,R&M -Buildings DLO Charge,A HAND SERVICES LTD,05/01/2012,1203AP564, 545.00 
Housing & Planning,Housing,DHAF,Premises-Related Expenditure,Bed & Breakfast Charges,THE FIRS GUEST HOUSE,16/01/2012,5873," 2,005.00 "
Housing & Planning,Housing,DHAF,Premises-Related Expenditure,Bed & Breakfast Charges,THE FIRS GUEST HOUSE,16/01/2012,5875," 2,730.00 "
Housing & Planning,Housing,DHAF,Premises-Related Expenditure,Bed & Breakfast Charges,OLD VICARAGE,16/01/2012,3640," 2,230.00 "
Housing & Planning,Housing,DHAF,Premises-Related Expenditure,Bed & Breakfast Charges,OLD VICARAGE,16/01/2012,3642," 1,355.00 "
Housing & Planning,Housing,DHAF,Premises-Related Expenditure,Bed & Breakfast Charges,OLD VICARAGE,16/01/2012,3642, 785.00 
Housing & Planning,Housing,DHAF,Premises-Related Expenditure,Bed & Breakfast Charges,OLD VICARAGE,16/01/2012,3645," 1,855.00 "
Housing & Planning,Housing,DHAF,Premises-Related Expenditure,Bed & Breakfast Charges,OLD VICARAGE,16/01/2012,3645, 785.00 
Housing & Planning,Housing,DHAF,Premises-Related Expenditure,Bed & Breakfast Charges,OLD VICARAGE,10/01/2012,3636," 2,805.00 "
Housing & Planning,Housing,DHAF,Premises-Related Expenditure,Bed & Breakfast Charges,THE GALLERY GUEST HOUSE,31/01/2012,twc042, 740.00 
Housing & Planning,Housing,DHAF,Premises-Related Expenditure,Bed & Breakfast Charges,THE FIRS GUEST HOUSE,06/01/2012,5869," 2,555.00 "
Housing & Planning,Housing,DHAF,Premises-Related Expenditure,Bed & Breakfast Charges,THE GALLERY GUEST HOUSE,20/01/2012,twc040, 600.00 
Housing & Planning,Housing,DHAF,Premises-Related Expenditure,Bed & Breakfast Charges,THE GALLERY GUEST HOUSE,20/01/2012,twc041, 840.00 
Housing & Planning,Housing,DHAF,Premises-Related Expenditure,Bed & Breakfast Charges,OLD VICARAGE,10/01/2012,3639," 2,555.00 "
Housing & Planning,Housing,DHAF,Premises-Related Expenditure,Bed & Breakfast Charges,THE GALLERY GUEST HOUSE,10/01/2012,twc038, 680.00 
Housing & Planning,Housing,DHAF,Premises-Related Expenditure,Bed & Breakfast Charges,THE GALLERY GUEST HOUSE,16/01/2012,twc039," 1,160.00 "
Housing & Planning,Housing,DHAF,Premises-Related Expenditure,Bed & Breakfast Charges,THE FIRS GUEST HOUSE,16/01/2012,5871," 1,710.00 "
Housing & Planning,Housing,DHAG,Premises-Related Expenditure,Planned Repairs,AST FLOORCOVERINGS LTD,11/01/2012,73050, 531.63 
Housing & Planning,Housing,DHAH,Premises-Related Expenditure,Gas,WEST MERCIA SUPPLIES,10/01/2012,HQ00922/2332382, 811.03 
Housing & Planning,Housing,DHAJ,Premises-Related Expenditure,Gas,WEST MERCIA SUPPLIES,10/01/2012,HQ00922/2332373," 1,050.89 "
Housing & Planning,Housing,DHAJ,Premises-Related Expenditure,Gas,WEST MERCIA SUPPLIES,10/01/2012,169625,-799.78 
Housing & Planning,Housing,DHAJ,Premises-Related Expenditure,Gas,WEST MERCIA SUPPLIES,10/01/2012,HQ00922/2318982, 527.92 
Housing & Planning,Housing,DHAJ,Supplies & Services,Security Services,RMP SPECIALIST SERVICES LIMITED,16/01/2012,125," 2,791.25 "
Housing & Planning,Housing,DHAK,Premises-Related Expenditure,R&M -Buildings DLO Charge,AE PROPERTY MAINTENACE,31/01/2012,73, 889.00 
Housing & Planning,Housing,DHAP,Premises-Related Expenditure,R&M -Building Other,JONES & HAMPTON LTD,20/01/2012,5318S, 514.48 
Housing & Planning,Housing,DHAP,Premises-Related Expenditure,R&M -Building Other,SW CONTRACTORS,16/01/2012,158, 518.00 
Housing & Planning,Housing,DHAP,Premises-Related Expenditure,Electricity,WEST MERCIA SUPPLIES,16/01/2012,HQ009222326874," 1,705.26 "
Housing & Planning,Housing,DHAP,Premises-Related Expenditure,Electricity,WEST MERCIA SUPPLIES,31/01/2012,HQ009222340172," 1,692.13 "
Housing & Planning,Housing,DHAP,Premises-Related Expenditure,Gas,WEST MERCIA SUPPLIES,16/01/2012,HQ009222326882," 1,637.51 "
Housing & Planning,Housing,DHAP,Premises-Related Expenditure,Sewage Charges,SEVERN TRENT WATER LTD,20/01/2012,763081823, 914.37 
Housing & Planning,Housing,DHAP,Premises-Related Expenditure,Sewage Charges,SEVERN TRENT WATER LTD,20/01/2012,993066361, 814.61 
Housing & Planning,Housing,DHAW,Supplies & Services,Other Grants (Expenses),GM HEATING & PLUMBING LTD,25/01/2012,9634," 1,103.81 "
Housing & Planning,Housing,DHAW,Supplies & Services,Other Grants (Expenses),PILOT HEAT,31/01/2012,1107," 1,312.81 "
Housing & Planning,Housing,DHAW,Supplies & Services,Other Grants (Expenses),PILOT HEAT,31/01/2012,1111, 850.00 
Housing & Planning,Housing,DHAW,Supplies & Services,Other Grants (Expenses),THERMOWALL,27/01/2012,TWL8342, 524.50 
Housing & Planning,Housing,DHAW,Supplies & Services,Other Grants (Expenses),HOMECRAFT,17/01/2012,1432, 795.00 
Housing & Planning,Housing,DHAW,Supplies & Services,Other Grants (Expenses),GM HEATING & PLUMBING LTD,24/01/2012,9633," 1,448.89 "
Housing & Planning,Housing,DHAW,Supplies & Services,Other Grants (Expenses),GM HEATING & PLUMBING LTD,24/01/2012,9609," 1,073.00 "
Housing & Planning,Housing,DHAW,Supplies & Services,Other Grants (Expenses),GM HEATING & PLUMBING LTD,24/01/2012,9526," 1,099.00 "
Housing & Planning,Housing,DHAW,Supplies & Services,Other Grants (Expenses),HOMECRAFT,12/01/2012,11/0805/H," 1,050.23 "
Housing & Planning,Housing,DHAW,Supplies & Services,Other Grants (Expenses),GM HEATING & PLUMBING LTD,12/01/2012,9484, 985.00 
Housing & Planning,Housing,DHAW,Supplies & Services,Other Grants (Expenses),R E BROWN BUILDING CONTRACTS,10/01/2012,9236," 1,098.00 "
Housing & Planning,Housing,DHAW,Supplies & Services,Other Grants (Expenses),GM HEATING & PLUMBING LTD,16/01/2012,9618, 962.00 
Housing & Planning,Housing,DHAW,Supplies & Services,Other Grants (Expenses),GM HEATING & PLUMBING LTD,12/01/2012,9570," 1,372.50 "
Housing & Planning,Housing,DHAW,Supplies & Services,Other Grants (Expenses),THOMAS PLUMBING & HEATING,18/01/2012,20," 1,830.00 "
Housing & Planning,Housing,WDAD,Capital Expenditure,Other Capital Expenditure,AE PROPERTY MAINTENACE,31/01/2012,26HeatherDriveJan12, 775.00 
Housing & Planning,Housing,WDAD,Capital Expenditure,Other Capital Expenditure,AE PROPERTY MAINTENACE,31/01/2012,43StoneBridge, 795.00 
Housing & Planning,Housing,WDAF,Capital Expenditure,Other Capital Expenditure,WESTHOLME LTD,03/01/2012,207201," 1,301.45 "
Housing & Planning,Housing,WDAF,Capital Expenditure,Other Capital Expenditure,GM HEATING & PLUMBING LTD,25/01/2012,9634," 1,103.81 "
Housing & Planning,Housing,WDAF,Capital Expenditure,Other Capital Expenditure,STANNAH LIFT SERVICES LTD,18/01/2012,9085122940," 1,856.00 "
Housing & Planning,Housing,WDAF,Capital Expenditure,Other Capital Expenditure,PILOT HEAT,31/01/2012,1107," 1,312.81 "
Housing & Planning,Housing,WDAF,Capital Expenditure,Other Capital Expenditure,AIDS & ADAPTIONS LTD,09/01/2012,1141," 4,153.33 "
Housing & Planning,Housing,WDAF,Capital Expenditure,Other Capital Expenditure,STANNAH LIFT SERVICES LTD,11/01/2012,9085121731," 1,295.00 "
Housing & Planning,Housing,WDAF,Capital Expenditure,Other Capital Expenditure,THE WREKIN HOUSING TRUST,11/01/2012,SISD/00007136," 1,269.16 "
Housing & Planning,Housing,WDAF,Capital Expenditure,Other Capital Expenditure,THE WREKIN HOUSING TRUST,11/01/2012,SISD/00007139," 1,164.76 "
Housing & Planning,Housing,WDAF,Capital Expenditure,Other Capital Expenditure,Prism Medical UK,11/01/2012,209089," 2,166.80 "
Housing & Planning,Housing,WDAF,Capital Expenditure,Other Capital Expenditure,R E BROWN BUILDING CONTRACTS,26/01/2012,10/0483/," 14,342.74 "
Housing & Planning,Housing,WDAF,Capital Expenditure,Other Capital Expenditure,THOMAS PLUMBING & HEATING,18/01/2012,21, 775.00 
Housing & Planning,Housing,WDAF,Capital Expenditure,Other Capital Expenditure,STANNAH LIFT SERVICES LTD,18/01/2012,9085123542," 1,858.00 "
Housing & Planning,Housing,WDAF,Capital Expenditure,Other Capital Expenditure,STANNAH LIFT SERVICES LTD,06/01/2012,9085119306," 1,816.00 "
Housing & Planning,Housing,WDAF,Capital Expenditure,Other Capital Expenditure,MARTIN EVANS CONSTRUCTION LTD,20/01/2012,2952," 3,518.07 "
Housing & Planning,Housing,WDAF,Capital Expenditure,Other Capital Expenditure,ROSEMONT BUILDING CONTRACTORS,20/01/2012,OPR679," 3,742.78 "
Housing & Planning,Housing,WDAF,Capital Expenditure,Other Capital Expenditure,AIDS & ADAPTIONS LTD,20/01/2012,149," 3,695.46 "
Housing & Planning,Housing,WDAF,Capital Expenditure,Other Capital Expenditure,THE WREKIN HOUSING TRUST,11/01/2012,SISD/00007135," 1,212.82 "
Housing & Planning,Housing,WDAF,Capital Expenditure,Other Capital Expenditure,THE WREKIN HOUSING TRUST,11/01/2012,SISD/00007134," 1,413.95 "
Housing & Planning,Housing,WDAF,Capital Expenditure,Other Capital Expenditure,R E BROWN BUILDING CONTRACTS,11/01/2012,6EGLATINECLOSEDEC11," 7,358.20 "
Housing & Planning,Housing,WDAF,Capital Expenditure,Other Capital Expenditure,THE WREKIN HOUSING TRUST,10/01/2012,SISD/00007100," 15,453.88 "
Housing & Planning,Housing,WDAF,Capital Expenditure,Other Capital Expenditure,E DAVIES & SON,10/01/2012,10/1877/H," 23,478.85 "
Housing & Planning,Housing,WDAF,Capital Expenditure,Other Capital Expenditure,R E BROWN BUILDING CONTRACTS,10/01/2012,9249," 17,238.57 "
Housing & Planning,Housing,WDAF,Capital Expenditure,Other Capital Expenditure,THE WREKIN HOUSING TRUST,17/01/2012,40875," 1,256.08 "
Housing & Planning,Housing,WDAF,Capital Expenditure,Other Capital Expenditure,AIDS & ADAPTIONS LTD,20/01/2012,147," 1,230.88 "
Housing & Planning,Housing,WDAF,Capital Expenditure,Other Capital Expenditure,MARTIN EVANS CONSTRUCTION LTD,20/01/2012,2962," 4,108.61 "
Housing & Planning,Housing,WDAF,Capital Expenditure,Other Capital Expenditure,THE WREKIN HOUSING TRUST,12/01/2012,SISD/00007138," 1,301.65 "
Housing & Planning,Housing,WDAF,Capital Expenditure,Other Capital Expenditure,THE WREKIN HOUSING TRUST,12/01/2012,SISD/00007141," 1,256.08 "
Housing & Planning,Housing,WDAF,Capital Expenditure,Other Capital Expenditure,GM HEATING & PLUMBING LTD,12/01/2012,9484, 985.00 
Housing & Planning,Housing,WDAF,Capital Expenditure,Other Capital Expenditure,R E BROWN BUILDING CONTRACTS,10/01/2012,9236," 1,098.00 "
Housing & Planning,Housing,WDAF,Capital Expenditure,Other Capital Expenditure,THE WREKIN HOUSING TRUST,10/01/2012,SISD/00007129, 760.28 
Housing & Planning,Housing,WDAF,Capital Expenditure,Other Capital Expenditure,STANNAH LIFT SERVICES LTD,10/01/2012,9005119306," 1,816.00 "
Housing & Planning,Housing,WDAF,Capital Expenditure,Other Capital Expenditure,MARTIN EVANS CONSTRUCTION LTD,11/01/2012,2954," 3,674.78 "
Housing & Planning,Housing,WDAF,Capital Expenditure,Other Capital Expenditure,STANNAH LIFT SERVICES LTD,11/01/2012,9085122515," 1,726.00 "
Housing & Planning,Housing,WDAF,Capital Expenditure,Other Capital Expenditure,WILCOX PLUMBING & HEATING,11/01/2012,573," 2,112.50 "
Housing & Planning,Housing,WDAF,Capital Expenditure,Other Capital Expenditure,BUZZ ELECTRICAL CONTRACTORS,18/01/2012,10/1963/H," 2,600.00 "
Housing & Planning,Housing,WDAF,Capital Expenditure,Other Capital Expenditure,THE WREKIN HOUSING TRUST,06/01/2012,SISD/00007102, 686.45 
Housing & Planning,Housing,WDAF,Capital Expenditure,Other Capital Expenditure,THE WREKIN HOUSING TRUST,06/01/2012,SISD/00007108, 807.50 
Housing & Planning,Housing,WDAF,Capital Expenditure,Other Capital Expenditure,THE WREKIN HOUSING TRUST,06/01/2012,SISD/00007101," 1,170.52 "
Housing & Planning,Housing,WDAF,Capital Expenditure,Other Capital Expenditure,THE WREKIN HOUSING TRUST,16/01/2012,SISD/00007126, 585.26 
Housing & Planning,Housing,WDAF,Capital Expenditure,Other Capital Expenditure,THE WREKIN HOUSING TRUST,16/01/2012,SISD/00007125, 682.76 
Housing & Planning,Housing,WDAF,Capital Expenditure,Other Capital Expenditure,THE WREKIN HOUSING TRUST,16/01/2012,SISD/00007127, 626.78 
Housing & Planning,Housing,WDAF,Capital Expenditure,Other Capital Expenditure,THE WREKIN HOUSING TRUST,16/01/2012,SISD/00007142," 1,384.01 "
Housing & Planning,Housing,WDAF,Capital Expenditure,Other Capital Expenditure,THE WREKIN HOUSING TRUST,16/01/2012,SISD/00007128, 606.87 
Housing & Planning,Housing,WDAF,Capital Expenditure,Other Capital Expenditure,THOMAS PLUMBING & HEATING,18/01/2012,20, 955.00 
Housing & Planning,Housing,WDAF,Capital Expenditure,Other Capital Expenditure,ROSEMONT BUILDING CONTRACTORS,20/01/2012,OPR695," 3,147.75 "
Housing & Planning,Housing,WDAF,Capital Expenditure,Other Capital Expenditure,THE WREKIN HOUSING TRUST,03/01/2012,SISD/00007133, 735.61 
Housing & Planning,Housing,WDAF,Capital Expenditure,Other Capital Expenditure,THE WREKIN HOUSING TRUST,03/01/2012,SISD/00007137," 1,344.73 "
Housing & Planning,Housing,WDAF,Capital Expenditure,Other Capital Expenditure,THE WREKIN HOUSING TRUST,03/01/2012,SISD/00007140," 1,509.34 "
Housing & Planning,Housing,WDAF,Capital Expenditure,Other Capital Expenditure,THE WREKIN HOUSING TRUST,03/01/2012,SISD/00007143," 1,386.76 "
Housing & Planning,Housing,WDAF,Capital Expenditure,Other Capital Expenditure,THE WREKIN HOUSING TRUST,03/01/2012,SISD/00007144," 1,204.15 "
Housing & Planning,Housing,WDAF,Capital Expenditure,Other Capital Expenditure,THE WREKIN HOUSING TRUST,03/01/2012,SISD/00007158," 1,028.00 "
Housing & Planning,Housing,WDAF,Capital Expenditure,Other Capital Expenditure,BOURNVILLE VILLAGE TRUST,03/01/2012,SL32331," 2,143.32 "
Housing & Planning,Housing,WDAF,Capital Expenditure,Other Capital Expenditure,BOURNVILLE VILLAGE TRUST,03/01/2012,SL32332," 2,043.80 "
Housing & Planning,Housing,WDAF,Capital Expenditure,Other Capital Expenditure,ROSEMONT BUILDING CONTRACTORS,03/01/2012,OPR674," 3,361.80 "
Housing & Planning,Housing,WDAF,Capital Expenditure,Other Capital Expenditure,BOURNVILLE VILLAGE TRUST,03/01/2012,SL32330," 1,969.10 "
Housing & Planning,Housing & Planning,YDAB,Premises-Related Expenditure,Preventative Maintenance,A J B CONTRACTING LTD,24/01/2012,96," 23,125.00 "
Housing & Planning,Housing & Planning,YDAB,Premises-Related Expenditure,Preventative Maintenance,A J B CONTRACTING LTD,24/01/2012,97," 9,478.00 "
Housing & Planning,Strategic Housing,DSAA,Employees,Employee Costs Recharged,PARK LANE CENTRE,16/01/2012,SINV1112," 1,155.00 "
Housing & Planning,Strategic Housing,EWAB,Supplies & Services,Other Services,SITA UK,20/01/2012,28035439," 1,265.05 "
Housing & Planning,Strategic Housing,EWAD,Supplies & Services,Other Services,SITA UK,04/01/2012,27037495," 4,431.98 "
Housing & Planning,Strategic Housing,EWAD,Supplies & Services,Other Services,SITA UK,04/01/2012,27039320, 937.67 
Housing & Planning,Strategic Housing,EWAD,Supplies & Services,Other Services,SITA UK,19/01/2012,28036802," 3,956.10 "
Housing & Planning,Strategic Housing,EWAD,Third Party Payments,DSO Contractor Recharge,SITA UK,24/01/2012,28000245," 4,484.46 "
Housing & Planning,Strategic Housing,EWAD,Third Party Payments,DSO Contractor Recharge,SITA UK,04/01/2012,27039322," 4,484.46 "
Housing & Planning,Strategic Housing,EWAJ,Supplies & Services,Computer Software (Maint),LIMEHOUSE SOFTWARE  LTD,25/01/2012,LUK000192," 8,694.29 "
Housing & Planning,Strategic Housing,WDSB,Capital Expenditure,External Professional Fees,BARRY LOWE SURVEYS LTD,17/01/2012,D067, 950.00 
Housing & Planning,Strategic Housing,WDSB,Capital Expenditure,Payments to Contractor,AE PROPERTY MAINTENACE,27/01/2012,10, 531.00 
Housing & Planning,Strategic Housing,WDSB,Capital Expenditure,Payments to Contractor,VPS (UK) LTD,26/01/2012,SRUK-005273," 5,747.48 "
Housing & Planning,Strategic Housing,WDSB,Capital Expenditure,Payments to Contractor,GROUND INVESTIGATION & PILING LTD,24/01/2012,26906," 5,603.93 "
Housing & Planning,Strategic Housing,WDSB,Capital Expenditure,Payments to Contractor,WPD MIDLANDS NETWORKS SERVICES LTD,10/01/2012,730000836," 1,750.00 "
Housing & Planning,Strategic Housing,WDSB,Capital Expenditure,Payments to Contractor,SUNDRY SUPPLIER - C/O POST ROOM,13/01/2012,SUTTON HILL NATIONAL GRID, 507.00 
Housing & Planning,Strategic Housing,WDSB,Capital Expenditure,Site Investigation,SEVERN TRENT WATER LTD,20/01/2012,1800000077," 4,861.35 "
Housing & Planning,Strategic Housing,WDSD,Capital Expenditure,Payments to Contractor,MCPHILLIPS (WELLINGTON) LTD,27/01/2012,Y1241," 25,552.13 "
Housing & Planning,Strategic Housing,WDSE,Capital Expenditure,Legal Fees,MILLS & REEVE,18/01/2012,CAMBIL/420370/V/1/1, 704.00 
Housing & Planning,Strategic Housing,WDSE,Capital Expenditure,Payments to Contractor,DAYS NEW HOME LTD,10/01/2012,775123," 53,900.00 "
Housing & Planning,Strategic Housing,WDSE,Capital Expenditure,Site Investigation,VPS (UK) LTD,18/01/2012,SRUK-004989," 1,056.00 "
Housing & Planning,Strategic Housing,WDSE,Capital Expenditure,Site Investigation,VPS (UK) LTD,18/01/2012,646596," 1,056.00 "
Housing & Planning,Strategic Housing,WDSG,Capital Expenditure,Payments to Contractor,TELFORD & WREKIN CITIZENS ADVICE BUREAU,09/01/2012,HOKS/01/12," 6,770.32 "
Housing & Planning,Strategic Housing,WDSH,Capital Expenditure,Other Capital Expenditure,WREKIN HOUSING TRUST,05/01/2012,INFILLSITENOVEMBER," 40,000.00 "
Housing & Planning,Strategic Housing,WDSL,Capital Expenditure,Expenditure on loans & other financial assistance,BOURNVILLE VILLAGE TRUST,23/01/2012,LIGHTMOORCOMPLETION," 196,319.00 "
Housing & Planning,Strategic Housing,WDSP,Capital Expenditure,Payments to Contractor,VPS (UK) LTD,26/01/2012,SRUK-005271," 3,831.66 "
Housing & Planning,Strategic Housing,WDSP,Capital Expenditure,Payments to Contractor,K & M CONSTRUCTION LTD,18/01/2012,283/090112, 604.50 
Property & ICT,Building Schools for the Future (BSF),GFAA,Employees,Course Fees,UNIVERSITY OF WOLVERHAMPTON,16/01/2012,T00485742," 1,303.20 "
Property & ICT,Building Schools for the Future (BSF),WGAC,Capital Expenditure,External Professional Fees,MOTT MACDONALD LIMITED,03/01/2012,IN00228135," 10,453.33 "
Property & ICT,Building Schools for the Future (BSF),WGAD,Capital Expenditure,Legal Fees,NABARRO,16/01/2012,1186051," 4,657.50 "
Property & ICT,Building Schools for the Future (BSF),WGAD,Capital Expenditure,External Professional Fees,MOTT MACDONALD LIMITED,16/01/2012,IN00230546," 10,907.32 "
Property & ICT,Building Schools for the Future (BSF),WGAD,Capital Expenditure,Payments to Contractor,KIER CONSTRUCTION LTD,31/01/2012,11070023," 1,111,347.00 "
Property & ICT,Building Schools for the Future (BSF),WGAF,Capital Expenditure,Legal Fees,NABARRO,16/01/2012,1185014," 4,721.83 "
Property & ICT,Building Schools for the Future (BSF),WGAG,Capital Expenditure,Legal Fees,NABARRO,18/01/2012,1185989," 20,599.79 "
Property & ICT,Building Schools for the Future (BSF),WGAG,Capital Expenditure,Legal Fees,NABARRO,16/01/2012,1185011," 4,934.40 "
Property & ICT,Building Schools for the Future (BSF),WGAG,Capital Expenditure,Legal Fees,NABARRO,04/01/2012,1183157," 4,061.60 "
Property & ICT,Building Schools for the Future (BSF),WGAG,Capital Expenditure,Payments to Contractor,KIER CONSTRUCTION LTD,27/01/2012,11070010," 654,056.45 "
Property & ICT,Building Schools for the Future (BSF),WGAG,Capital Expenditure,Payments to Contractor,MOTT MACDONALD LIMITED,03/01/2012,IN00228706," 1,062.57 "
Property & ICT,Building Schools for the Future (BSF),WGAH,Capital Expenditure,Payments to Contractor,JONES & HAMPTON LTD,18/01/2012,51729," 4,661.74 "
Property & ICT,Building Schools for the Future (BSF),WGAJ,Capital Expenditure,Legal Fees,NABARRO,19/01/2012,1186610," 3,029.86 "
Property & ICT,Building Schools for the Future (BSF),WGAJ,Capital Expenditure,Legal Fees,WARD HADAWAY SOLICITORS,31/01/2012,454901," 8,506.50 "
Property & ICT,Building Schools for the Future (BSF),WGAJ,Capital Expenditure,Payments to Contractor,KIER CONSTRUCTION LTD,03/01/2012,11060023," 111,500.75 "
Property & ICT,Building Schools for the Future (BSF),WGAJ,Capital Expenditure,Site Purchase,COUCH CONSULTING ENGINEERS,03/01/2012,6187," 4,400.00 "
Property & ICT,Building Schools for the Future (BSF),WGAL,Capital Expenditure,Legal Fees,NABARRO,19/01/2012,1186615," 1,003.80 "
Property & ICT,Building Schools for the Future (BSF),WGAP,Capital Expenditure,Legal Fees,NABARRO,18/01/2012,1186133," 10,224.13 "
Property & ICT,Building Schools for the Future (BSF),WGAP,Capital Expenditure,Legal Fees,NABARRO,16/01/2012,1185013," 5,461.70 "
Property & ICT,Building Schools for the Future (BSF),WGAP,Capital Expenditure,Payments to Contractor,KIER CONSTRUCTION LTD,03/01/2012,11060024," 141,845.04 "
Property & ICT,Building Schools for the Future (BSF),WGAT,Capital Expenditure,Legal Fees,NABARRO,18/01/2012,1186139," 10,119.90 "
Property & ICT,Capital and Facilities Management,CFAA,Premises-Related Expenditure,Grounds Maintenance - Other,NOBRIDGE LTD,23/01/2012,5382," 3,218.23 "
Property & ICT,Capital and Facilities Management,CFAB,Supplies & Services,Comp Software (Purch / Hire),SPECIALIST COMPUTERS CENTRES PLC,26/01/2012,OP/L437787," 5,000.00 "
Property & ICT,Capital and Facilities Management,CFAD,Supplies & Services,Security Services,BUSINESS WATCH GUARDING LIMITED,12/01/2012,8352," 17,719.35 "
Property & ICT,Capital and Facilities Management,CFAD,Supplies & Services,Security Services,BUSINESS WATCH GUARDING LIMITED,04/01/2012,8185," 17,722.42 "
Property & ICT,Capital and Facilities Management,CFAE,Premises-Related Expenditure,Contingency Repairs,NEWPORT & DISTRICT AGRICULTURAL SOCIETY,23/01/2012,2011/BTW/05, 590.00 
Property & ICT,Capital and Facilities Management,CFAE,Premises-Related Expenditure,Electricity,WEST MERCIA SUPPLIES,04/01/2012,HQ009222326953," 1,045.39 "
Property & ICT,Capital and Facilities Management,CFAE,Premises-Related Expenditure,Gas,WEST MERCIA SUPPLIES,11/01/2012,HQ00922/2331225," 1,034.18 "
Property & ICT,Capital and Facilities Management,CFAF,Premises-Related Expenditure,Water Rates,SEVERN TRENT WATER LTD,23/01/2012,344093387," 1,777.92 "
Property & ICT,Capital and Facilities Management,CFAH,Premises-Related Expenditure,R&M -Buildings DLO Charge,GRANVILLE CONSTRUCTION & MAINTENANCE LTD,27/01/2012,7917, 690.00 
Property & ICT,Capital and Facilities Management,CFAH,Premises-Related Expenditure,R&M -Buildings DLO Charge,GRANVILLE CONSTRUCTION & MAINTENANCE LTD,27/01/2012,7917," 5,661.21 "
Property & ICT,Capital and Facilities Management,CFAH,Premises-Related Expenditure,R&M -Buildings DLO Charge,GRA-BERN,27/01/2012,27364, 685.00 
Property & ICT,Capital and Facilities Management,CFAK,Premises-Related Expenditure,Water Rates,SEVERN TRENT WATER LTD,11/01/2012,478073853, 535.24 
Property & ICT,Capital and Facilities Management,CLMA,Supplies & Services,Text Messages,CLEANIT CLEANING SERVICES,23/01/2012,20478, 551.25 
Property & ICT,Capital and Facilities Management,WFAK,Capital Expenditure,Payments to Contractor,PICKERINGS EUROPE LIMITED,26/01/2012,1016," 1,747.20 "
Property & ICT,Capital and Facilities Management,WFBD,Capital Expenditure,Payments to Contractor,PYRAMID SCHOOLS (HADLEY) LTD,04/01/2012,588," 1,215.00 "
Property & ICT,Capital and Facilities Management,WFBG,Capital Expenditure,Payments to Contractor,PAVE AWAYS LTD,31/01/2012,EC203-10," 12,345.12 "
Property & ICT,Capital and Facilities Management,WGBH,Capital Expenditure,Payments to Contractor,ARROW ENERGY SOLUTIONS LTD,10/01/2012,AES224, 600.00 
Property & ICT,Capital and Facilities Management,WGBM,Capital Expenditure,Payments to Contractor,NOBRIDGE LTD,11/01/2012,5353," 6,600.00 "
Property & ICT,Capital and Facilities Management,WGBR,Capital Expenditure,Payments to Contractor,GRANVILLE CONSTRUCTION & MAINTENANCE LTD,26/01/2012,7986," 1,189.32 "
Property & ICT,Capital and Facilities Management,WGBR,Capital Expenditure,Payments to Contractor,GRANVILLE CONSTRUCTION & MAINTENANCE LTD,26/01/2012,7986, 792.88 
Property & ICT,Capital and Facilities Management,WGCF,Capital Expenditure,Payments to Contractor,WELLINGTON INSULATION CO. LTD,11/01/2012,11173, 911.00 
Property & ICT,Capital and Facilities Management,WGCF,Capital Expenditure,Payments to Contractor,SICO EUROPE LTD,09/01/2012,INV0073257," 3,891.60 "
Property & ICT,Capital and Facilities Management,WGCF,Capital Expenditure,Payments to Contractor,ERIC NEVILLE CATERING SUPPLIES LTD,16/01/2012,189209, 587.81 
Property & ICT,Capital and Facilities Management,WGCF,Capital Expenditure,Payments to Contractor,WINDOW & DOOR CONTRACT SERVICES,26/01/2012,13254," 1,304.91 "
Property & ICT,Capital and Facilities Management,WGCF,Capital Expenditure,Payments to Contractor,WINDOW & DOOR CONTRACT SERVICES,26/01/2012,13260," 2,330.64 "
Property & ICT,Capital and Facilities Management,WGCF,Capital Expenditure,Payments to Contractor,WINDOW & DOOR CONTRACT SERVICES,26/01/2012,13253," 2,257.74 "
Property & ICT,Capital and Facilities Management,WGCF,Capital Expenditure,Payments to Contractor,WINDOW & DOOR CONTRACT SERVICES,26/01/2012,13255," 1,617.03 "
Property & ICT,Capital and Facilities Management,WGCF,Capital Expenditure,Payments to Contractor,WELLINGTON INSULATION CO. LTD,26/01/2012,11212," 3,220.00 "
Property & ICT,Capital and Facilities Management,WGCF,Capital Expenditure,Payments to Contractor,CLC CONTRACTORS LTD,17/01/2012,AP29642-001," 7,514.00 "
Property & ICT,Capital and Facilities Management,WPAF,Capital Expenditure,Payments to Contractor,COOPER & WILLIAMS LTD,10/01/2012,11-100060," 19,561.88 "
Property & ICT,Capital and Facilities Management,WPCC,Capital Expenditure,Payments to Contractor,TAYLORS MECHANICAL H & P SERVICES LTD,11/01/2012,TM9202, 742.00 
Property & ICT,Capital and Facilities Management,WPGP,Capital Expenditure,Payments to Contractor,NOBRIDGE LTD,26/01/2012,5374," 11,500.00 "
Property & ICT,Capital and Facilities Management,WPJF,Capital Expenditure,Payments to Contractor,WELLINGTON INSULATION CO. LTD,31/01/2012,1M88/CREDITADJ,"-1,716.00 "
Property & ICT,Capital and Facilities Management,WPJF,Capital Expenditure,Payments to Contractor,ADT FIRE & SECURITY PLC,30/01/2012,201, 679.05 
Property & ICT,Capital and Facilities Management,WPJF,Capital Expenditure,Payments to Contractor,ADT FIRE & SECURITY PLC,30/01/2012,20118010-02," 2,691.00 "
Property & ICT,Capital and Facilities Management,WPJF,Capital Expenditure,Payments to Contractor,WELLINGTON INSULATION CO. LTD,26/01/2012,11188," 1,716.00 "
Property & ICT,Capital and Facilities Management,WPJF,Capital Expenditure,Payments to Contractor,WELLINGTON INSULATION CO. LTD,26/01/2012,11203," 6,539.00 "
Property & ICT,Capital and Facilities Management,WPLL,Capital Expenditure,Payments to Contractor,RCS ROOFING CONSTRUCTION SERVICES LTD,04/01/2012,11BC074/03," 7,950.00 "
Property & ICT,Capital and Facilities Management,WPLL,Capital Expenditure,Payments to Contractor,TELFORD BUILDING CONTRACTORS,10/01/2012,10BC00706," 3,229.19 "
Property & ICT,Capital and Facilities Management,WPMB,Capital Expenditure,Payments to Contractor,GRANVILLE CONSTRUCTION & MAINTENANCE LTD,05/01/2012,7936," 1,136.00 "
Property & ICT,Capital and Facilities Management,WPMB,Capital Expenditure,Payments to Contractor,GRANVILLE CONSTRUCTION & MAINTENANCE LTD,05/01/2012,7936, 864.00 
Property & ICT,Capital and Facilities Management,WPMB,Capital Expenditure,Payments to Contractor,GRANVILLE CONSTRUCTION & MAINTENANCE LTD,20/01/2012,7975," 1,927.89 "
Property & ICT,Capital and Facilities Management,WPMB,Capital Expenditure,Payments to Contractor,GRANVILLE CONSTRUCTION & MAINTENANCE LTD,20/01/2012,7975," 1,285.26 "
Property & ICT,Capital and Facilities Management,WPMB,Capital Expenditure,Payments to Contractor,GRANVILLE CONSTRUCTION & MAINTENANCE LTD,23/01/2012,7975CREDIT,"-3,213.15 "
Property & ICT,Capital and Facilities Management,WPMB,Capital Expenditure,Payments to Contractor,GRANVILLE CONSTRUCTION & MAINTENANCE LTD,23/01/2012,7975CORRECTION," 1,927.89 "
Property & ICT,Capital and Facilities Management,WPMB,Capital Expenditure,Payments to Contractor,GRANVILLE CONSTRUCTION & MAINTENANCE LTD,23/01/2012,7975CORRECTION," 1,285.26 "
Property & ICT,Capital and Facilities Management,WPMB,Capital Expenditure,Payments to Contractor,GRANVILLE CONSTRUCTION & MAINTENANCE LTD,26/01/2012,7950, 985.00 
Property & ICT,Capital and Facilities Management,WPMO,Capital Expenditure,Payments to Contractor,NOBRIDGE LTD,17/01/2012,5391, 825.00 
Property & ICT,Capital and Facilities Management,WPOK,Capital Expenditure,Payments to Contractor,GRANVILLE CONSTRUCTION & MAINTENANCE LTD,09/01/2012,7940," 1,047.50 "
Property & ICT,Capital and Facilities Management,WPSG,Capital Expenditure,Payments to Contractor,ARROW ENERGY SOLUTIONS LTD,12/01/2012,AES227," 1,400.00 "
Property & ICT,Capital and Facilities Management,WPWL,Capital Expenditure,Building Regs & Planning Fees,ZEBRA ARCHITECTS,12/01/2012,582619," 1,750.00 "
Property & ICT,Estates & Investments,CEAB,Premises-Related Expenditure,Other,JOHN G RUSSELL (TRANSPORT) LTD,05/01/2012,IINV100005381," 2,250.00 "
Property & ICT,Estates & Investments,CEAB,Premises-Related Expenditure,Other,JOHN G RUSSELL (TRANSPORT) LTD,05/01/2012,INV100005378," 2,250.00 "
Property & ICT,Estates & Investments,CEAB,Premises-Related Expenditure,Other,JOHN G RUSSELL (TRANSPORT) LTD,05/01/2012,INV100005383," 2,250.00 "
Property & ICT,Estates & Investments,CEAB,Premises-Related Expenditure,Other,JOHN G RUSSELL (TRANSPORT) LTD,03/01/2012,INV100005379," 2,250.00 "
Property & ICT,Estates & Investments,CEAB,Premises-Related Expenditure,Other,JOHN G RUSSELL (TRANSPORT) LTD,13/01/2012,INV100005422," 2,250.00 "
Property & ICT,Estates & Investments,CEAB,Premises-Related Expenditure,Other,JOHN G RUSSELL (TRANSPORT) LTD,13/01/2012,11NV100005426," 2,250.00 "
Property & ICT,Estates & Investments,CEAB,Premises-Related Expenditure,Other,JOHN G RUSSELL (TRANSPORT) LTD,13/01/2012,IINV100005420," 2,250.00 "
Property & ICT,Estates & Investments,CEAC,Premises-Related Expenditure,R&M -Building Other,COFELY LIMITED,12/01/2012,950027593," 1,775.72 "
Property & ICT,Estates & Investments,CEAC,Premises-Related Expenditure,Electricity,WEST MERCIA SUPPLIES,13/01/2012,HQ009222326231," 1,393.54 "
Property & ICT,Estates & Investments,CEAC,Premises-Related Expenditure,Window Cleaning,SPACECARE,13/01/2012,35937, 680.00 
Property & ICT,Estates & Investments,CEAC,Supplies & Services,Security Services,BUSINESS WATCH GUARDING LIMITED,10/01/2012,8184," 1,981.19 "
Property & ICT,Estates & Investments,CEAD,Premises-Related Expenditure,Electricity,WEST MERCIA SUPPLIES,13/01/2012,HQ009222326231," 1,124.00 "
Property & ICT,Estates & Investments,CEAE,Premises-Related Expenditure,R&M -Building Other,PRYCE (BUILDERS) LTD,10/01/2012,3534, 670.00 
Property & ICT,Estates & Investments,CEAE,Premises-Related Expenditure,Electricity,WEST MERCIA SUPPLIES,13/01/2012,HQ009222286909, 511.72 
Property & ICT,Estates & Investments,CEAH,Premises-Related Expenditure,R&M -Buildings DLO Charge,FINNIGAN & HARPER LIMITED,03/01/2012,6902, 790.00 
Property & ICT,Estates & Investments,CEAH,Premises-Related Expenditure,R&M -Building Other,GRA-BERN,06/01/2012,27662," 1,366.24 "
Property & ICT,Estates & Investments,CEAH,Premises-Related Expenditure,R&M -Building Other,GRA-BERN,06/01/2012,27664, 827.37 
Property & ICT,Estates & Investments,CEAH,Premises-Related Expenditure,R&M -Building Other,GRA-BERN,06/01/2012,27659, 882.82 
Property & ICT,Estates & Investments,CEAH,Premises-Related Expenditure,Electricity,SCOTTISH POWER PLC,11/01/2012,101960718, 777.20 
Property & ICT,Estates & Investments,CEAH,Premises-Related Expenditure,Electricity,NPOWER LIMITED,05/01/2012,LGUGZVRQ, 552.03 
Property & ICT,Estates & Investments,CEAH,Premises-Related Expenditure,Electricity,BRITISH GAS BUSINESS,04/01/2012,52077605/1," 1,392.68 "
Property & ICT,Estates & Investments,CEAH,Premises-Related Expenditure,Electricity,NPOWER LIMITED,17/01/2012,LGUG56HF, 845.57 
Property & ICT,Estates & Investments,CEAH,Premises-Related Expenditure,Gas,WEST MERCIA SUPPLIES,10/01/2012,HQ00922/2331295, 969.04 
Property & ICT,Estates & Investments,CEAH,Premises-Related Expenditure,Water Rates,SEVERN TRENT WATER LTD,19/01/2012,607091669," 2,357.76 "
Property & ICT,Estates & Investments,CEAH,Premises-Related Expenditure,Water Rates,SEVERN TRENT WATER LTD,06/01/2012,899076371," 1,145.81 "
Property & ICT,Estates & Investments,CEAH,Premises-Related Expenditure,Water Rates,SEVERN TRENT WATER LTD,18/01/2012,7020103882," 1,163.13 "
Property & ICT,Estates & Investments,CEAH,Supplies & Services,Consultants Fees,JOHNSON FELLOWS,17/01/2012,39377/BUI, 550.00 
Property & ICT,Estates & Investments,CEAH,Supplies & Services,Payment Of Income Collected,HSBC EQUIPMENT FINANCE (UK) LIMITED,19/01/2012,003-01/12," 5,668.87 "
Property & ICT,Estates & Investments,CEAH,Supplies & Services,Payment Of Income Collected,HSBC EQUIPMENT FINANCE (UK) LIMITED,04/01/2012,005-01/12," 1,486.08 "
Property & ICT,Estates & Investments,CEAH,Supplies & Services,Payment Of Income Collected,HSBC EQUIPMENT FINANCE (UK) LIMITED,16/01/2012,001-01/12," 20,258.91 "
Property & ICT,Estates & Investments,CEAH,Supplies & Services,Payment Of Income Collected,HSBC EQUIPMENT FINANCE (UK) LIMITED,17/01/2012,004-01/12," 1,500.00 "
Property & ICT,Estates & Investments,CEAH,Supplies & Services,Payment Of Income Collected,HSBC EQUIPMENT FINANCE (UK) LIMITED,17/01/2012,002-01/12," 7,854.17 "
Property & ICT,Estates & Investments,CEAJ,Third Party Payments,Voluntary Bodies,SEVERN GORGE COUNTRYSIDE TRUST,20/01/2012,SGCT-03-2011," 43,973.78 "
Property & ICT,Estates & Investments,CEAL,Employees,Agency Supply Costs,JUDD FARRIS LIMITED,11/01/2012,413191, 775.00 
Property & ICT,Estates & Investments,CEAL,Employees,Agency Supply Costs,JUDD FARRIS LIMITED,11/01/2012,413289, 900.00 
Property & ICT,Estates & Investments,CEAL,Employees,Agency Supply Costs,JUDD FARRIS LIMITED,17/01/2012,412907, 756.25 
Property & ICT,Estates & Investments,CEAL,Employees,Agency Supply Costs,MACDONALD & COMPANY FREELANCE LTD,10/01/2012,42130, 555.00 
Property & ICT,Estates & Investments,CEAL,Employees,Agency Supply Costs,JUDD FARRIS LIMITED,10/01/2012,413241, 812.50 
Property & ICT,Estates & Investments,CEAN,Premises-Related Expenditure,R&M -Buildings DLO Charge,PRYCE (BUILDERS) LTD,24/01/2012,3465, 650.00 
Property & ICT,Estates & Investments,CEAN,Premises-Related Expenditure,R&M -Buildings DLO Charge,GRANVILLE CONSTRUCTION & MAINTENANCE LTD,03/01/2012,7738, 921.00 
Property & ICT,Estates & Investments,CEAN,Premises-Related Expenditure,Fire Alarms & Emergency Light,ADT FIRE & SECURITY PLC,19/01/2012,20483007-02, 631.00 
Property & ICT,Estates & Investments,CEAN,Premises-Related Expenditure,R&M -Building Other,JONES & HAMPTON LTD,19/01/2012,keyis, 808.93 
Property & ICT,Estates & Investments,CEAN,Premises-Related Expenditure,R&M -Building Other,JONES & HAMPTON LTD,04/01/2012,52625, 561.18 
Property & ICT,Estates & Investments,CEAN,Premises-Related Expenditure,R&M -Building Other,TAYLORS MECHANICAL H & P SERVICES LTD,17/01/2012,2501, 859.76 
Property & ICT,Estates & Investments,CEAN,Premises-Related Expenditure,Electricity,NPOWER LIMITED,09/01/2012,LGUGZQYD," 2,251.01 "
Property & ICT,Estates & Investments,CEAN,Premises-Related Expenditure,Electricity,NPOWER LIMITED,20/01/2012,LGUG52M7," 2,272.77 "
Property & ICT,Estates & Investments,CEAN,Premises-Related Expenditure,Electricity,WEST MERCIA SUPPLIES,24/01/2012,HQ009222340218," 2,350.55 "
Property & ICT,Estates & Investments,CEAN,Premises-Related Expenditure,Gas,WEST MERCIA SUPPLIES,18/01/2012,HQ00922/2291715, 680.20 
Property & ICT,Estates & Investments,CEAN,Premises-Related Expenditure,Water Rates,SEVERN TRENT WATER LTD,26/01/2012,728010304," 1,529.74 "
Property & ICT,Estates & Investments,CEAN,Premises-Related Expenditure,Water Rates,SEVERN TRENT WATER LTD,13/01/2012,8310035727/DEC11," 1,966.69 "
Property & ICT,Estates & Investments,CEAN,Premises-Related Expenditure,Water Rates,SEVERN TRENT WATER LTD,05/01/2012,545159250, 835.53 
Property & ICT,Estates & Investments,CEAN,Premises-Related Expenditure,Building Cleaning DSO,CANNON,19/01/2012,CN17941173," 1,278.15 "
Property & ICT,Estates & Investments,CEAN,Premises-Related Expenditure,Grounds Maintenance - L&CS,R M F LANDSCAPING LTD,24/01/2012,10427," 2,104.38 "
Property & ICT,Estates & Investments,CEAN,Premises-Related Expenditure,Grounds Maintenance - L&CS,ASHTENNE ASSET MANAGEMENT LTD,04/01/2012,384363, 757.71 
Property & ICT,Estates & Investments,CEAN,Premises-Related Expenditure,Grounds Maintenance - L&CS,A & P PLANT HIRE,06/01/2012,11194," 1,120.00 "
Property & ICT,Estates & Investments,CEAN,Supplies & Services,Security Services,RMP SPECIALIST SERVICES LIMITED,03/01/2012,69," 2,008.60 "
Property & ICT,Estates & Investments,WCAM,Capital Expenditure,Payments to Contractor,R M F LANDSCAPING LTD,09/01/2012,10325," 2,468.00 "
Property & ICT,Estates & Investments,WCAM,Capital Expenditure,Payments to Contractor,SIGNS EXPRESS (TELFORD),11/01/2012,13452, 995.00 
Property & ICT,Estates & Investments,WCAP,Capital Expenditure,Payments to Contractor,A HAND SERVICES LTD,20/01/2012,1203AN637," 2,140.00 "
Property & ICT,Estates & Investments,WCAP,Capital Expenditure,Payments to Contractor,K & M CONSTRUCTION LTD,19/01/2012,231/151111," 3,514.20 "
Property & ICT,Estates & Investments,WCAP,Capital Expenditure,Payments to Contractor,K & M CONSTRUCTION LTD,19/01/2012,279/221211," 4,879.46 "
Property & ICT,Facilities (Catering & Cleaning),CAMA,Supplies & Services,Mobile Phones,ORANGE PCS LTD,16/01/2012,115728684, 725.00 
Property & ICT,Facilities (Catering & Cleaning),CAMA,Supplies & Services,Subscriptions,FRETWELL-DOWNING HOSPITALITY,04/01/2012,24011/1," 1,140.52 "
Property & ICT,Facilities (Catering & Cleaning),CASM,Supplies & Services,EEC Whole Milk,JOHAL DAIRIES,27/01/2012,NUR140112, 767.71 
Property & ICT,Facilities (Catering & Cleaning),CASM,Supplies & Services,EEC Whole Milk,JOHAL DAIRIES,27/01/2012,SCH070112," 1,912.66 "
Property & ICT,Facilities (Catering & Cleaning),CASM,Supplies & Services,EEC Whole Milk,JOHAL DAIRIES,27/01/2012,SCH140112," 2,941.87 "
Property & ICT,Facilities (Catering & Cleaning),CASM,Supplies & Services,EEC Whole Milk,JOHAL DAIRIES,27/01/2012,SCH171211," 2,844.45 "
Property & ICT,Facilities (Catering & Cleaning),CASM,Supplies & Services,EEC Whole Milk,JOHAL DAIRIES,27/01/2012,SCH210112," 2,940.55 "
Property & ICT,Facilities (Catering & Cleaning),CASM,Supplies & Services,EEC Whole Milk,JOHAL DAIRIES,16/01/2012,NUR051111, 711.78 
Property & ICT,Facilities (Catering & Cleaning),CASM,Supplies & Services,EEC Whole Milk,JOHAL DAIRIES,16/01/2012,NUR121111, 730.22 
Property & ICT,Facilities (Catering & Cleaning),CASM,Supplies & Services,EEC Whole Milk,JOHAL DAIRIES,16/01/2012,NUR221011, 723.73 
Property & ICT,Facilities (Catering & Cleaning),CASM,Supplies & Services,EEC Whole Milk,JOHAL DAIRIES,16/01/2012,SCH031211," 2,671.53 "
Property & ICT,Facilities (Catering & Cleaning),CASM,Supplies & Services,EEC Whole Milk,JOHAL DAIRIES,16/01/2012,SCH051111," 2,851.18 "
Property & ICT,Facilities (Catering & Cleaning),CASM,Supplies & Services,EEC Whole Milk,JOHAL DAIRIES,16/01/2012,SCH221011," 2,936.32 "
Property & ICT,Facilities (Catering & Cleaning),CASM,Supplies & Services,EEC Whole Milk,JOHAL DAIRIES,16/01/2012,SCH261111," 2,928.93 "
Property & ICT,Facilities (Catering & Cleaning),CASM,Supplies & Services,EEC Whole Milk,JOHAL DAIRIES,16/01/2012,NUR031211, 670.90 
Property & ICT,Facilities (Catering & Cleaning),CASM,Supplies & Services,EEC Whole Milk,JOHAL DAIRIES,16/01/2012,NUR261111, 730.22 
Property & ICT,Facilities (Catering & Cleaning),CASM,Supplies & Services,EEC Whole Milk,JOHAL DAIRIES,16/01/2012,SCH101211," 2,945.56 "
Property & ICT,Facilities (Catering & Cleaning),CASM,Supplies & Services,EEC Whole Milk,JOHAL DAIRIES,27/01/2012,NUR210112, 773.14 
Property & ICT,Facilities (Catering & Cleaning),CASM,Supplies & Services,EEC Whole Milk,JOHAL DAIRIES,27/01/2012,NUR171211, 702.37 
Property & ICT,Facilities (Catering & Cleaning),CASM,Supplies & Services,EEC Whole Milk,JOHAL DAIRIES,16/01/2012,SCH121111," 2,936.98 "
Property & ICT,Facilities (Catering & Cleaning),CASM,Supplies & Services,EEC Whole Milk,JOHAL DAIRIES,16/01/2012,SCH191111," 2,932.89 "
Property & ICT,Facilities (Catering & Cleaning),CASM,Supplies & Services,EEC Whole Milk,JOHAL DAIRIES,16/01/2012,NUR101211, 730.22 
Property & ICT,Facilities (Catering & Cleaning),CASM,Supplies & Services,EEC Whole Milk,JOHAL DAIRIES,16/01/2012,NUR191111, 722.55 
Property & ICT,Facilities (Catering & Cleaning),CASP,Supplies & Services,Provisions,FRESHVIEW FOODS LTD,11/01/2012,INVOICE 59,"-2,244.32 "
Property & ICT,Facilities (Catering & Cleaning),CASP,Supplies & Services,Provisions,FRESHVIEW FOODS LTD,11/01/2012,INVOICE 60,"-2,244.32 "
Property & ICT,Facilities (Catering & Cleaning),CASP,Supplies & Services,Provisions,BISMILLAH HALAL MEAT,27/01/2012,33, 637.50 
Property & ICT,Facilities (Catering & Cleaning),CASP,Supplies & Services,Provisions,G N BADLEY & SONS,16/01/2012,268, 502.15 
Property & ICT,Facilities (Catering & Cleaning),CASS,Supplies & Services,Provisions,BIKOLD,12/01/2012,660704, 510.91 
Property & ICT,Facilities (Catering & Cleaning),CASS,Supplies & Services,Provisions,SMART FOOD,25/01/2012,31714, 574.80 
Property & ICT,Facilities (Catering & Cleaning),CASS,Supplies & Services,Provisions,BIKOLD,05/01/2012,660351, 548.36 
Property & ICT,ICT - Infrastructure & Operations,CBAC,Employees,Staff Training,TROJAN CONSULTANTS LIMITED,23/01/2012,13579, 766.00 
Property & ICT,ICT - Infrastructure & Operations,CBAF,Supplies & Services,Comp Hardware (Purch / Hire),SPECIALIST COMPUTERS CENTRES PLC,10/01/2012,OP/L426645, 540.15 
Property & ICT,ICT - Infrastructure & Operations,CBAF,Supplies & Services,Comp Hardware (Purch / Hire),WREKIN SERVICES LTD,23/01/2012,513," 16,477.86 "
Property & ICT,ICT - Infrastructure & Operations,CBAF,Supplies & Services,Comp Hardware (Purch / Hire),CCS MEDIA LIMITED,09/01/2012,1268193, 665.00 
Property & ICT,ICT - Infrastructure & Operations,CBAF,Supplies & Services,Comp Hardware (Purch / Hire),Groupcall,09/01/2012,8448," 4,320.00 "
Property & ICT,ICT - Infrastructure & Operations,CBAF,Supplies & Services,Comp Hardware (Purch / Hire),SPECIALIST COMPUTERS CENTRES PLC,26/01/2012,OP/L435945," 12,251.98 "
Property & ICT,ICT - Infrastructure & Operations,CBAF,Supplies & Services,Comp Hardware (Purch / Hire),ELEMENTARY TECHNOLOGY LTD,26/01/2012,10150, 920.00 
Property & ICT,ICT - Infrastructure & Operations,CBAF,Supplies & Services,Comp Hardware (Purch / Hire),ABRAHAM DARBY ACADEMY,26/01/2012,INV000131," 2,520.00 "
Property & ICT,ICT - Infrastructure & Operations,CBAF,Supplies & Services,Comp Hardware (Purch / Hire),ELEMENTARY TECHNOLOGY LTD,06/01/2012,10136, 673.00 
Property & ICT,ICT - Infrastructure & Operations,CBAF,Supplies & Services,Comp Hardware (Purch / Hire),SPECIALIST COMPUTERS CENTRES PLC,06/01/2012,OP/L420647," 9,998.10 "
Property & ICT,ICT - Infrastructure & Operations,CBAF,Supplies & Services,Comp Hardware (Purch / Hire),SYNETRIX LTD,06/01/2012,INV23347," 2,310.00 "
Property & ICT,ICT - Infrastructure & Operations,CBAF,Supplies & Services,Comp Hardware (Purch / Hire),SYNETRIX LTD,06/01/2012,INV23347," 9,960.00 "
Property & ICT,ICT - Infrastructure & Operations,CBAF,Supplies & Services,Comp Hardware (Purch / Hire),SYNETRIX LTD,06/01/2012,INV23347," 14,630.00 "
Property & ICT,ICT - Infrastructure & Operations,CBAF,Supplies & Services,Comp Hardware (Purch / Hire),SYNETRIX LTD,06/01/2012,INV23347," 3,858.00 "
Property & ICT,ICT - Infrastructure & Operations,CBAF,Supplies & Services,Comp Hardware (Purch / Hire),SYNETRIX LTD,06/01/2012,INV23347," 6,922.00 "
Property & ICT,ICT - Infrastructure & Operations,CBAF,Supplies & Services,Comp Hardware (Purch / Hire),SPECIALIST COMPUTERS CENTRES PLC,06/01/2012,OP/L420649," 1,837.11 "
Property & ICT,ICT - Infrastructure & Operations,CBAF,Supplies & Services,Comp Hardware (Purch / Hire),SYNETRIX LTD,06/01/2012,INV23347," 5,882.00 "
Property & ICT,ICT - Infrastructure & Operations,CBAF,Supplies & Services,Comp Hardware (Purch / Hire),SYNETRIX LTD,06/01/2012,INV23347," 5,393.00 "
Property & ICT,ICT - Infrastructure & Operations,CBAF,Supplies & Services,Comp Hardware (Purch / Hire),SYNETRIX LTD,06/01/2012,INV23347," 2,310.00 "
Property & ICT,ICT - Infrastructure & Operations,CBAF,Supplies & Services,Comp Hardware (Purch / Hire),SPECIALIST COMPUTERS CENTRES PLC,05/01/2012,OP/L417265," 1,008.00 "
Property & ICT,ICT - Infrastructure & Operations,CBAF,Supplies & Services,Comp Hardware (Purch / Hire),CCS MEDIA LIMITED,10/01/2012,1269402, 798.00 
Property & ICT,ICT - Infrastructure & Operations,CBAF,Supplies & Services,Comp Hardware (Purch / Hire),SPECIALIST COMPUTERS CENTRES PLC,26/01/2012,OP/L439087," 4,117.50 "
Property & ICT,ICT - Infrastructure & Operations,CBAF,Supplies & Services,Comp Hardware (Purch / Hire),SPECIALIST COMPUTERS CENTRES PLC,26/01/2012,OP/L439087," 3,118.50 "
Property & ICT,ICT - Infrastructure & Operations,CBAF,Supplies & Services,Comp Hardware (Purch / Hire),SPECIALIST COMPUTERS CENTRES PLC,26/01/2012,OP/L439087," 4,117.50 "
Property & ICT,ICT - Infrastructure & Operations,CBAF,Supplies & Services,Comp Software (Purch / Hire),PHOENIX SOFTWARE LTD,30/01/2012,OP/1646342," 9,424.00 "
Property & ICT,ICT - Infrastructure & Operations,CBAF,Supplies & Services,Computer Software (Maint),SPECIALIST COMPUTERS CENTRES PLC,24/01/2012,L385488," 6,905.00 "
Property & ICT,ICT - Infrastructure & Operations,CBAF,Supplies & Services,Computer Software (Maint),NORTHGATE INFORMATION SOLUTIONS UK LTD,30/01/2012,91191526," 1,600.00 "
Property & ICT,ICT - Infrastructure & Operations,CBAF,Supplies & Services,External Computer Use,OPTEVIA,23/01/2012,TELWRE024," 4,000.00 "
Property & ICT,ICT - Infrastructure & Operations,CBAF,Supplies & Services,Telephones,ORANGE PERSONAL COMM SERVICES LTD,04/01/2012,716488394, 703.00 
Property & ICT,ICT - Infrastructure & Operations,CBAF,Supplies & Services,Telephones,ORANGE PERSONAL COMM SERVICES LTD,04/01/2012,728631082," 4,751.45 "
Property & ICT,ICT - Infrastructure & Operations,CBAG,Supplies & Services,Comp Hardware (Purch / Hire),SPECIALIST COMPUTERS CENTRES PLC,20/01/2012,OP/L434166," 6,541.20 "
Property & ICT,ICT - Infrastructure & Operations,CBAG,Supplies & Services,Comp Hardware (Purch / Hire),SPECIALIST COMPUTERS CENTRES PLC,20/01/2012,OP/L434166, 696.84 
Property & ICT,ICT - Infrastructure & Operations,CBAG,Supplies & Services,Comp Software (Purch / Hire),NORTHGATE INFORMATION SOLUTIONS UK LTD,26/01/2012,91187757," 4,561.20 "
Property & ICT,ICT - Infrastructure & Operations,CBAG,Supplies & Services,Comp Software (Purch / Hire),NORTHGATE INFORMATION SOLUTIONS UK LTD,30/01/2012,500263," 4,561.20 "
Property & ICT,ICT - Infrastructure & Operations,CBAG,Supplies & Services,Computer Recharge,CIT VENDOR FINANCE (UK) LIMITED,09/01/2012,4402449731," 1,016.61 "
Property & ICT,ICT - Infrastructure & Operations,CBAG,Supplies & Services,Computer Recharge,CIT VENDOR FINANCE (UK) LIMITED,09/01/2012,4402449732," 1,232.08 "
Property & ICT,ICT - Infrastructure & Operations,CBAG,Supplies & Services,Computer Recharge,CIT VENDOR FINANCE (UK) LIMITED,09/01/2012,4402449725," 7,049.57 "
Property & ICT,ICT - Infrastructure & Operations,CBAG,Supplies & Services,Computer Recharge,CIT VENDOR FINANCE (UK) LIMITED,09/01/2012,4402449726," 6,011.62 "
Property & ICT,ICT - Infrastructure & Operations,CBAG,Supplies & Services,Computer Recharge,CIT VENDOR FINANCE (UK) LIMITED,09/01/2012,4402449727," 3,646.87 "
Property & ICT,ICT - Infrastructure & Operations,CBAG,Supplies & Services,Computer Recharge,CIT VENDOR FINANCE (UK) LIMITED,09/01/2012,4402449728," 3,621.70 "
Property & ICT,ICT - Infrastructure & Operations,CBAG,Supplies & Services,Computer Recharge,CIT VENDOR FINANCE (UK) LIMITED,09/01/2012,4402449723," 16,463.65 "
Property & ICT,ICT - Infrastructure & Operations,CBAG,Supplies & Services,Computer Recharge,CIT VENDOR FINANCE (UK) LIMITED,09/01/2012,4402449729," 2,957.68 "
Property & ICT,ICT - Infrastructure & Operations,CBAG,Supplies & Services,Computer Recharge,CIT VENDOR FINANCE (UK) LIMITED,09/01/2012,4402449730," 3,396.75 "
Property & ICT,ICT - Infrastructure & Operations,CBAG,Supplies & Services,Computer Recharge,CIT VENDOR FINANCE (UK) LIMITED,09/01/2012,4402449724," 1,087.69 "
Property & ICT,ICT - Infrastructure & Operations,CBAG,Supplies & Services,Telephones,VIRGIN MEDIA BUSINESS,13/01/2012,039630801001DEC11," 12,740.01 "
Property & ICT,ICT - Infrastructure & Operations,CBAG,Supplies & Services,Mobile Phones,ORANGE PERSONAL COMM SERVICES LTD,04/01/2012,741006308," 14,159.07 "
Property & ICT,ICT - Infrastructure & Operations,CBAG,Supplies & Services,Mobile Phones,ORANGE PERSONAL COMM SERVICES LTD,04/01/2012,741007298," 1,877.67 "
Property & ICT,ICT - Infrastructure & Operations,CBAG,Supplies & Services,Adult Placements,ORANGE PERSONAL COMM SERVICES LTD,04/01/2012,741006286," 1,024.95 "
Property & ICT,ICT - Infrastructure & Operations,CBAG,Supplies & Services,Other Expenses,AVANQUEST SOLUTIONS,03/01/2012,159059, 530.48 
Property & ICT,ICT - Infrastructure & Operations,CBAH,Supplies & Services,Comp Software (Purch / Hire),PHOENIX SOFTWARE LTD,11/01/2012,OP/1645568," 2,888.00 "
Property & ICT,ICT - Infrastructure & Operations,CBAH,Supplies & Services,Comp Software (Purch / Hire),PHOENIX SOFTWARE LTD,11/01/2012,OP/1646213," 1,515.00 "
Property & ICT,ICT - Infrastructure & Operations,CBAH,Supplies & Services,Comp Software (Purch / Hire),PHOENIX SOFTWARE LTD,13/01/2012,OP/1636918, 681.78 
Property & ICT,ICT - Infrastructure & Operations,CBAH,Supplies & Services,Telecomms,SYNETRIX LTD,18/01/2012,34661,"-81,264.50 "
Property & ICT,ICT - Infrastructure & Operations,CBAJ,Employees,Staff Training,EZE IT LTD,23/01/2012,EZE/20284/284," 5,297.00 "
Property & ICT,ICT - Infrastructure & Operations,CBAJ,Supplies & Services,Comp Hardware (Purch / Hire),SPECIALIST COMPUTERS CENTRES PLC,06/01/2012,OP/L410581, 954.26 
Property & ICT,ICT - Infrastructure & Operations,CBAJ,Supplies & Services,Computer Hardware (Maint),CCS MEDIA LIMITED,10/01/2012,1273761, 846.00 
Property & ICT,ICT - Infrastructure & Operations,CBAJ,Supplies & Services,Comp Software (Purch / Hire),HUMAN CONCEPTS UK LIMITED,04/01/2012,HCUK1002695," 10,962.00 "
Property & ICT,ICT - Infrastructure & Operations,CBAJ,Supplies & Services,Comp Software (Purch / Hire),PHOENIX SOFTWARE LTD,11/01/2012,OP/1645568," 1,646.46 "
Property & ICT,ICT - Infrastructure & Operations,CBAJ,Supplies & Services,Comp Software (Purch / Hire),PHOENIX SOFTWARE LTD,11/01/2012,OP/1646213," 1,320.96 "
Property & ICT,ICT - Infrastructure & Operations,CBAJ,Supplies & Services,Comp Software (Purch / Hire),PHOENIX SOFTWARE LTD,13/01/2012,OP/1636918," 12,676.52 "
Property & ICT,ICT - Infrastructure & Operations,CBAJ,Supplies & Services,Comp Software (Purch / Hire),PHOENIX SOFTWARE LTD,30/01/2012,OP/1646344," 3,470.04 "
Property & ICT,ICT - Infrastructure & Operations,CBAJ,Supplies & Services,Comp Software (Purch / Hire),PHOENIX SOFTWARE LTD,30/01/2012,OP/1646344," 1,148.00 "
Property & ICT,ICT - Infrastructure & Operations,CBAJ,Supplies & Services,Comp Software (Purch / Hire),PHOENIX SOFTWARE LTD,30/01/2012,OP/1646344," 1,149.40 "
Property & ICT,ICT - Infrastructure & Operations,CBAJ,Supplies & Services,Comp Software (Purch / Hire),ING LEASE (UK) LTD,10/01/2012,001/11/1261456," 13,799.79 "
Property & ICT,ICT - Infrastructure & Operations,CBAJ,Supplies & Services,Comp Software (Purch / Hire),CIVICA UK LIMITED,10/01/2012,M/RB007757," 15,448.25 "
Property & ICT,ICT - Infrastructure & Operations,CBAJ,Supplies & Services,Comp Software (Purch / Hire),MIS LOCAL GOVERNMENT SYSTEMS LTD,16/01/2012,61887," 1,800.00 "
Property & ICT,ICT - Infrastructure & Operations,CBAJ,Supplies & Services,Computer Software (Maint),IDOX SOFTWARE LTD,16/01/2012,40743," 41,947.93 "
Property & ICT,ICT - Infrastructure & Operations,CBAJ,Supplies & Services,External Computer Use,JORAPH MANAGED SERVICES LTD,13/01/2012,360," 3,000.00 "
Property & ICT,ICT - Infrastructure & Operations,CBAJ,Supplies & Services,Telephones,SYNETRIX LTD,16/01/2012,INV23410," 946,855.00 "
Property & ICT,ICT - Infrastructure & Operations,CBAJ,Supplies & Services,Telecomms,SYNETRIX LTD,18/01/2012,34661,"-81,264.50 "
Property & ICT,ICT - Infrastructure & Operations,CBAK,Supplies & Services,Printing - Print Room,XEROX (UK) LTD,13/01/2012,379753," 12,179.78 "
Property & ICT,ICT - Infrastructure & Operations,CBAK,Supplies & Services,Printing - Print Room,XEROX (UK) LTD,16/01/2012,AF381903," 16,141.25 "
Property & ICT,ICT - Infrastructure & Operations,CBAK,Supplies & Services,Printing - Other,TAWS PRINTERS LTD,10/01/2012,82811, 852.50 
Property & ICT,ICT - Infrastructure & Operations,CBAK,Supplies & Services,Printing - Other,HSW PRINT,09/01/2012,70888," 1,910.00 "
Property & ICT,ICT - Infrastructure & Operations,CBAK,Supplies & Services,Stationery,WEST MERCIA SUPPLIES,11/01/2012,HQ00922/2333947, 517.00 
Property & ICT,ICT - Infrastructure & Operations,CBAK,Supplies & Services,Stationery,WEST MERCIA SUPPLIES,17/01/2012,HQ00922/2338940, 517.00 
Property & ICT,Operational Property,CAAG,Supplies & Services,Consultants Fees,ALAN BROUGH ASSOCIATES,05/01/2012,5719," 1,100.00 "
Property & ICT,Operational Property,CAAG,Supplies & Services,Consultants Fees,ALAN BROUGH ASSOCIATES,13/01/2012,AMD/JAF/11798," 1,164.00 "
Property & ICT,Operational Property,CAAG,Supplies & Services,Consultants Fees,ALAN BROUGH ASSOCIATES,13/01/2012,AMD/JAF/11802," 1,220.00 "
Property & ICT,Operational Property,CAAH,Premises-Related Expenditure,R&M -Buildings DLO Charge,KOHLER MIRA LIMITED,19/01/2012,9000348377, 890.75 
Property & ICT,Operational Property,CAAH,Premises-Related Expenditure,R&M -Buildings DLO Charge,CHUBB FIRE LIMITED,19/01/2012,3123230, 744.63 
Property & ICT,Operational Property,CAAH,Premises-Related Expenditure,R&M -Buildings DLO Charge,PP ELECTRICAL SERVICES,19/01/2012,697, 803.00 
Property & ICT,Operational Property,CAAH,Premises-Related Expenditure,R&M -Buildings DLO Charge,WATERCLEAN SERVICES LTD,19/01/2012,422, 750.00 
Property & ICT,Operational Property,CAAH,Premises-Related Expenditure,R&M -Buildings DLO Charge,CHUBB FIRE LIMITED,20/01/2012,3121780, 527.61 
Property & ICT,Operational Property,CAAH,Premises-Related Expenditure,R&M -Buildings DLO Charge,KOHLER MIRA LIMITED,20/01/2012,9000348382, 653.04 
Property & ICT,Operational Property,CAAH,Premises-Related Expenditure,R&M -Buildings DLO Charge,SHROPSHIRE HEATING SERVICES LTD,24/01/2012,22395," 1,007.07 "
Property & ICT,Operational Property,CAAH,Premises-Related Expenditure,R&M -Buildings DLO Charge,COOPER & WILLIAMS LTD,24/01/2012,11120022, 806.16 
Property & ICT,Operational Property,CAAH,Premises-Related Expenditure,R&M -Buildings DLO Charge,NYKE ENERGY SERVICES LIMITED,24/01/2012,7761, 865.00 
Property & ICT,Operational Property,CAAH,Premises-Related Expenditure,R&M -Buildings DLO Charge,PP ELECTRICAL SERVICES,13/01/2012,742," 1,394.00 "
Property & ICT,Operational Property,CAAH,Premises-Related Expenditure,R&M -Buildings DLO Charge,CHUBB FIRE LIMITED,19/01/2012,3120169, 583.75 
Property & ICT,Operational Property,CAAH,Premises-Related Expenditure,R&M -Buildings DLO Charge,SHROPSHIRE HEATING SERVICES LTD,19/01/2012,22501, 676.30 
Property & ICT,Operational Property,CAAH,Premises-Related Expenditure,R&M -Buildings DLO Charge,KOHLER MIRA LIMITED,19/01/2012,9000348365, 688.67 
Property & ICT,Operational Property,CAAH,Premises-Related Expenditure,R&M -Buildings DLO Charge,KOHLER MIRA LIMITED,19/01/2012,9000348373, 967.21 
Property & ICT,Operational Property,CAAH,Premises-Related Expenditure,R&M -Buildings DLO Charge,DMW ENVIRONMENTAL SAFETY LTD,13/01/2012,27150, 850.00 
Property & ICT,Operational Property,CAAH,Premises-Related Expenditure,R&M -Buildings DLO Charge,KOHLER MIRA LIMITED,13/01/2012,9000351384, 522.65 
Property & ICT,Operational Property,CAAH,Premises-Related Expenditure,R&M -Buildings DLO Charge,KOHLER MIRA LIMITED,13/01/2012,9000351408, 663.48 
Property & ICT,Operational Property,CAAH,Premises-Related Expenditure,R&M -Buildings DLO Charge,E DAVIES & SON,26/01/2012,16404, 750.00 
Property & ICT,Operational Property,CAAH,Premises-Related Expenditure,R&M -Buildings DLO Charge,SHROPSHIRE HEATING SERVICES LTD,13/01/2012,22793, 794.88 
Property & ICT,Operational Property,CAAH,Premises-Related Expenditure,R&M -Buildings DLO Charge,PP ELECTRICAL SERVICES,13/01/2012,698," 2,321.00 "
Property & ICT,Operational Property,CAAH,Premises-Related Expenditure,R&M -Buildings DLO Charge,WATERCLEAN SERVICES LTD,17/01/2012,123754, 600.00 
Property & ICT,Operational Property,CAAH,Premises-Related Expenditure,R&M -Buildings DLO Charge,B W BLINDS,13/01/2012,4," 1,664.18 "
Property & ICT,Operational Property,CAAH,Premises-Related Expenditure,R&M -Buildings DLO Charge,PP ELECTRICAL SERVICES,13/01/2012,696," 1,480.00 "
Property & ICT,Operational Property,CAAH,Premises-Related Expenditure,R&M -Buildings DLO Charge,PP ELECTRICAL SERVICES,13/01/2012,789, 634.00 
Property & ICT,Operational Property,CAAH,Premises-Related Expenditure,R&M -Buildings DLO Charge,CHUBB FIRE LIMITED,26/01/2012,3156991, 661.90 
Property & ICT,Operational Property,CAAH,Premises-Related Expenditure,R&M -Buildings DLO Charge,SHROPSHIRE HEATING SERVICES LTD,26/01/2012,22862, 660.05 
Property & ICT,Operational Property,CAAH,Premises-Related Expenditure,R&M -Buildings DLO Charge,RMW ELECTRICAL SERVICES LTD,20/01/2012,44430," 2,408.42 "
Property & ICT,Operational Property,CAAH,Premises-Related Expenditure,R&M -Buildings DLO Charge,DMW ENVIRONMENTAL SAFETY LTD,13/01/2012,27151, 950.00 
Property & ICT,Operational Property,CFAY,Premises-Related Expenditure,R&M - Electrical,PORTABLE APPLIANCE SAFETY SERVICES LTD,11/01/2012,66371," 1,652.50 "
Property & ICT,Operational Property,CFBA,Premises-Related Expenditure,Planned Repairs,Energy Management Systems Ltd,17/01/2012,6205," 3,003.00 "
Property & ICT,Operational Property,CFBA,Premises-Related Expenditure,Planned Repairs,EMSC (UK) LTD,17/01/2012,6253," 4,959.00 "
Property & ICT,Operational Property,COAB,Supplies & Services,Comp Hardware (Purch / Hire),FRANCOTYP-POSTALIA LIMITED,03/01/2012,SC5643," 5,000.00 "
Property & ICT,Operational Property,COAB,Supplies & Services,Postages,FRANCOTYP-POSTALIA LIMITED,12/01/2012,L000485100," 5,000.00 "
Property & ICT,Operational Property,COAB,Supplies & Services,Postages,FRANCOTYP-POSTALIA LIMITED,10/01/2012,L000486370," 5,000.00 "
Property & ICT,Operational Property,COAB,Supplies & Services,Postages,FRANCOTYP-POSTALIA LIMITED,23/01/2012,L000492878," 5,000.00 "
Property & ICT,Operational Property,COAC,Supplies & Services,Postages,TNT POST MIDLANDS,04/01/2012,47136," 1,159.18 "
Property & ICT,Operational Property,COAC,Supplies & Services,Postages,TNT POST MIDLANDS,03/01/2012,46970, 982.60 
Property & ICT,Operational Property,COAC,Supplies & Services,Postages,TNT POST MIDLANDS,03/01/2012,46663, 793.35 
Property & ICT,Operational Property,COAC,Supplies & Services,Postages,TNT POST MIDLANDS,16/01/2012,47742," 1,480.44 "
Property & ICT,Operational Property,COAE,Premises-Related Expenditure,R&M -Buildings DLO Charge,SHROPSHIRE HEATING SERVICES LTD,04/01/2012,22673," 1,732.10 "
Property & ICT,Operational Property,COAE,Premises-Related Expenditure,Gas,WEST MERCIA SUPPLIES,30/01/2012,HQ00922/2345575," 6,070.94 "
Property & ICT,Operational Property,COAE,Premises-Related Expenditure,Gas,WEST MERCIA SUPPLIES,30/01/2012,HQ00922/2345874," 3,109.39 "
Property & ICT,Operational Property,COAE,Premises-Related Expenditure,Gas,WEST MERCIA SUPPLIES,06/01/2012,HQ00922/2331303," 5,251.05 "
Property & ICT,Operational Property,COAE,Premises-Related Expenditure,Gas,WEST MERCIA SUPPLIES,06/01/2012,HQ00922/2331005," 1,872.67 "
Property & ICT,Operational Property,COAE,Premises-Related Expenditure,Sewage Charges,SEVERN TRENT WATER LTD,30/01/2012,899078677," 3,817.96 "
Property & ICT,Operational Property,COAE,Premises-Related Expenditure,Window Cleaning,WEST MERCIA SUPPLIES,12/01/2012,05155EL,-790.67 
Property & ICT,Operational Property,COAE,Premises-Related Expenditure,Window Cleaning,WEST MERCIA SUPPLIES,20/01/2012,HQ009222343087," 1,409.49 "
Property & ICT,Operational Property,COAE,Premises-Related Expenditure,Window Cleaning,WEST MERCIA SUPPLIES,20/01/2012,HQ009222343088," 1,061.62 "
Property & ICT,Operational Property,COAE,Premises-Related Expenditure,Window Cleaning,WEST MERCIA SUPPLIES,06/01/2012,HQ00922/2298318," 1,194.59 "
Property & ICT,Operational Property,COAE,Premises-Related Expenditure,Window Cleaning,WEST MERCIA SUPPLIES,06/01/2012,HQ00922/2280127, 848.83 
Property & ICT,Operational Property,COAE,Premises-Related Expenditure,Window Cleaning,WEST MERCIA SUPPLIES,06/01/2012,HQ00922/2280221, 562.37 
Property & ICT,Operational Property,COAE,Premises-Related Expenditure,Window Cleaning,WEST MERCIA SUPPLIES,06/01/2012,HQ00922/2280036," 1,227.09 "
Property & ICT,Operational Property,COAE,Premises-Related Expenditure,Window Cleaning,WEST MERCIA SUPPLIES,06/01/2012,HQ00922/2280037, 794.09 
Property & ICT,Operational Property,COAE,Premises-Related Expenditure,Window Cleaning,WEST MERCIA SUPPLIES,06/01/2012,HQ00922/2280126," 1,215.58 "
Property & ICT,Operational Property,COAG,Premises-Related Expenditure,Planned Repairs,KOHLER MIRA LIMITED,20/01/2012,9000349129, 739.59 
Property & ICT,Operational Property,COAG,Premises-Related Expenditure,R&M WC Planned,KOHLER MIRA LIMITED,19/01/2012,9000351423, 606.29 
Property & ICT,Operational Property,COAG,Premises-Related Expenditure,R&M WC Planned,KOHLER MIRA LIMITED,20/01/2012,9000349146, 912.60 
Property & ICT,Operational Property,COAG,Premises-Related Expenditure,R&M -Building Other,JONES & HAMPTON LTD,26/01/2012,52847, 606.45 
Property & ICT,Operational Property,COAG,Premises-Related Expenditure,R&M Fixed Plant Other,SHROPSHIRE HEATING SERVICES LTD,20/01/2012,22818, 661.49 
Property & ICT,Operational Property,COAG,Premises-Related Expenditure,R&M Fixed Plant Other,SHROPSHIRE HEATING SERVICES LTD,20/01/2012,22588, 513.12 
Property & ICT,Operational Property,COAG,Premises-Related Expenditure,R&M Fixed Plant Other,D P WILCOX & SON,20/01/2012,16175, 675.75 
Property & ICT,Operational Property,COAG,Premises-Related Expenditure,R&M Fixed Plant Other,GRA-BERN,17/01/2012,27349, 511.70 
Property & ICT,Operational Property,COAG,Premises-Related Expenditure,R&M Fixed Plant Other,GRA-BERN,17/01/2012,27531, 539.60 
Property & ICT,Operational Property,COAG,Premises-Related Expenditure,R&M Fixed Plant Other,GRA-BERN,17/01/2012,27578, 571.73 
Property & ICT,Operational Property,COAH,Premises-Related Expenditure,Service Contracts,JCE & SONS LTD,25/01/2012,10161, 679.70 
Property & ICT,Operational Property,COAH,Premises-Related Expenditure,Electricity,BRITISH GAS BUSINESS (ELECTRICITY),30/01/2012,53043995/1," 1,172.00 "
Property & ICT,Operational Property,COAH,Premises-Related Expenditure,Electricity,BRITISH GAS BUSINESS (ELECTRICITY),18/01/2012,51912486/1," 1,083.65 "
Property & ICT,Operational Property,COAH,Premises-Related Expenditure,Electricity,BRITISH GAS BUSINESS (ELECTRICITY),18/01/2012,52494878/1," 1,209.11 "
Property & ICT,Operational Property,COAH,Premises-Related Expenditure,Gas,E.ON,30/01/2012,HC8626265," 4,291.12 "
Property & ICT,Operational Property,COAH,Premises-Related Expenditure,Sewage Charges,SEVERN TRENT WATER LTD,31/01/2012,226074931," 1,693.43 "
Property & ICT,Operational Property,WCBA,Capital Expenditure,Payments to Contractor,ADT FIRE & SECURITY PLC,18/01/2012,20118866-02, 779.00 
Property & ICT,Operational Property,WCBA,Capital Expenditure,Payments to Contractor,ADT FIRE & SECURITY PLC,09/01/2012,19122964-02, 813.37 
Property & ICT,Operational Property,WCBA,Capital Expenditure,Payments to Contractor,SHROPSHIRE HEATING SERVICES LTD,09/01/2012,22091," 1,056.09 "
Property & ICT,Operational Property,WCBA,Capital Expenditure,Payments to Contractor,WELLINGTON INSULATION CO. LTD,17/01/2012,11WA136, 679.97 
Property & ICT,Operational Property,WCBA,Capital Expenditure,Payments to Contractor,ARJO LIMITED,19/01/2012,550211, 684.60 
Property & ICT,Operational Property,WCBA,Capital Expenditure,Payments to Contractor,WELLINGTON INSULATION CO. LTD,09/01/2012,11WA134, 850.00 
Property & ICT,Operational Property,WCBA,Capital Expenditure,Payments to Contractor,SHROPSHIRE HEATING SERVICES LTD,09/01/2012,22498, 638.06 
Property & ICT,Operational Property,WCBA,Capital Expenditure,Payments to Contractor,JONES & HAMPTON LTD,09/01/2012,52332," 1,224.78 "
Property & ICT,Operational Property,WCBA,Capital Expenditure,Payments to Contractor,K & M CONSTRUCTION LTD,17/01/2012,258/081211," 4,257.30 "
Property & ICT,Operational Property,WCBA,Capital Expenditure,Payments to Contractor,GRANVILLE CONSTRUCTION & MAINTENANCE LTD,17/01/2012,7907, 735.00 
Property & ICT,Operational Property,WCBA,Capital Expenditure,Payments to Contractor,WELLINGTON INSULATION CO. LTD,17/01/2012,11WA132, 600.00 
Property & ICT,Operational Property,WCBA,Capital Expenditure,Payments to Contractor,KOHLER MIRA LIMITED,27/01/2012,9000349144," 1,040.55 "
Property & ICT,Operational Property,WCBA,Capital Expenditure,Payments to Contractor,JONES & HAMPTON LTD,19/01/2012,53062, 918.73 
Property & ICT,Operational Property,WCBA,Capital Expenditure,Payments to Contractor,WELLINGTON INSULATION CO. LTD,18/01/2012,12WA002, 665.52 
Property & ICT,Operational Property,WCBA,Capital Expenditure,Payments to Contractor,WELLINGTON INSULATION CO. LTD,17/01/2012,12WA004, 989.64 
Property & ICT,Operational Property,WCBA,Capital Expenditure,Payments to Contractor,TAYLORS MECHANICAL H & P SERVICES LTD,17/01/2012,2364," 4,890.00 "
Property & ICT,Operational Property,WCBA,Capital Expenditure,Payments to Contractor,WELLINGTON INSULATION CO. LTD,17/01/2012,12WA001, 647.28 
Property & ICT,Operational Property,WCBA,Capital Expenditure,Payments to Contractor,WELLINGTON INSULATION CO. LTD,17/01/2012,11WA125, 890.27 
Property & ICT,Operational Property,WCBA,Capital Expenditure,Payments to Contractor,JONES & HAMPTON LTD,17/01/2012,51554, 664.50 
Property & ICT,Operational Property,WCBA,Capital Expenditure,Payments to Contractor,STAR REFRIGERATION LTD,17/01/2012,CD201105282," 1,275.67 "
Property & ICT,Operational Property,WCBA,Capital Expenditure,Payments to Contractor,ALLGLASS SYSTEMS LTD,18/01/2012,35720," 3,222.40 "
Property & ICT,Operational Property,WCBA,Capital Expenditure,Payments to Contractor,ALLGLASS SYSTEMS LTD,18/01/2012,36651," 2,025.00 "
Property & ICT,Operational Property,WCBA,Capital Expenditure,Payments to Contractor,SHROPSHIRE HEATING SERVICES LTD,17/01/2012,22412," 1,110.73 "
Property & ICT,Operational Property,WCBA,Capital Expenditure,Payments to Contractor,JONES & HAMPTON LTD,26/01/2012,52895," 1,010.61 "
Property & ICT,Property & ICT,WCAG,Capital Expenditure,Payments to Contractor,The Knowledge Academy Limited,26/01/2012,SO1015599," 1,900.00 "
Property & ICT,Property & ICT,WCAG,Capital Expenditure,Fixtures & Fittings & Equipment,AFC TELFORD UNITED,03/01/2012,T002768," 3,400.00 "
Property & ICT,Property & ICT,WCAG,Capital Expenditure,Fixtures & Fittings & Equipment,AFC TELFORD UNITED,03/01/2012,T00127,-600.00 
Property & ICT,Property & ICT,WCAK,Capital Expenditure,Payments to Contractor,WICKSTEED LEISURE LTD,11/01/2012,DU9871," 84,000.00 "
Property & ICT,Property & ICT,WCAK,Capital Expenditure,Payments to Contractor,PARKDALE PLAY & LEISURE LTD,20/01/2012,59," 65,260.00 "
Property & ICT,Property & ICT,WCAR,Capital Expenditure,Payments to Contractor,BIRSE CIVILS LIMITED,11/01/2012,16," 229,119.97 "
Property & ICT,Property & ICT,WCAR,Capital Expenditure,Payments to Contractor,GROUND INVESTIGATION & PILING LTD,19/01/2012,26957, 896.80 
Property & ICT,Property & ICT,WCAR,Capital Expenditure,Payments to Contractor,TRAFFIC & COMMERCIAL SIGNS LTD,19/01/2012,9513," 3,388.65 "
Property & ICT,Property & ICT,WCAR,Capital Expenditure,Payments to Contractor,JACOBS ENGINEERING UK LIMITED,05/01/2012,B1748600/003/SMCG," 2,830.00 "
Property & ICT,Property & ICT,WCAR,Capital Expenditure,Payments to Contractor,JACOBS ENGINEERING UK LIMITED,05/01/2012,B1016900/036/DM," 57,794.40 "
Property & ICT,Town Centre Project,WCAE,Capital Expenditure,External Professional Fees,MACE LTD,11/01/2012,27171/1111398," 10,373.73 "
Property & ICT,Town Centre Project,WCAE,Capital Expenditure,External Professional Fees,MACE LTD,11/01/2012,27171/1111399," 19,690.90 "
Property & ICT,Town Centre Project,WCCA,Capital Expenditure,Legal Fees,K & M CONSTRUCTION LTD,17/01/2012,277/090112," 2,097.89 "
Property & ICT,Town Centre Project,WCCA,Capital Expenditure,External Professional Fees,MILLS & REEVE,11/01/2012,BIRBIL/753524/V/1/1," 8,202.60 "
Property & ICT,Town Centre Project,WCCA,Capital Expenditure,External Professional Fees,AMEC ENVIRONMENT & INFRASTRUCTURE UK LTD,20/01/2012,487740, 885.50 
Property & ICT,Town Centre Project,WCCA,Capital Expenditure,External Professional Fees,MILLS & REEVE,13/01/2012,BIRBIL/752751/V71/1," 11,706.80 "
Property & ICT,Town Centre Project,WCCA,Capital Expenditure,Payments to Contractor,MACE LTD,03/01/2012,27171/1011491," 35,218.99 "
Property & ICT,Town Centre Project,WCCA,Capital Expenditure,Payments to Contractor,MACE LTD,11/01/2012,27651/1011490," 79,301.16 "
Property & ICT,Town Centre Project,WCCA,Capital Expenditure,Payments to Contractor,MACE LTD,11/01/2012,27651/1011490," 11,876.55 "
Property & ICT,Town Centre Project,WCCA,Capital Expenditure,Payments to Contractor,MACE LTD,11/01/2012,27651/1011490," 9,542.26 "
Property & ICT,Town Centre Project,WCCA,Capital Expenditure,Payments to Contractor,MCPHILLIPS (WELLINGTON) LTD,31/01/2012,Y1235 TEL-046CR,"-4,680.76 "
Property & ICT,Town Centre Project,WCCA,Capital Expenditure,Payments to Contractor,MCPHILLIPS (WELLINGTON) LTD,31/01/2012,Y1235 TEL-046CR,"-79,542.37 "
Property & ICT,Town Centre Project,WCCA,Capital Expenditure,Payments to Contractor,MCPHILLIPS (WELLINGTON) LTD,31/01/2012,Y1235 TEL046," 56,466.03 "
Property & ICT,Town Centre Project,WCCA,Capital Expenditure,Payments to Contractor,MCPHILLIPS (WELLINGTON) LTD,31/01/2012,Y1235 TEL046," 4,680.76 "
Property & ICT,Town Centre Project,WCCA,Capital Expenditure,Payments to Contractor,MCPHILLIPS (WELLINGTON) LTD,31/01/2012,Y1235 TEL046," 79,542.37 "
Property & ICT,Town Centre Project,WCCA,Capital Expenditure,Payments to Contractor,MCPHILLIPS (WELLINGTON) LTD,31/01/2012,Y1235 TEL-046CR,"-56,466.03 "
Property & ICT,Town Centre Project,WCCA,Capital Expenditure,Payments to Contractor,MACE LTD,09/01/2012,27651/1011492," 23,279.82 "
Property & ICT,Town Centre Project,WCCA,Capital Expenditure,Payments to Contractor,MACE LTD,09/01/2012,27651/1011492," 3,871.00 "
Property & ICT,Town Centre Project,WCCA,Capital Expenditure,Payments to Contractor,MCPHILLIPS (WELLINGTON) LTD,27/01/2012,Y1235 TEL-046," 79,542.38 "
Property & ICT,Town Centre Project,WCCA,Capital Expenditure,Payments to Contractor,WYGAR CONSTRUCTION CO. LTD.,17/01/2012,10AR035/05," 136,837.69 "
Property & ICT,Town Centre Project,WCCA,Capital Expenditure,Payments to Contractor,PP ELECTRICAL SERVICES,24/01/2012,832," 11,590.03 "
Property & ICT,Town Centre Project,WCCA,Capital Expenditure,Payments to Contractor,CARROLL & WILLIAMS LLP,04/01/2012,4003," 2,980.00 "
Property & ICT,Town Centre Project,WCCA,Capital Expenditure,Payments to Contractor,MCPHILLIPS (WELLINGTON) LTD,27/01/2012,Y1235 TEL-046," 56,466.03 "
Property & ICT,Town Centre Project,WCCA,Capital Expenditure,Payments to Contractor,MCPHILLIPS (WELLINGTON) LTD,27/01/2012,Y1235 TEL-046," 4,680.76 "
Safeguarding (Adults & Children),Case Management & Children in Care,JCAB,Supplies & Services,Supportive Lodgings,THEO LANGSTON,13/01/2012,2403," 1,743.44 "
Safeguarding (Adults & Children),Case Management & Children in Care,JCAB,Supplies & Services,Supportive Lodgings,THEO LANGSTON,13/01/2012,2405, 807.55 
Safeguarding (Adults & Children),Case Management & Children in Care,JCAB,Supplies & Services,Supportive Lodgings,THEO LANGSTON,12/01/2012,2404, 861.30 
Safeguarding (Adults & Children),Case Management & Children in Care,JCAB,Supplies & Services,Supportive Lodgings,THEO LANGSTON,05/01/2012,2351," 1,293.52 "
Safeguarding (Adults & Children),Case Management & Children in Care,JCAB,Supplies & Services,Supportive Lodgings,NEXT STEP CARE MANAGEMENT LTD,31/01/2012,13034," 1,860.00 "
Safeguarding (Adults & Children),Case Management & Children in Care,JCAB,Supplies & Services,Supportive Lodgings,THEO LANGSTON,09/01/2012,2354, 807.55 
Safeguarding (Adults & Children),Case Management & Children in Care,JCAB,Supplies & Services,Supportive Lodgings,LEAVING CARE COMPANY,09/01/2012,4814," 6,106.14 "
Safeguarding (Adults & Children),Case Management & Children in Care,JCAB,Supplies & Services,Supportive Lodgings,LEAVING CARE COMPANY,26/01/2012,4970,"-1,888.26 "
Safeguarding (Adults & Children),Case Management & Children in Care,JCAB,Supplies & Services,Supportive Lodgings,LEAVING CARE COMPANY,10/01/2012,4865,"-2,791.89 "
Safeguarding (Adults & Children),Case Management & Children in Care,JCAB,Supplies & Services,Supportive Lodgings,THEO LANGSTON,09/01/2012,2353," 1,483.35 "
Safeguarding (Adults & Children),Case Management & Children in Care,JCAG,Supplies & Services,Conference Expenses,THE CULTURAL SISTERS,10/01/2012,ordhotshotscarnivalprojec," 2,050.00 "
Safeguarding (Adults & Children),Case Management & Children in Care,JMAB,Employees,Agency Supply Costs,CARITAS RECRUITMENT LTD,30/01/2012,CA26200,"-5,912.60 "
Safeguarding (Adults & Children),Case Management & Children in Care,JMAB,Employees,Agency Supply Costs,CARITAS RECRUITMENT LTD,19/01/2012,CA24378,"-2,556.80 "
Safeguarding (Adults & Children),Case Management & Children in Care,JMAB,Employees,Agency Supply Costs,AIR SOCIAL CARE,04/01/2012,1356," 1,367.31 "
Safeguarding (Adults & Children),Case Management & Children in Care,JMAE,Supplies & Services,Other Services,LIVING SPRINGS FAMILY CENTRE,03/01/2012,7636JR," 8,305.00 "
Safeguarding (Adults & Children),Case Management & Children in Care,JMAE,Supplies & Services,Other Services,LIVING SPRINGS FAMILY CENTRE,03/01/2012,7616JR," 14,975.00 "
Safeguarding (Adults & Children),Case Management & Children in Care,JMAE,Supplies & Services,Other Services,PHOENIX PSYCHOLOGICAL SERVICES LTD,03/01/2012,2079," 1,755.00 "
Safeguarding (Adults & Children),Case Management & Children in Care,JMAE,Supplies & Services,Other Services,LIVING SPRINGS FAMILY CENTRE,03/01/2012,7637JR, 627.59 
Safeguarding (Adults & Children),Case Management & Children in Care,JMAE,Supplies & Services,Other Services,FIRST BASE (CREATIVE THERAPIES) LTD,03/01/2012,02/11/11TW, 500.00 
Safeguarding (Adults & Children),Case Management & Children in Care,JMAE,Supplies & Services,Other Services,JJ COUNSELLING SERVICES LTD,18/01/2012,21211, 600.00 
Safeguarding (Adults & Children),Case Management & Children in Care,JMAH,Supplies & Services,Other Services,ALLIED HEALTHCARE GROUP LTD,10/01/2012,40898, 640.38 
Safeguarding (Adults & Children),Case Management & Children in Care,JMAH,Third Party Payments,Private Contractors,ALLIED HEALTHCARE GROUP LTD,19/01/2012,G2431506, 598.70 
Safeguarding (Adults & Children),Case Management & Children in Care,JMAK,Supplies & Services,Other Expenses,Eddie O'Hara Social Work Services Ltd,10/01/2012,857," 4,445.92 "
Safeguarding (Adults & Children),Early Intervention,GEAM,Supplies & Services,Equipment - Purchase,PYRAMID SCHOOLS (HADLEY) LTD,27/01/2012,613," 1,132.36 "
Safeguarding (Adults & Children),Early Intervention,GYAX,Supplies & Services,Other Services,Debbie Cooper Associates,27/01/2012,TelfordandWrekinRJWMids00," 2,000.00 "
Safeguarding (Adults & Children),Early Intervention,JEAA,Premises-Related Expenditure,R&M -Building Other,CHUBB FIRE LIMITED,24/01/2012,3152869, 547.05 
Safeguarding (Adults & Children),Early Intervention,JEAB,Employees,Agency Supply Costs,CHILDCARE SOS,09/01/2012,5106," 1,216.90 "
Safeguarding (Adults & Children),Early Intervention,JEAB,Employees,Agency Supply Costs,CHILDCARE SOS,24/01/2012,5159, 575.40 
Safeguarding (Adults & Children),Early Intervention,JEAB,Employees,Agency Supply Costs,CHILDCARE SOS,24/01/2012,4995," 2,630.15 "
Safeguarding (Adults & Children),Early Intervention,JEAB,Employees,Agency Supply Costs,CHILDCARE SOS,24/01/2012,5160, 576.10 
Safeguarding (Adults & Children),Early Intervention,JEAB,Employees,Staff Training,COGNET TRAINING & CONSULTANCY SERVICES,09/01/2012,935, 750.00 
Safeguarding (Adults & Children),Early Intervention,JEAB,Premises-Related Expenditure,R&M -SCC Contingency,Carpenter Family Centre,09/01/2012,80313369," 9,317.00 "
Safeguarding (Adults & Children),Early Intervention,JEAB,Premises-Related Expenditure,Gas,LAWLEY & OVERDALE PARISH COUNCIL,24/01/2012,CO64/2011, 604.80 
Safeguarding (Adults & Children),Early Intervention,JEAB,Premises-Related Expenditure,General Rents,A J (TELFORD) SELF-STORAGE LTD,27/01/2012,1.8791E+16, 997.50 
Safeguarding (Adults & Children),Early Intervention,JEAB,Premises-Related Expenditure,General Rents,A J (TELFORD) SELF-STORAGE LTD,27/01/2012,1.8791E+16, 997.50 
Safeguarding (Adults & Children),Early Intervention,JEAC,Premises-Related Expenditure,R&M -Building Other,SHROPSHIRE HEATING SERVICES LTD,11/01/2012,22659, 630.07 
Safeguarding (Adults & Children),Early Intervention,WCAC,Capital Expenditure,Computer Hardware,CACI LTD,05/01/2012,ES02744," 19,942.01 "
Safeguarding (Adults & Children),Placements & Fostering,JPAD,Supplies & Services,Supportive Lodgings,FREEDOM FOSTERING,10/01/2012,1146," 4,400.00 "
Safeguarding (Adults & Children),Placements & Fostering,JPAD,Supplies & Services,Supportive Lodgings,FREEDOM FOSTERING,26/01/2012,1153," 4,400.00 "
Safeguarding (Adults & Children),Placements & Fostering,JPAD,Third Party Payments,External Foster Care Payments,SWIIS FOSTER CARE LTD,17/01/2012,106337, 895.00 
Safeguarding (Adults & Children),Placements & Fostering,JPAD,Third Party Payments,External Foster Care Payments,HILLCREST CARE LTD,17/01/2012,3669311," 3,520.71 "
Safeguarding (Adults & Children),Placements & Fostering,JPAD,Third Party Payments,External Foster Care Payments,CARE TECH FOSTER CARE LTD,17/01/2012,CFC771," 3,419.79 "
Safeguarding (Adults & Children),Placements & Fostering,JPAD,Third Party Payments,External Foster Care Payments,Childcare Bureau,09/01/2012,1391005," 4,264.00 "
Safeguarding (Adults & Children),Placements & Fostering,JPAD,Third Party Payments,External Foster Care Payments,PHOENIX FOSTERING,11/01/2012,320," 5,900.00 "
Safeguarding (Adults & Children),Placements & Fostering,JPAD,Third Party Payments,External Foster Care Payments,PROGRESS CHILDREN'S SERVICES LTD,09/01/2012,5508," 4,406.34 "
Safeguarding (Adults & Children),Placements & Fostering,JPAD,Third Party Payments,External Foster Care Payments,FAMILIES@FAMILYCARE,12/01/2012,1148FPS," 4,229.02 "
Safeguarding (Adults & Children),Placements & Fostering,JPAD,Third Party Payments,External Foster Care Payments,PROGRESS CHILDREN'S SERVICES LTD,25/01/2012,5587," 4,406.34 "
Safeguarding (Adults & Children),Placements & Fostering,JPAD,Third Party Payments,External Foster Care Payments,FAMILIES@FAMILYCARE,13/01/2012,1139FPS," 3,697.68 "
Safeguarding (Adults & Children),Placements & Fostering,JPAD,Third Party Payments,External Foster Care Payments,FAMILIES@FAMILYCARE,13/01/2012,1128FPS," 4,229.02 "
Safeguarding (Adults & Children),Placements & Fostering,JPAD,Third Party Payments,External Foster Care Payments,HILLCREST CARE LTD,20/01/2012,3561111,-625.00 
Safeguarding (Adults & Children),Placements & Fostering,JPAD,Third Party Payments,External Foster Care Payments,HILLCREST CARE LTD,16/01/2012,3154711," 3,344.68 "
Safeguarding (Adults & Children),Placements & Fostering,JPAD,Third Party Payments,External Foster Care Payments,HILLCREST CARE LTD,16/01/2012,3559211," 3,631.43 "
Safeguarding (Adults & Children),Placements & Fostering,JPAD,Third Party Payments,External Foster Care Payments,HILLCREST CARE LTD,16/01/2012,3S58311," 2,932.60 "
Safeguarding (Adults & Children),Placements & Fostering,JPAD,Third Party Payments,External Foster Care Payments,NATIONAL FOSTERING AGENCY,16/01/2012,NFA53646," 1,985.80 "
Safeguarding (Adults & Children),Placements & Fostering,JPAD,Third Party Payments,External Foster Care Payments,CARE TECH FOSTER CARE LTD,16/01/2012,CFC767," 6,200.00 "
Safeguarding (Adults & Children),Placements & Fostering,JPAD,Third Party Payments,External Foster Care Payments,NATIONAL FOSTERING AGENCY,10/01/2012,NFA52112," 3,129.00 "
Safeguarding (Adults & Children),Placements & Fostering,JPAD,Third Party Payments,External Foster Care Payments,CARE TECH FOSTER CARE LTD,16/01/2012,CFC768," 3,419.79 "
Safeguarding (Adults & Children),Placements & Fostering,JPAD,Third Party Payments,External Foster Care Payments,CARE TECH FOSTER CARE LTD,16/01/2012,CFC766," 6,642.86 "
Safeguarding (Adults & Children),Placements & Fostering,JPAD,Third Party Payments,External Foster Care Payments,CARE TECH FOSTER CARE LTD,16/01/2012,CFC770," 3,419.79 "
Safeguarding (Adults & Children),Placements & Fostering,JPAD,Third Party Payments,External Foster Care Payments,PATHWAY CARE LTD,10/01/2012,28207,-578.14 
Safeguarding (Adults & Children),Placements & Fostering,JPAD,Third Party Payments,External Foster Care Payments,PATHWAY CARE LTD,10/01/2012,28207,-565.72 
Safeguarding (Adults & Children),Placements & Fostering,JPAD,Third Party Payments,External Foster Care Payments,CLIFFORD HOUSE FOSTERING LTD,10/01/2012,302," 3,412.00 "
Safeguarding (Adults & Children),Placements & Fostering,JPAD,Third Party Payments,External Foster Care Payments,PHOENIX FOSTERING,10/01/2012,312," 5,310.00 "
Safeguarding (Adults & Children),Placements & Fostering,JPAD,Third Party Payments,External Foster Care Payments,ACTION FOR CHILDREN LIMITED,10/01/2012,R31INV/00007335," 5,787.61 "
Safeguarding (Adults & Children),Placements & Fostering,JPAD,Third Party Payments,External Foster Care Payments,FOSTER CARE ASSOCIATES LTD,25/01/2012,320450," 4,908.54 "
Safeguarding (Adults & Children),Placements & Fostering,JPAD,Third Party Payments,External Foster Care Payments,HILLCREST CARE LTD,16/01/2012,3559511," 2,958.68 "
Safeguarding (Adults & Children),Placements & Fostering,JPAD,Third Party Payments,External Foster Care Payments,SWIIS FOSTER CARE LTD,25/01/2012,107391, 895.00 
Safeguarding (Adults & Children),Placements & Fostering,JPAD,Third Party Payments,External Foster Care Payments,FOSTER CARE ASSOCIATES LTD,25/01/2012,320452," 3,223.35 "
Safeguarding (Adults & Children),Placements & Fostering,JPAD,Third Party Payments,External Foster Care Payments,HILLCREST CARE LTD,16/01/2012,3559711," 2,958.68 "
Safeguarding (Adults & Children),Placements & Fostering,JPAD,Third Party Payments,External Foster Care Payments,FOSTER CARE ASSOCIATES LTD,10/01/2012,317388," 5,247.06 "
Safeguarding (Adults & Children),Placements & Fostering,JPAD,Third Party Payments,External Foster Care Payments,PROGRESS CHILDREN'S SERVICES LTD,10/01/2012,5510," 3,720.00 "
Safeguarding (Adults & Children),Placements & Fostering,JPAD,Third Party Payments,External Foster Care Payments,SWIIS FOSTER CARE LTD,10/01/2012,106032, 895.00 
Safeguarding (Adults & Children),Placements & Fostering,JPAD,Third Party Payments,External Foster Care Payments,Childcare Bureau,10/01/2012,1391017," 4,130.75 "
Safeguarding (Adults & Children),Placements & Fostering,JPAD,Third Party Payments,External Foster Care Payments,PROGRESS CHILDREN'S SERVICES LTD,10/01/2012,5509," 3,963.66 "
Safeguarding (Adults & Children),Placements & Fostering,JPAD,Third Party Payments,External Foster Care Payments,PATHWAY CARE LTD,05/01/2012,28429," 3,321.43 "
Safeguarding (Adults & Children),Placements & Fostering,JPAD,Third Party Payments,External Foster Care Payments,HILLCREST CARE LTD,20/01/2012,3547511," 3,344.68 "
Safeguarding (Adults & Children),Placements & Fostering,JPAD,Third Party Payments,External Foster Care Payments,HILLCREST CARE LTD,24/01/2012,3547211," 2,932.60 "
Safeguarding (Adults & Children),Placements & Fostering,JPAD,Third Party Payments,External Foster Care Payments,HILLCREST CARE LTD,24/01/2012,3547911," 3,210.71 "
Safeguarding (Adults & Children),Placements & Fostering,JPAD,Third Party Payments,External Foster Care Payments,HILLCREST CARE LTD,13/01/2012,356QUj," 2,635.00 "
Safeguarding (Adults & Children),Placements & Fostering,JPAD,Third Party Payments,External Foster Care Payments,HILLCREST CARE LTD,30/01/2012,3548411," 2,958.68 "
Safeguarding (Adults & Children),Placements & Fostering,JPAD,Third Party Payments,External Foster Care Payments,HILLCREST CARE LTD,13/01/2012,3560211," 2,635.00 "
Safeguarding (Adults & Children),Placements & Fostering,JPAD,Third Party Payments,External Foster Care Payments,HILLCREST CARE LTD,10/01/2012,3663711," 3,407.14 "
Safeguarding (Adults & Children),Placements & Fostering,JPAD,Third Party Payments,External Foster Care Payments,PHOENIX FOSTERING,13/01/2012,339," 5,310.00 "
Safeguarding (Adults & Children),Placements & Fostering,JPAD,Third Party Payments,External Foster Care Payments,HILLCREST CARE LTD,13/01/2012,3154811," 3,450.30 "
Safeguarding (Adults & Children),Placements & Fostering,JPAD,Third Party Payments,External Foster Care Payments,FOSTER CARE ASSOCIATES LTD,25/01/2012,320456," 3,308.90 "
Safeguarding (Adults & Children),Placements & Fostering,JPAD,Third Party Payments,External Foster Care Payments,HILLCREST CARE LTD,16/01/2012,3559111," 3,450.30 "
Safeguarding (Adults & Children),Placements & Fostering,JPAD,Third Party Payments,External Foster Care Payments,NATIONAL FOSTERING AGENCY,16/01/2012,NFA53641," 3,051.02 "
Safeguarding (Adults & Children),Placements & Fostering,JPAD,Third Party Payments,External Foster Care Payments,NATIONAL FOSTERING AGENCY,16/01/2012,NFA53642," 3,233.30 "
Safeguarding (Adults & Children),Placements & Fostering,JPAD,Third Party Payments,External Foster Care Payments,NATIONAL FOSTERING AGENCY,16/01/2012,NFA53644," 3,113.33 "
Safeguarding (Adults & Children),Placements & Fostering,JPAD,Third Party Payments,External Foster Care Payments,HILLCREST CARE LTD,16/01/2012,3559411," 3,077.86 "
Safeguarding (Adults & Children),Placements & Fostering,JPAD,Third Party Payments,External Foster Care Payments,HILLCREST CARE LTD,16/01/2012,3559311," 3,077.86 "
Safeguarding (Adults & Children),Placements & Fostering,JPAD,Third Party Payments,External Foster Care Payments,HILLCREST CARE LTD,16/01/2012,3558611," 3,344.68 "
Safeguarding (Adults & Children),Placements & Fostering,JPAD,Third Party Payments,External Foster Care Payments,NATIONAL FOSTERING AGENCY,16/01/2012,NFA53643," 3,380.86 "
Safeguarding (Adults & Children),Placements & Fostering,JPAD,Third Party Payments,External Foster Care Payments,FOSTER CARE ASSOCIATES LTD,27/01/2012,318700,"-3,515.40 "
Safeguarding (Adults & Children),Placements & Fostering,JPAD,Third Party Payments,External Foster Care Payments,CLIFFORD HOUSE FOSTERING LTD,05/01/2012,262," 3,412.00 "
Safeguarding (Adults & Children),Placements & Fostering,JPAD,Third Party Payments,External Foster Care Payments,PROGRESS CHILDREN'S SERVICES LTD,04/01/2012,5519,"-3,835.80 "
Safeguarding (Adults & Children),Placements & Fostering,JPAD,Third Party Payments,External Foster Care Payments,ACTION FOR CHILDREN LIMITED,18/01/2012,R31INV/00007551," 5,787.61 "
Safeguarding (Adults & Children),Placements & Fostering,JPAD,Third Party Payments,External Foster Care Payments,HILLCREST CARE LTD,30/01/2012,3548611," 2,958.68 "
Safeguarding (Adults & Children),Placements & Fostering,JPAD,Third Party Payments,External Foster Care Payments,INDEPENDENT CHILDCARE GROUP OF SCHOOLS L,09/01/2012,10115," 3,151.15 "
Safeguarding (Adults & Children),Placements & Fostering,JPAD,Third Party Payments,External Foster Care Payments,PROGRESS CHILDREN'S SERVICES LTD,09/01/2012,5507," 3,682.80 "
Safeguarding (Adults & Children),Placements & Fostering,JPAD,Third Party Payments,External Foster Care Payments,NATIONAL FOSTERING AGENCY,09/01/2012,NFA52097," 2,978.70 "
Safeguarding (Adults & Children),Placements & Fostering,JPAD,Third Party Payments,External Foster Care Payments,HILLCREST CARE LTD,25/01/2012,3548311," 3,077.86 "
Safeguarding (Adults & Children),Placements & Fostering,JPAD,Third Party Payments,External Foster Care Payments,HILLCREST CARE LTD,16/01/2012,3560011," 2,410.71 "
Safeguarding (Adults & Children),Placements & Fostering,JPAD,Third Party Payments,External Foster Care Payments,NATIONAL FOSTERING AGENCY,10/01/2012,NFA52111," 2,952.60 "
Safeguarding (Adults & Children),Placements & Fostering,JPAD,Third Party Payments,External Foster Care Payments,HILLCREST CARE LTD,16/01/2012,3155011," 2,712.50 "
Safeguarding (Adults & Children),Placements & Fostering,JPAD,Third Party Payments,External Foster Care Payments,PHOENIX FOSTERING,16/01/2012,326," 5,310.00 "
Safeguarding (Adults & Children),Placements & Fostering,JPAD,Third Party Payments,External Foster Care Payments,NATIONAL FOSTERING AGENCY,16/01/2012,NFA53628," 3,077.99 "
Safeguarding (Adults & Children),Placements & Fostering,JPAD,Third Party Payments,External Foster Care Payments,PHOENIX FOSTERING,16/01/2012,334," 5,900.00 "
Safeguarding (Adults & Children),Placements & Fostering,JPAD,Third Party Payments,External Foster Care Payments,HILLCREST CARE LTD,16/01/2012,3157311,-982.14 
Safeguarding (Adults & Children),Placements & Fostering,JPAD,Third Party Payments,External Foster Care Payments,HILLCREST CARE LTD,16/01/2012,3157411,-962.50 
Safeguarding (Adults & Children),Placements & Fostering,JPAD,Third Party Payments,External Foster Care Payments,HILLCREST CARE LTD,25/01/2012,3548011," 3,450.30 "
Safeguarding (Adults & Children),Placements & Fostering,JPAD,Third Party Payments,External Foster Care Payments,CARE TECH FOSTER CARE LTD,16/01/2012,CFC769," 3,419.79 "
Safeguarding (Adults & Children),Placements & Fostering,JPAD,Third Party Payments,External Foster Care Payments,PROGRESS CHILDREN'S SERVICES LTD,27/01/2012,5580," 3,682.80 "
Safeguarding (Adults & Children),Placements & Fostering,JPAD,Third Party Payments,External Foster Care Payments,FAMILIES@FAMILYCARE,12/01/2012,1132FPS," 2,403.43 "
Safeguarding (Adults & Children),Placements & Fostering,JPAD,Third Party Payments,External Foster Care Payments,Childcare Bureau,19/01/2012,1391026," 4,130.75 "
Safeguarding (Adults & Children),Placements & Fostering,JPAD,Third Party Payments,External Foster Care Payments,CARE TECH FOSTER CARE LTD,05/01/2012,CFC707," 6,642.86 "
Safeguarding (Adults & Children),Placements & Fostering,JPAD,Third Party Payments,External Foster Care Payments,FOSTER CARE ASSOCIATES LTD,09/01/2012,317390," 3,445.65 "
Safeguarding (Adults & Children),Placements & Fostering,JPAD,Third Party Payments,External Foster Care Payments,CARE TECH FOSTER CARE LTD,09/01/2012,CFC494," 1,654.74 "
Safeguarding (Adults & Children),Placements & Fostering,JPAD,Third Party Payments,External Foster Care Payments,FOSTER CARE ASSOCIATES LTD,30/01/2012,318694,"-2,381.40 "
Safeguarding (Adults & Children),Placements & Fostering,JPAD,Third Party Payments,External Foster Care Payments,HILLCREST CARE LTD,26/01/2012,3548911," 2,767.86 "
Safeguarding (Adults & Children),Placements & Fostering,JPAD,Third Party Payments,External Foster Care Payments,HILLCREST CARE LTD,26/01/2012,3547411," 3,520.71 "
Safeguarding (Adults & Children),Placements & Fostering,JPAD,Third Party Payments,External Foster Care Payments,PATHWAY CARE LTD,26/01/2012,Number29077," 3,321.43 "
Safeguarding (Adults & Children),Placements & Fostering,JPAD,Third Party Payments,External Foster Care Payments,CARE TECH FOSTER CARE LTD,05/01/2012,CFC710," 3,419.79 "
